Directorate,Department,Expenditure Type,Ref.Doc.1,Vendor Name,Expenditure Amount (exc VAT),Payment Date
Assurance,Assurance,Advertising,60063689,ASSOCIATION OF DEMOCRATIC SERVICES OFFIC,480.00,28/09/2016
Assurance,Assurance,Advertising,60062497,JOBS GO PUBLIC LTD,"1,000.00",16/09/2016
Assurance,Assurance,Equipment and Materials Purcha,60061322,CITY FURNITURE HIRE LIMITED,785.25,02/09/2016
Assurance,Assurance,Equipment and Materials Purcha,60061888,EASYCRATE LTD,818.80,20/09/2016
Assurance,Assurance,Equipment and Materials Purcha,80005943,RBL POPPY APPEAL,542.75,23/09/2016
Assurance,Assurance,Furniture-Purchase-Repair,60060835,WAGSTAFF INTERIORS GROUP,"1,906.56",06/09/2016
Assurance,Assurance,Other Indirect Employee Expens,80005995,COSTERMONGERS CHARITY FUND,40.00,30/09/2016
Assurance,Assurance,Other Indirect Employee Expens,80005941,THE LONDON MAYORS' ASSOCIATION,40.00,23/09/2016
Assurance,Assurance,Other Indirect Employee Expens,80005951,THE LONDON MAYORS' ASSOCIATION,40.00,23/09/2016
Assurance,Assurance,Other Indirect Employee Expens,80005902,THE MAYOR'S CHARITY,56.00,23/09/2016
Assurance,Assurance,Other Indirect Employee Expens,80005963,THE MAYOR'S CHARITY APPEAL,70.00,30/09/2016
Assurance,Assurance,Postage,60062582,ROYAL MAIL GROUP LIMITED,"4,250.37",12/09/2016
Assurance,Assurance,Postage,60063740,ROYAL MAIL GROUP LIMITED,94.00,29/09/2016
Assurance,Assurance,Professional Services,10013451,ELECTORAL REFORM SERVICES,"1,365.27",08/09/2016
Assurance,Assurance,Professional Services,10013452,ELECTORAL REFORM SERVICES,"4,359.70",08/09/2016
Assurance,Assurance,Professional Services,10013453,ELECTORAL REFORM SERVICES,"6,318.23",08/09/2016
Assurance,Assurance,Professional Services,10013454,ELECTORAL REFORM SERVICES,"10,668.04",08/09/2016
Assurance,Assurance,Professional Services,60062601,ELECTORAL REFORM SERVICES,901.29,29/09/2016
Assurance,Assurance,Professional Services,60062609,ELECTORAL REFORM SERVICES,"1,416.66",12/09/2016
Assurance,Assurance,Professional Services,60063222,ELECTORAL REFORM SERVICES,"11,644.71",29/09/2016
Assurance,Assurance,Rents,60054175,CHURCH OF ST MARY MAGDALEN,500.00,09/09/2016
Assurance,Assurance,Rents,80006000,TENT EVENTS,"1,096.00",30/09/2016
Assurance,Assurance,Rents,60063310,THE ROYAL BRITISH LEGION,675.00,27/09/2016
Assurance,Assurance,Rents,60063341,THE ROYAL BRITISH LEGION,675.00,27/09/2016
Assurance,Assurance,Software Licences & Support,60061837,HAMILTON RENTALS LTD,188.00,16/09/2016
Assurance,Assurance,Stationery,60063188,OFFICE DEPOT UK LTD,-440.15,30/09/2016
Assurance,Assurance,Subscriptions,60061242,NATIONAL CRIME AGENCY,455.00,08/09/2016
Assurance,Assurance,Training,60061673,ASSOCIATION OF DEMOCRATIC SERVICES OFFIC,95.00,14/09/2016
Assurance,Assurance,Translation Exp / Interpret,60063374,PRIME PRODUCTION LTD,39.50,23/09/2016
Assurance,Assurance,Translation Exp / Interpret,60063378,PRIME PRODUCTION LTD,39.50,23/09/2016
Assurance,Assurance,Translation Exp / Interpret,60061881,REDACTED - PERSONAL DATA,"1,030.00",21/09/2016
Assurance,Assurance,Ttl IT & Comms,60062959,BRITISH TELECOM PLC,"3,808.86",16/09/2016
Central Expenses,Central Expenses,Insurance Claims,80005849,ALBANY ASSISTANCE LTD,"3,228.71",23/09/2016
Central Expenses,Central Expenses,Insurance Claims,80005606,AMV LAW,"1,550.00",13/09/2016
Central Expenses,Central Expenses,Insurance Claims,80005733,AXA INSURANCE,728.54,13/09/2016
Central Expenses,Central Expenses,Insurance Claims,80005734,BROWNE JACOBSON LLP,"3,270.00",13/09/2016
Central Expenses,Central Expenses,Insurance Claims,80005858,BROWNE JACOBSON LLP,"3,720.00",21/09/2016
Central Expenses,Central Expenses,Insurance Claims,60060344,CHARLES DUKES ASSESSORS,60.00,20/09/2016
Central Expenses,Central Expenses,Insurance Claims,60061350,CITY SUBURBAN TREE SURGEONS LTD,209.00,01/09/2016
Central Expenses,Central Expenses,Insurance Claims,80005913,CLARKE BARNES SOLICITORS,"2,924.00",23/09/2016
Central Expenses,Central Expenses,Insurance Claims,80005982,CORNWALL HOUSE SURGERY,30.00,30/09/2016
Central Expenses,Central Expenses,Insurance Claims,80005876,DAB RESTORATION LTD,480.00,23/09/2016
Central Expenses,Central Expenses,Insurance Claims,80005715,DAC BEACHCROFT CLAIMS LTD,"19,000.00",12/09/2016
Central Expenses,Central Expenses,Insurance Claims,80005609,DWP COMPENSATION RECOVERY UNIT,615.00,08/09/2016
Central Expenses,Central Expenses,Insurance Claims,80005610,DWP COMPENSATION RECOVERY UNIT,627.00,08/09/2016
Central Expenses,Central Expenses,Insurance Claims,80005636,DWP COMPENSATION RECOVERY UNIT,842.00,08/09/2016
Central Expenses,Central Expenses,Insurance Claims,80005933,DWP COMPENSATION RECOVERY UNIT,647.00,26/09/2016
Central Expenses,Central Expenses,Insurance Claims,80005956,DWP COMPENSATION RECOVERY UNIT,615.00,27/09/2016
Central Expenses,Central Expenses,Insurance Claims,80005647,ENTERPRISE RENT A CAR,602.06,14/09/2016
Central Expenses,Central Expenses,Insurance Claims,60061701,GLENDALE COUNTRYSIDE LTD,"1,500.00",15/09/2016
Central Expenses,Central Expenses,Insurance Claims,80005787,HENDON WAY SURGERY PRACTICE,50.00,16/09/2016
Central Expenses,Central Expenses,Insurance Claims,80005614,HUGHES WALKER SOLICITORS LTD,"6,309.98",14/09/2016
Central Expenses,Central Expenses,Insurance Claims,80005732,IRWIN MITCHELL LLP,250.00,13/09/2016
Central Expenses,Central Expenses,Insurance Claims,80005907,IRWIN MITCHELL SOLICITORS,477.10,23/09/2016
Central Expenses,Central Expenses,Insurance Claims,80005731,JINNAH SOLICITORS,"2,477.91",13/09/2016
Central Expenses,Central Expenses,Insurance Claims,80005757,LANE END MEDICAL GROUP,50.00,20/09/2016
Central Expenses,Central Expenses,Insurance Claims,60061136,LEGAL COSTS NEGOTIATORS,567.51,07/09/2016
Central Expenses,Central Expenses,Insurance Claims,60061858,LEGAL COSTS NEGOTIATORS,50.06,07/09/2016
Central Expenses,Central Expenses,Insurance Claims,80005901,NELSONS SOLICITORS,"28,000.00",23/09/2016
Central Expenses,Central Expenses,Insurance Claims,80005613,"PLEXUS LAW,","9,000.00",14/09/2016
Central Expenses,Central Expenses,Insurance Claims,80005594,PRODDOW MACKAY LTD,"1,210.56",14/09/2016
Central Expenses,Central Expenses,Insurance Claims,80005692,REDACTED - PERSONAL DATA,50.00,12/09/2016
Central Expenses,Central Expenses,Insurance Claims,80005865,ROYAL & SUN ALLIANCE,"3,500.00",23/09/2016
Central Expenses,Central Expenses,Insurance Claims,80005833,ROYAL FREE LONDON NHS TRUST,25.00,23/09/2016
Central Expenses,Central Expenses,Insurance Claims,80005955,SCOTT REES & CO,"2,000.00",27/09/2016
Central Expenses,Central Expenses,Insurance Claims,80005735,SCOTT REES & CO. SOLICITORS,"5,000.00",13/09/2016
Central Expenses,Central Expenses,Insurance Claims,80005595,SLATER & GORDON SOLICITORS,"19,118.00",08/09/2016
Central Expenses,Central Expenses,Insurance Claims,80005850,SLATER GORDON SOLUTIONS,"3,500.00",23/09/2016
Central Expenses,Central Expenses,Insurance Claims,80005851,SLATER GORDON SOLUTIONS,"4,773.30",23/09/2016
Central Expenses,Central Expenses,Insurance Claims,80006014,STONE ROWE BREWER LLP,"9,500.00",30/09/2016
Central Expenses,Central Expenses,Insurance Claims,80005940,THE NEVELLS ROAD SURGERY,50.00,23/09/2016
Central Expenses,Central Expenses,Insurance Claims,80005942,UK INSURANCE LIMITED,350.00,27/09/2016
Central Expenses,Central Expenses,Insurance Claims,80005621,UK INSURANCE LTD,"3,340.76",13/09/2016
Central Expenses,Central Expenses,Insurance Claims,80005983,WATLING MEDICAL CENTRE,50.00,30/09/2016
Central Expenses,Central Expenses,Insurance Claims,60061399,WEIGHTMANS LLP,"1,000.00",14/09/2016
Central Expenses,Central Expenses,Insurance Claims,60061580,WEIGHTMANS LLP,"1,000.00",08/09/2016
Central Expenses,Central Expenses,Insurance Claims,80005589,ZURICH MUNICIPAL PLC,570.31,13/09/2016
Central Expenses,Central Expenses,Legal and Court Fees,60062824,BEVAN BRITTAN LLP,750.00,15/09/2016
Central Expenses,Central Expenses,Miscellaneous Expenses,80005935,HM REVENUE & CUSTOMS,100.00,23/09/2016
Central Expenses,Central Expenses,Other Establishments - Third P,EBX0135241,ENVIRONMENT AGENCY,"76,899.75",22/09/2016
Central Expenses,Central Expenses,Other Establishments - Third P,EBX0134417,LEE VALLEY REGIONAL PARK AUTH.,"32,219.58",15/09/2016
Central Expenses,Central Expenses,Other Establishments - Third P,EBX0133043,LONDON PENSIONS FUND AUTHORITY,"49,627.80",07/09/2016
Central Expenses,Central Expenses,Other Establishments - Third P,EBX0132315,TRANSPORT TRADING LIMITED,"3,866,953.00",01/09/2016
Central Expenses,Central Expenses,Other Services,80005912,TLT LLP SOLICITORS,"2,000.00",23/09/2016
Commercial,Births Deaths & Marriages,Cleaning and domestic material,60062154,CHURCHILL CONTRACT SERVICES,624.26,29/09/2016
Commercial,Customer Support Group,Building Repairs & Maintenance,60062867,ABEL ALARM COMPANY LIMITED,408.00,29/09/2016
Commercial,Customer Support Group,Building Repairs & Maintenance,60062924,ABEL ALARM COMPANY LIMITED,437.00,29/09/2016
Commercial,Customer Support Group,Building Repairs & Maintenance,60063363,AD HOC PROPERTY MANAGEMENT LTD,875.00,29/09/2016
Commercial,Customer Support Group,Building Repairs & Maintenance,60061744,ADAMS ENVIRONMENTAL LTD,"1,800.00",08/09/2016
Commercial,Customer Support Group,Building Repairs & Maintenance,60063201,AFFINITY WATER LIMITED,16.29,20/09/2016
Commercial,Customer Support Group,Building Repairs & Maintenance,60062062,COLT INTERNATIONAL LTD,"3,268.00",15/09/2016
Commercial,Customer Support Group,Building Repairs & Maintenance,10013449,DEPARTMENT OF ENERGY & CLIMATE CHAN,"196,986.40",07/09/2016
Commercial,Customer Support Group,Building Repairs & Maintenance,60061974,DOORWAY-MAINTENANCE CO.,289.60,08/09/2016
Commercial,Customer Support Group,Building Repairs & Maintenance,60061988,DOORWAY-MAINTENANCE CO.,250.00,08/09/2016
Commercial,Customer Support Group,Building Repairs & Maintenance,60061581,EVAC & CHAIR INTERNATIONAL LTD,365.00,08/09/2016
Commercial,Customer Support Group,Building Repairs & Maintenance,60061753,FRONTIER-PITTS LTD,310.90,20/09/2016
Commercial,Customer Support Group,Building Repairs & Maintenance,60033529,HERTEL (UK) LTD,40.83,08/09/2016
Commercial,Customer Support Group,Building Repairs & Maintenance,60061461,HERTEL (UK) LTD,166.25,08/09/2016
Commercial,Customer Support Group,Building Repairs & Maintenance,60061466,HERTEL (UK) LTD,199.50,08/09/2016
Commercial,Customer Support Group,Building Repairs & Maintenance,60061469,HERTEL (UK) LTD,133.00,08/09/2016
Commercial,Customer Support Group,Building Repairs & Maintenance,60061472,HERTEL (UK) LTD,166.25,08/09/2016
Commercial,Customer Support Group,Building Repairs & Maintenance,60061473,HERTEL (UK) LTD,199.50,08/09/2016
Commercial,Customer Support Group,Building Repairs & Maintenance,60061474,HERTEL (UK) LTD,133.00,08/09/2016
Commercial,Customer Support Group,Building Repairs & Maintenance,60061480,HERTEL (UK) LTD,116.38,08/09/2016
Commercial,Customer Support Group,Building Repairs & Maintenance,60061487,HERTEL (UK) LTD,116.38,08/09/2016
Commercial,Customer Support Group,Building Repairs & Maintenance,60061497,HERTEL (UK) LTD,133.00,08/09/2016
Commercial,Customer Support Group,Building Repairs & Maintenance,60061508,HERTEL (UK) LTD,133.00,08/09/2016
Commercial,Customer Support Group,Building Repairs & Maintenance,60061516,HERTEL (UK) LTD,116.38,08/09/2016
Commercial,Customer Support Group,Building Repairs & Maintenance,60062803,HERTEL (UK) LTD,270.00,15/09/2016
Commercial,Customer Support Group,Building Repairs & Maintenance,60062805,HERTEL (UK) LTD,38.79,15/09/2016
Commercial,Customer Support Group,Building Repairs & Maintenance,60062808,HERTEL (UK) LTD,38.79,15/09/2016
Commercial,Customer Support Group,Building Repairs & Maintenance,60062809,HERTEL (UK) LTD,38.79,15/09/2016
Commercial,Customer Support Group,Building Repairs & Maintenance,60062813,HERTEL (UK) LTD,38.79,15/09/2016
Commercial,Customer Support Group,Building Repairs & Maintenance,60062814,HERTEL (UK) LTD,38.79,15/09/2016
Commercial,Customer Support Group,Building Repairs & Maintenance,60062815,HERTEL (UK) LTD,38.79,15/09/2016
Commercial,Customer Support Group,Building Repairs & Maintenance,60062816,HERTEL (UK) LTD,38.79,15/09/2016
Commercial,Customer Support Group,Building Repairs & Maintenance,60062821,HERTEL (UK) LTD,38.79,15/09/2016
Commercial,Customer Support Group,Building Repairs & Maintenance,60062822,HERTEL (UK) LTD,66.50,15/09/2016
Commercial,Customer Support Group,Building Repairs & Maintenance,60062823,HERTEL (UK) LTD,38.79,19/09/2016
Commercial,Customer Support Group,Building Repairs & Maintenance,60062826,HERTEL (UK) LTD,38.79,15/09/2016
Commercial,Customer Support Group,Building Repairs & Maintenance,60062828,HERTEL (UK) LTD,38.79,15/09/2016
Commercial,Customer Support Group,Building Repairs & Maintenance,60062834,HERTEL (UK) LTD,38.79,15/09/2016
Commercial,Customer Support Group,Building Repairs & Maintenance,60062835,HERTEL (UK) LTD,66.50,15/09/2016
Commercial,Customer Support Group,Building Repairs & Maintenance,60062836,HERTEL (UK) LTD,38.79,15/09/2016
Commercial,Customer Support Group,Building Repairs & Maintenance,60062838,HERTEL (UK) LTD,38.79,15/09/2016
Commercial,Customer Support Group,Building Repairs & Maintenance,60062839,HERTEL (UK) LTD,38.79,15/09/2016
Commercial,Customer Support Group,Building Repairs & Maintenance,60062840,HERTEL (UK) LTD,38.79,15/09/2016
Commercial,Customer Support Group,Building Repairs & Maintenance,60062844,HERTEL (UK) LTD,38.79,15/09/2016
Commercial,Customer Support Group,Building Repairs & Maintenance,60062845,HERTEL (UK) LTD,38.79,15/09/2016
Commercial,Customer Support Group,Building Repairs & Maintenance,60062846,HERTEL (UK) LTD,38.79,15/09/2016
Commercial,Customer Support Group,Building Repairs & Maintenance,60062851,HERTEL (UK) LTD,38.79,15/09/2016
Commercial,Customer Support Group,Building Repairs & Maintenance,60062855,HERTEL (UK) LTD,38.79,15/09/2016
Commercial,Customer Support Group,Building Repairs & Maintenance,60062856,HERTEL (UK) LTD,38.79,15/09/2016
Commercial,Customer Support Group,Building Repairs & Maintenance,60062857,HERTEL (UK) LTD,38.79,15/09/2016
Commercial,Customer Support Group,Building Repairs & Maintenance,60062860,HERTEL (UK) LTD,38.79,15/09/2016
Commercial,Customer Support Group,Building Repairs & Maintenance,60062861,HERTEL (UK) LTD,38.79,15/09/2016
Commercial,Customer Support Group,Building Repairs & Maintenance,60062865,HERTEL (UK) LTD,38.79,15/09/2016
Commercial,Customer Support Group,Building Repairs & Maintenance,60062868,HERTEL (UK) LTD,38.79,15/09/2016
Commercial,Customer Support Group,Building Repairs & Maintenance,60062871,HERTEL (UK) LTD,38.79,15/09/2016
Commercial,Customer Support Group,Building Repairs & Maintenance,60062872,HERTEL (UK) LTD,38.79,15/09/2016
Commercial,Customer Support Group,Building Repairs & Maintenance,60062873,HERTEL (UK) LTD,38.79,15/09/2016
Commercial,Customer Support Group,Building Repairs & Maintenance,60062876,HERTEL (UK) LTD,38.79,15/09/2016
Commercial,Customer Support Group,Building Repairs & Maintenance,60062877,HERTEL (UK) LTD,66.50,15/09/2016
Commercial,Customer Support Group,Building Repairs & Maintenance,60062879,HERTEL (UK) LTD,38.79,15/09/2016
Commercial,Customer Support Group,Building Repairs & Maintenance,60062883,HERTEL (UK) LTD,38.79,15/09/2016
Commercial,Customer Support Group,Building Repairs & Maintenance,60062884,HERTEL (UK) LTD,38.79,15/09/2016
Commercial,Customer Support Group,Building Repairs & Maintenance,60062886,HERTEL (UK) LTD,38.79,15/09/2016
Commercial,Customer Support Group,Building Repairs & Maintenance,60062891,HERTEL (UK) LTD,38.79,20/09/2016
Commercial,Customer Support Group,Building Repairs & Maintenance,60062896,HERTEL (UK) LTD,38.79,15/09/2016
Commercial,Customer Support Group,Building Repairs & Maintenance,60062897,HERTEL (UK) LTD,38.79,15/09/2016
Commercial,Customer Support Group,Building Repairs & Maintenance,60062898,HERTEL (UK) LTD,38.79,15/09/2016
Commercial,Customer Support Group,Building Repairs & Maintenance,60062899,HERTEL (UK) LTD,38.79,20/09/2016
Commercial,Customer Support Group,Building Repairs & Maintenance,60062900,HERTEL (UK) LTD,38.79,15/09/2016
Commercial,Customer Support Group,Building Repairs & Maintenance,60062902,HERTEL (UK) LTD,38.79,15/09/2016
Commercial,Customer Support Group,Building Repairs & Maintenance,60062903,HERTEL (UK) LTD,38.79,15/09/2016
Commercial,Customer Support Group,Building Repairs & Maintenance,60062904,HERTEL (UK) LTD,38.79,15/09/2016
Commercial,Customer Support Group,Building Repairs & Maintenance,60062907,HERTEL (UK) LTD,38.79,15/09/2016
Commercial,Customer Support Group,Building Repairs & Maintenance,60062908,HERTEL (UK) LTD,38.79,15/09/2016
Commercial,Customer Support Group,Building Repairs & Maintenance,60062909,HERTEL (UK) LTD,38.79,20/09/2016
Commercial,Customer Support Group,Building Repairs & Maintenance,60062910,HERTEL (UK) LTD,66.50,15/09/2016
Commercial,Customer Support Group,Building Repairs & Maintenance,60062914,HERTEL (UK) LTD,180.00,15/09/2016
Commercial,Customer Support Group,Building Repairs & Maintenance,60062916,HERTEL (UK) LTD,38.79,15/09/2016
Commercial,Customer Support Group,Building Repairs & Maintenance,60062919,HERTEL (UK) LTD,38.79,15/09/2016
Commercial,Customer Support Group,Building Repairs & Maintenance,60062929,HERTEL (UK) LTD,38.79,15/09/2016
Commercial,Customer Support Group,Building Repairs & Maintenance,60062934,HERTEL (UK) LTD,38.79,15/09/2016
Commercial,Customer Support Group,Building Repairs & Maintenance,60062937,HERTEL (UK) LTD,38.79,15/09/2016
Commercial,Customer Support Group,Building Repairs & Maintenance,60062941,HERTEL (UK) LTD,66.50,15/09/2016
Commercial,Customer Support Group,Building Repairs & Maintenance,60062943,HERTEL (UK) LTD,38.79,15/09/2016
Commercial,Customer Support Group,Building Repairs & Maintenance,60062944,HERTEL (UK) LTD,38.79,15/09/2016
Commercial,Customer Support Group,Building Repairs & Maintenance,60062946,HERTEL (UK) LTD,38.79,15/09/2016
Commercial,Customer Support Group,Building Repairs & Maintenance,60062160,IRIS GARDENING SERVICES LTD,250.00,08/09/2016
Commercial,Customer Support Group,Building Repairs & Maintenance,60058915,LEE SECURITY LONDON LIMITED,155.00,21/09/2016
Commercial,Customer Support Group,Building Repairs & Maintenance,60058922,LEE SECURITY LONDON LIMITED,82.00,21/09/2016
Commercial,Customer Support Group,Building Repairs & Maintenance,60062087,LEE SECURITY LONDON LIMITED,477.00,02/09/2016
Commercial,Customer Support Group,Building Repairs & Maintenance,60062095,LEE SECURITY LONDON LIMITED,566.00,02/09/2016
Commercial,Customer Support Group,Building Repairs & Maintenance,60062099,LEE SECURITY LONDON LIMITED,482.00,02/09/2016
Commercial,Customer Support Group,Building Repairs & Maintenance,60062104,LEE SECURITY LONDON LIMITED,566.00,02/09/2016
Commercial,Customer Support Group,Building Repairs & Maintenance,60062125,LEE SECURITY LONDON LIMITED,477.00,02/09/2016
Commercial,Customer Support Group,Building Repairs & Maintenance,60062142,LEE SECURITY LONDON LIMITED,477.00,02/09/2016
Commercial,Customer Support Group,Building Repairs & Maintenance,60062961,LEE SECURITY LONDON LIMITED,57.20,16/09/2016
Commercial,Customer Support Group,Building Repairs & Maintenance,60063019,LEE SECURITY LONDON LIMITED,82.00,20/09/2016
Commercial,Customer Support Group,Building Repairs & Maintenance,60063147,LEE SECURITY LONDON LIMITED,84.80,20/09/2016
Commercial,Customer Support Group,Building Repairs & Maintenance,60063153,LEE SECURITY LONDON LIMITED,15.00,28/09/2016
Commercial,Customer Support Group,Building Repairs & Maintenance,60063512,LEE SECURITY LONDON LIMITED,95.00,26/09/2016
Commercial,Customer Support Group,Building Repairs & Maintenance,60058723,LIFT & ENGINEERING SERVICES LTD,222.06,08/09/2016
Commercial,Customer Support Group,Building Repairs & Maintenance,60061289,LIFT & ENGINEERING SERVICES LTD,587.28,13/09/2016
Commercial,Customer Support Group,Building Repairs & Maintenance,60063207,LIFT & ENGINEERING SERVICES LTD,94.21,20/09/2016
Commercial,Customer Support Group,Building Repairs & Maintenance,60063214,LIFT & ENGINEERING SERVICES LTD,94.21,20/09/2016
Commercial,Customer Support Group,Building Repairs & Maintenance,60063229,LIFT & ENGINEERING SERVICES LTD,94.21,20/09/2016
Commercial,Customer Support Group,Building Repairs & Maintenance,60063237,LIFT & ENGINEERING SERVICES LTD,94.21,20/09/2016
Commercial,Customer Support Group,Building Repairs & Maintenance,60028436,OAKRAY LIMITED,64.00,28/09/2016
Commercial,Customer Support Group,Building Repairs & Maintenance,60032138,OAKRAY LIMITED,176.00,28/09/2016
Commercial,Customer Support Group,Building Repairs & Maintenance,60043365,OAKRAY LIMITED,32.00,28/09/2016
Commercial,Customer Support Group,Building Repairs & Maintenance,60043475,OAKRAY LIMITED,56.00,28/09/2016
Commercial,Customer Support Group,Building Repairs & Maintenance,60043520,OAKRAY LIMITED,64.00,28/09/2016
Commercial,Customer Support Group,Building Repairs & Maintenance,60043544,OAKRAY LIMITED,64.00,28/09/2016
Commercial,Customer Support Group,Building Repairs & Maintenance,60043635,OAKRAY LIMITED,"1,110.32",28/09/2016
Commercial,Customer Support Group,Building Repairs & Maintenance,60047394,OAKRAY LIMITED,56.00,28/09/2016
Commercial,Customer Support Group,Building Repairs & Maintenance,60047531,OAKRAY LIMITED,974.02,28/09/2016
Commercial,Customer Support Group,Building Repairs & Maintenance,60048074,OAKRAY LIMITED,72.00,28/09/2016
Commercial,Customer Support Group,Building Repairs & Maintenance,60048087,OAKRAY LIMITED,80.00,28/09/2016
Commercial,Customer Support Group,Building Repairs & Maintenance,60048100,OAKRAY LIMITED,64.00,28/09/2016
Commercial,Customer Support Group,Building Repairs & Maintenance,60048104,OAKRAY LIMITED,64.00,28/09/2016
Commercial,Customer Support Group,Building Repairs & Maintenance,60048122,OAKRAY LIMITED,80.00,28/09/2016
Commercial,Customer Support Group,Building Repairs & Maintenance,60048127,OAKRAY LIMITED,80.00,28/09/2016
Commercial,Customer Support Group,Building Repairs & Maintenance,60048141,OAKRAY LIMITED,56.00,28/09/2016
Commercial,Customer Support Group,Building Repairs & Maintenance,60048185,OAKRAY LIMITED,80.00,28/09/2016
Commercial,Customer Support Group,Building Repairs & Maintenance,60048189,OAKRAY LIMITED,80.00,28/09/2016
Commercial,Customer Support Group,Building Repairs & Maintenance,60048216,OAKRAY LIMITED,72.00,28/09/2016
Commercial,Customer Support Group,Building Repairs & Maintenance,60048255,OAKRAY LIMITED,64.00,28/09/2016
Commercial,Customer Support Group,Building Repairs & Maintenance,60048273,OAKRAY LIMITED,64.00,28/09/2016
Commercial,Customer Support Group,Building Repairs & Maintenance,60048280,OAKRAY LIMITED,120.00,28/09/2016
Commercial,Customer Support Group,Building Repairs & Maintenance,60048339,OAKRAY LIMITED,64.00,28/09/2016
Commercial,Customer Support Group,Building Repairs & Maintenance,60048342,OAKRAY LIMITED,56.00,28/09/2016
Commercial,Customer Support Group,Building Repairs & Maintenance,60048356,OAKRAY LIMITED,64.00,28/09/2016
Commercial,Customer Support Group,Building Repairs & Maintenance,60048385,OAKRAY LIMITED,64.00,28/09/2016
Commercial,Customer Support Group,Building Repairs & Maintenance,60048394,OAKRAY LIMITED,56.00,28/09/2016
Commercial,Customer Support Group,Building Repairs & Maintenance,60053772,OAKRAY LIMITED,80.00,28/09/2016
Commercial,Customer Support Group,Building Repairs & Maintenance,60055563,OAKRAY LIMITED,595.15,06/09/2016
Commercial,Customer Support Group,Building Repairs & Maintenance,60062568,OAKRAY LIMITED,288.00,29/09/2016
Commercial,Customer Support Group,Building Repairs & Maintenance,60063045,OAKRAY LIMITED,64.00,19/09/2016
Commercial,Customer Support Group,Building Repairs & Maintenance,60063070,OAKRAY LIMITED,80.00,19/09/2016
Commercial,Customer Support Group,Building Repairs & Maintenance,60063152,OAKRAY LIMITED,156.00,19/09/2016
Commercial,Customer Support Group,Building Repairs & Maintenance,60063175,OAKRAY LIMITED,56.00,20/09/2016
Commercial,Customer Support Group,Building Repairs & Maintenance,60063204,OAKRAY LIMITED,56.00,20/09/2016
Commercial,Customer Support Group,Building Repairs & Maintenance,60063225,OAKRAY LIMITED,80.00,20/09/2016
Commercial,Customer Support Group,Building Repairs & Maintenance,60063228,OAKRAY LIMITED,64.00,20/09/2016
Commercial,Customer Support Group,Building Repairs & Maintenance,60063231,OAKRAY LIMITED,72.00,20/09/2016
Commercial,Customer Support Group,Building Repairs & Maintenance,60063233,OAKRAY LIMITED,72.00,20/09/2016
Commercial,Customer Support Group,Building Repairs & Maintenance,60063236,OAKRAY LIMITED,160.00,20/09/2016
Commercial,Customer Support Group,Building Repairs & Maintenance,60063247,OAKRAY LIMITED,144.00,20/09/2016
Commercial,Customer Support Group,Building Repairs & Maintenance,60063248,OAKRAY LIMITED,64.00,20/09/2016
Commercial,Customer Support Group,Building Repairs & Maintenance,60063249,OAKRAY LIMITED,72.00,20/09/2016
Commercial,Customer Support Group,Building Repairs & Maintenance,60063252,OAKRAY LIMITED,177.22,20/09/2016
Commercial,Customer Support Group,Building Repairs & Maintenance,60063265,OAKRAY LIMITED,64.00,20/09/2016
Commercial,Customer Support Group,Building Repairs & Maintenance,60063270,OAKRAY LIMITED,64.00,20/09/2016
Commercial,Customer Support Group,Building Repairs & Maintenance,60063277,OAKRAY LIMITED,80.00,20/09/2016
Commercial,Customer Support Group,Building Repairs & Maintenance,60060788,RGE SERVICES,225.95,05/09/2016
Commercial,Customer Support Group,Building Repairs & Maintenance,60061299,RGE SERVICES,62.00,08/09/2016
Commercial,Customer Support Group,Building Repairs & Maintenance,60061306,RGE SERVICES,62.00,08/09/2016
Commercial,Customer Support Group,Building Repairs & Maintenance,60061307,RGE SERVICES,93.70,08/09/2016
Commercial,Customer Support Group,Building Repairs & Maintenance,60061310,RGE SERVICES,67.79,08/09/2016
Commercial,Customer Support Group,Building Repairs & Maintenance,60061317,RGE SERVICES,203.24,08/09/2016
Commercial,Customer Support Group,Building Repairs & Maintenance,60061320,RGE SERVICES,62.00,08/09/2016
Commercial,Customer Support Group,Building Repairs & Maintenance,60061326,RGE SERVICES,62.00,08/09/2016
Commercial,Customer Support Group,Building Repairs & Maintenance,60061354,RGE SERVICES,184.29,08/09/2016
Commercial,Customer Support Group,Building Repairs & Maintenance,60061356,RGE SERVICES,40.90,08/09/2016
Commercial,Customer Support Group,Building Repairs & Maintenance,60061394,RGE SERVICES,186.92,08/09/2016
Commercial,Customer Support Group,Building Repairs & Maintenance,60061433,RGE SERVICES,"1,041.20",08/09/2016
Commercial,Customer Support Group,Building Repairs & Maintenance,60061533,RGE SERVICES,79.40,07/09/2016
Commercial,Customer Support Group,Building Repairs & Maintenance,60061577,RGE SERVICES,77.69,05/09/2016
Commercial,Customer Support Group,Building Repairs & Maintenance,60061615,RGE SERVICES,62.00,05/09/2016
Commercial,Customer Support Group,Building Repairs & Maintenance,60061638,RGE SERVICES,61.75,08/09/2016
Commercial,Customer Support Group,Building Repairs & Maintenance,60061721,RGE SERVICES,353.95,08/09/2016
Commercial,Customer Support Group,Building Repairs & Maintenance,60061724,RGE SERVICES,190.94,15/09/2016
Commercial,Customer Support Group,Building Repairs & Maintenance,60061735,RGE SERVICES,67.69,15/09/2016
Commercial,Customer Support Group,Building Repairs & Maintenance,60061736,RGE SERVICES,67.69,15/09/2016
Commercial,Customer Support Group,Building Repairs & Maintenance,60061740,RGE SERVICES,62.00,22/09/2016
Commercial,Customer Support Group,Building Repairs & Maintenance,60061743,RGE SERVICES,258.40,08/09/2016
Commercial,Customer Support Group,Building Repairs & Maintenance,60061755,RGE SERVICES,175.99,15/09/2016
Commercial,Customer Support Group,Building Repairs & Maintenance,60061764,RGE SERVICES,267.65,15/09/2016
Commercial,Customer Support Group,Building Repairs & Maintenance,60061779,RGE SERVICES,267.61,15/09/2016
Commercial,Customer Support Group,Building Repairs & Maintenance,60061781,RGE SERVICES,27.08,15/09/2016
Commercial,Customer Support Group,Building Repairs & Maintenance,60061786,RGE SERVICES,49.64,15/09/2016
Commercial,Customer Support Group,Building Repairs & Maintenance,60061788,RGE SERVICES,126.35,15/09/2016
Commercial,Customer Support Group,Building Repairs & Maintenance,60061808,RGE SERVICES,636.27,15/09/2016
Commercial,Customer Support Group,Building Repairs & Maintenance,60061809,RGE SERVICES,636.34,15/09/2016
Commercial,Customer Support Group,Building Repairs & Maintenance,60061813,RGE SERVICES,99.28,15/09/2016
Commercial,Customer Support Group,Building Repairs & Maintenance,60061815,RGE SERVICES,31.00,15/09/2016
Commercial,Customer Support Group,Building Repairs & Maintenance,60061816,RGE SERVICES,103.79,15/09/2016
Commercial,Customer Support Group,Building Repairs & Maintenance,60062346,RGE SERVICES,62.00,29/09/2016
Commercial,Customer Support Group,Building Repairs & Maintenance,60062358,RGE SERVICES,62.00,29/09/2016
Commercial,Customer Support Group,Building Repairs & Maintenance,60062363,RGE SERVICES,62.00,29/09/2016
Commercial,Customer Support Group,Building Repairs & Maintenance,60062368,RGE SERVICES,183.09,29/09/2016
Commercial,Customer Support Group,Building Repairs & Maintenance,60062388,RGE SERVICES,62.00,29/09/2016
Commercial,Customer Support Group,Building Repairs & Maintenance,60062392,RGE SERVICES,75.72,29/09/2016
Commercial,Customer Support Group,Building Repairs & Maintenance,60062404,RGE SERVICES,44.72,29/09/2016
Commercial,Customer Support Group,Building Repairs & Maintenance,60062405,RGE SERVICES,27.53,29/09/2016
Commercial,Customer Support Group,Building Repairs & Maintenance,60062407,RGE SERVICES,62.00,29/09/2016
Commercial,Customer Support Group,Building Repairs & Maintenance,60062408,RGE SERVICES,62.00,29/09/2016
Commercial,Customer Support Group,Building Repairs & Maintenance,60062413,RGE SERVICES,27.53,29/09/2016
Commercial,Customer Support Group,Building Repairs & Maintenance,60062935,RGE SERVICES,397.20,29/09/2016
Commercial,Customer Support Group,Building Repairs & Maintenance,60063368,RGE SERVICES,709.75,22/09/2016
Commercial,Customer Support Group,Building Repairs & Maintenance,60063422,RGE SERVICES,514.49,29/09/2016
Commercial,Customer Support Group,Building Repairs & Maintenance,60063550,RGE SERVICES,"1,441.04",26/09/2016
Commercial,Customer Support Group,Building Repairs & Maintenance,60060791,ROMFORD INSULATIONS LTD.,"1,750.00",08/09/2016
Commercial,Customer Support Group,Building Repairs & Maintenance,60052044,S W BRUCE & CO LTD,117.82,21/09/2016
Commercial,Customer Support Group,Building Repairs & Maintenance,60057680,S W BRUCE & CO LTD,211.39,21/09/2016
Commercial,Customer Support Group,Building Repairs & Maintenance,60060393,S W BRUCE & CO LTD,86.10,08/09/2016
Commercial,Customer Support Group,Building Repairs & Maintenance,60060761,S W BRUCE & CO LTD,101.44,06/09/2016
Commercial,Customer Support Group,Building Repairs & Maintenance,60060765,S W BRUCE & CO LTD,64.60,06/09/2016
Commercial,Customer Support Group,Building Repairs & Maintenance,60060767,S W BRUCE & CO LTD,95.67,06/09/2016
Commercial,Customer Support Group,Building Repairs & Maintenance,60060773,S W BRUCE & CO LTD,66.56,06/09/2016
Commercial,Customer Support Group,Building Repairs & Maintenance,60060774,S W BRUCE & CO LTD,84.13,06/09/2016
Commercial,Customer Support Group,Building Repairs & Maintenance,60060775,S W BRUCE & CO LTD,53.24,06/09/2016
Commercial,Customer Support Group,Building Repairs & Maintenance,60060795,S W BRUCE & CO LTD,95.67,06/09/2016
Commercial,Customer Support Group,Building Repairs & Maintenance,60060798,S W BRUCE & CO LTD,95.60,06/09/2016
Commercial,Customer Support Group,Building Repairs & Maintenance,60060802,S W BRUCE & CO LTD,78.38,06/09/2016
Commercial,Customer Support Group,Building Repairs & Maintenance,60060806,S W BRUCE & CO LTD,43.21,06/09/2016
Commercial,Customer Support Group,Building Repairs & Maintenance,60060807,S W BRUCE & CO LTD,148.99,06/09/2016
Commercial,Customer Support Group,Building Repairs & Maintenance,60060824,S W BRUCE & CO LTD,64.60,06/09/2016
Commercial,Customer Support Group,Building Repairs & Maintenance,60062141,WINTERS HAULAGE LTD,240.00,08/09/2016
Commercial,Customer Support Group,Cleaning and domestic material,60062194,CHURCHILL CONTRACT SERVICES,"1,032.37",29/09/2016
Commercial,Customer Support Group,Cleaning and domestic material,60062221,CHURCHILL CONTRACT SERVICES,"11,562.54",29/09/2016
Commercial,Customer Support Group,Cleaning and domestic material,60062228,CHURCHILL CONTRACT SERVICES,"7,329.82",29/09/2016
Commercial,Customer Support Group,Cleaning and domestic material,60062250,CHURCHILL CONTRACT SERVICES,661.80,29/09/2016
Commercial,Customer Support Group,Cleaning and domestic material,60062252,CHURCHILL CONTRACT SERVICES,"1,133.45",29/09/2016
Commercial,Customer Support Group,Cleaning and domestic material,60062335,CHURCHILL CONTRACT SERVICES,83.85,29/09/2016
Commercial,Customer Support Group,Cleaning and domestic material,60062373,HERTFORDSHIRE SUPPLIES   COUNTY CO,"1,872.30",07/09/2016
Commercial,Customer Support Group,Cleaning and domestic material,60062380,HERTFORDSHIRE SUPPLIES   COUNTY CO,144.00,07/09/2016
Commercial,Customer Support Group,Cleaning and domestic material,60062396,HERTFORDSHIRE SUPPLIES   COUNTY CO,309.80,07/09/2016
Commercial,Customer Support Group,Cleaning and domestic material,60062399,HERTFORDSHIRE SUPPLIES   COUNTY CO,158.25,07/09/2016
Commercial,Customer Support Group,Cleaning and domestic material,60062414,HERTFORDSHIRE SUPPLIES   COUNTY CO,591.90,07/09/2016
Commercial,Customer Support Group,Consultants Fees,80005545,HOMERACK,89.00,14/09/2016
Commercial,Customer Support Group,Contract Cleaning,60062171,CHURCHILL CONTRACT SERVICES,294.16,29/09/2016
Commercial,Customer Support Group,CSG Services Contract Payment,10013450,CAPITA BUSINESS SERVICES LTD,"-170,881.00",13/09/2016
Commercial,Customer Support Group,CSG Services Contract Payment,10013459,CAPITA BUSINESS SERVICES LTD,"-150,699.00",27/09/2016
Commercial,Customer Support Group,CSG Services Contract Payment,10013460,CAPITA BUSINESS SERVICES LTD,"-4,935.00",27/09/2016
Commercial,Customer Support Group,CSG Services Contract Payment,60060589,CAPITA BUSINESS SERVICES LTD,"36,228.00",05/09/2016
Commercial,Customer Support Group,CSG Services Contract Payment,60060644,CAPITA BUSINESS SERVICES LTD,"150,216.00",05/09/2016
Commercial,Customer Support Group,CSG Services Contract Payment,60060651,CAPITA BUSINESS SERVICES LTD,"49,568.51",01/09/2016
Commercial,Customer Support Group,CSG Services Contract Payment,60061282,CAPITA BUSINESS SERVICES LTD,"122,318.00",02/09/2016
Commercial,Customer Support Group,CSG Services Contract Payment,60061705,CAPITA BUSINESS SERVICES LTD,"98,039.00",07/09/2016
Commercial,Customer Support Group,CSG Services Contract Payment,60061780,CAPITA BUSINESS SERVICES LTD,"15,569.40",05/09/2016
Commercial,Customer Support Group,CSG Services Contract Payment,60062058,CAPITA BUSINESS SERVICES LTD,"41,324.80",13/09/2016
Commercial,Customer Support Group,CSG Services Contract Payment,60062712,CAPITA BUSINESS SERVICES LTD,"6,344,127.00",13/09/2016
Commercial,Customer Support Group,CSG Services Contract Payment,60062831,CAPITA BUSINESS SERVICES LTD,"805,974.00",27/09/2016
Commercial,Customer Support Group,CSG Services Contract Payment,60062892,CAPITA BUSINESS SERVICES LTD,"126,965.00",27/09/2016
Commercial,Customer Support Group,CSG Services Contract Payment,60063187,CAPITA BUSINESS SERVICES LTD,"18,569.26",29/09/2016
Commercial,Customer Support Group,CSG Services Contract Payment,60063267,CAPITA BUSINESS SERVICES LTD,"53,763.95",29/09/2016
Commercial,Customer Support Group,CSG Services Contract Payment,60063813,CAPITA BUSINESS SERVICES LTD,"12,000.00",30/09/2016
Commercial,Customer Support Group,Electricity,60062089,BRITISH GAS BUSINESS(ELEC),828.04,02/09/2016
Commercial,Customer Support Group,Electricity,10013470,E-ON ENERGY,15.80,30/09/2016
Commercial,Customer Support Group,Electricity,10013471,E-ON ENERGY,6.85,30/09/2016
Commercial,Customer Support Group,Electricity,60057803,E-ON ENERGY,93.54,26/09/2016
Commercial,Customer Support Group,Electricity,60061887,E-ON ENERGY,10.00,20/09/2016
Commercial,Customer Support Group,Electricity,60063529,E-ON ENERGY,139.43,26/09/2016
Commercial,Customer Support Group,Electricity,60063759,E-ON ENERGY,77.07,29/09/2016
Commercial,Customer Support Group,Electricity,60063772,E-ON ENERGY,125.23,29/09/2016
Commercial,Customer Support Group,Electricity,60062084,KENT COUNTY COUNCIL (KCS),"1,149.34",05/09/2016
Commercial,Customer Support Group,Electricity,10013473,NPOWER,474.33,30/09/2016
Commercial,Customer Support Group,Electricity,60063224,NPOWER,17.20,20/09/2016
Commercial,Customer Support Group,Electricity,60061490,OPUS ENERGY LTD,6.00,07/09/2016
Commercial,Customer Support Group,Electricity,60061496,OPUS ENERGY LTD,5.80,07/09/2016
Commercial,Customer Support Group,Electricity,60061524,OPUS ENERGY LTD,5.81,07/09/2016
Commercial,Customer Support Group,Electricity,60061526,OPUS ENERGY LTD,6.00,07/09/2016
Commercial,Customer Support Group,Electricity,60061996,SCOTTISH POWER GROUP,856.95,23/09/2016
Commercial,Customer Support Group,Equipment and Materials Purcha,60061541,EVAC & CHAIR INTERNATIONAL LTD,200.00,08/09/2016
Commercial,Customer Support Group,Equipment and Materials Purcha,60061578,EVAC & CHAIR INTERNATIONAL LTD,970.00,08/09/2016
Commercial,Customer Support Group,Equipment and Materials Purcha,60061486,HERTEL (UK) LTD,199.50,08/09/2016
Commercial,Customer Support Group,Equipment and Materials Purcha,60062881,HERTEL (UK) LTD,38.79,15/09/2016
Commercial,Customer Support Group,Equipment and Materials Purcha,60062905,HERTEL (UK) LTD,38.79,15/09/2016
Commercial,Customer Support Group,Furniture-Purchase-Repair,60063745,C.E.S.,224.17,29/09/2016
Commercial,Customer Support Group,Furniture-Purchase-Repair,60062610,SCREWFIX DIRECT LTD,156.56,13/09/2016
Commercial,Customer Support Group,Furniture-Purchase-Repair,60063305,SCREWFIX DIRECT LTD,57.45,23/09/2016
Commercial,Customer Support Group,Furniture-Purchase-Repair,60063572,SCREWFIX DIRECT LTD,45.81,30/09/2016
Commercial,Customer Support Group,Furniture-Purchase-Repair,60058894,SENATOR INTERNATIONAL,950.40,26/09/2016
Commercial,Customer Support Group,Furniture-Purchase-Repair,60060646,WAGSTAFF INTERIORS GROUP,10.00,01/09/2016
Commercial,Customer Support Group,Gas,60062574,BRITISH GAS BUSINESS,166.00,12/09/2016
Commercial,Customer Support Group,Gas,60061458,KENT COUNTY COUNCIL (KCS),"1,714.92",05/09/2016
Commercial,Customer Support Group,Gas,60061596,KENT COUNTY COUNCIL (KCS),175.46,08/09/2016
Commercial,Customer Support Group,Gas,60062350,KENT COUNTY COUNCIL (KCS),112.15,07/09/2016
Commercial,Customer Support Group,Gas,60062353,KENT COUNTY COUNCIL (KCS),97.88,08/09/2016
Commercial,Customer Support Group,Gas,60062598,KENT COUNTY COUNCIL (KCS),62.64,15/09/2016
Commercial,Customer Support Group,Gas,60062631,KENT COUNTY COUNCIL (KCS),94.05,15/09/2016
Commercial,Customer Support Group,Gas,60063172,KENT COUNTY COUNCIL (KCS),"1,044.93",30/09/2016
Commercial,Customer Support Group,Gas,60063336,KENT COUNTY COUNCIL (KCS),51.52,30/09/2016
Commercial,Customer Support Group,Gas,60063383,KENT COUNTY COUNCIL (KCS),118.80,30/09/2016
Commercial,Customer Support Group,Gas,60063389,KENT COUNTY COUNCIL (KCS),342.48,30/09/2016
Commercial,Customer Support Group,Other Services,10013457,BLUE 9 SECURITY LIMITED,"21,755.16",20/09/2016
Commercial,Customer Support Group,Other Services,60062355,BLUE 9 SECURITY LIMITED,"11,584.08",08/09/2016
Commercial,Customer Support Group,Other Services,60062357,BLUE 9 SECURITY LIMITED,980.91,08/09/2016
Commercial,Customer Support Group,Other Services,60062394,BLUE 9 SECURITY LIMITED,"22,773.84",08/09/2016
Commercial,Customer Support Group,Other Services,60062400,BLUE 9 SECURITY LIMITED,"1,586.84",08/09/2016
Commercial,Customer Support Group,Other Services,60063410,BLUE 9 SECURITY LIMITED,13.43,22/09/2016
Commercial,Customer Support Group,Other Services,60063414,BLUE 9 SECURITY LIMITED,214.88,22/09/2016
Commercial,Customer Support Group,Other Services,60062391,LEASING PROGRAMMES LIMITED,"1,235.00",29/09/2016
Commercial,Customer Support Group,Other Services,60060983,X-VERMINATOR PEST CONTROL,130.00,01/09/2016
Commercial,Customer Support Group,Postage,60062276,CPI LONDON,5.00,20/09/2016
Commercial,Customer Support Group,Postage,60060212,ROYAL MAIL GROUP LIMITED,"4,537.10",05/09/2016
Commercial,Customer Support Group,Postage,60061959,ROYAL MAIL GROUP LIMITED,"4,011.59",02/09/2016
Commercial,Customer Support Group,Postage,60061971,ROYAL MAIL GROUP LIMITED,"3,602.60",29/09/2016
Commercial,Customer Support Group,Postage,60063432,ROYAL MAIL GROUP LIMITED,"4,095.38",23/09/2016
Commercial,Customer Support Group,Postage,60063444,ROYAL MAIL GROUP LIMITED,"3,678.92",23/09/2016
Commercial,Customer Support Group,Postage,60063450,ROYAL MAIL GROUP LIMITED,81.36,23/09/2016
Commercial,Customer Support Group,Postage,60063477,XEROX FINANCE LTD,"3,219.02",23/09/2016
Commercial,Customer Support Group,Professional Services,60062602,MARYLEBONE ASSET MANAGEMENT LTD,"1,164.48",30/09/2016
Commercial,Customer Support Group,Professional Services,60062605,MARYLEBONE ASSET MANAGEMENT LTD,6.23,30/09/2016
Commercial,Customer Support Group,Rents,60061847,CANAL & RIVER TRUST,"2,000.00",14/09/2016
Commercial,Customer Support Group,Rents,60062347,DANCASTLE ASSOCIATES LIMITED,"186,250.00",08/09/2016
Commercial,Customer Support Group,Rents,60063742,MIDDLESEX UNIVERSITY,"207,588.20",29/09/2016
Commercial,Customer Support Group,Rents,60063315,RIDGELAND PROPERTIES LTD,"33,750.00",21/09/2016
Commercial,Customer Support Group,Rubbish Collection,60063179,PREMIER SHREDDING,54.00,20/09/2016
Commercial,Customer Support Group,Rubbish Collection,60063234,PREMIER SHREDDING,50.00,20/09/2016
Commercial,Customer Support Group,Software Licences & Support,60062480,RESULT SOFTWARE LTD,750.00,08/09/2016
Commercial,Customer Support Group,Ttl IT & Comms,80005522,VODAFONE LTD (BILLS ONLY),"5,382.30",14/09/2016
Commercial,Customer Support Group,Vending Machines,60062411,SIEMENS FINANCIAL SERVICES LTD,813.04,07/09/2016
Commercial,Customer Support Group,Water Services,60062112,AFFINITY WATER LIMITED,447.06,05/09/2016
Commercial,Customer Support Group,Water Services,60062123,AFFINITY WATER LIMITED,"2,749.15",02/09/2016
Commercial,Customer Support Group,Water Services,60063746,AFFINITY WATER LIMITED,475.10,29/09/2016
Commercial,Customer Support Group,Water Services,60063256,ANGEL SPRINGS LTD,130.78,29/09/2016
Commercial,Customer Support Group,Water Services,60063262,ANGEL SPRINGS LTD,418.00,29/09/2016
Commercial,Customer Support Group,Water Services,60008648,THAMES WATER UTILITIES LIMITED,440.92,22/09/2016
Commercial,Customer Support Group,Water Services,60017111,THAMES WATER UTILITIES LIMITED,311.89,22/09/2016
Commercial,Customer Support Group,Water Services,60062366,THAMES WATER UTILITIES LIMITED,169.74,23/09/2016
Commercial,Customer Support Group,Water Services,60063380,THAMES WATER UTILITIES LIMITED,366.00,29/09/2016
Commercial,Customer Support Group,Water Services,60063385,THAMES WATER UTILITIES LIMITED,453.57,29/09/2016
Commercial,Customer Support Group,Water Services,60063413,THAMES WATER UTILITIES LIMITED,362.65,29/09/2016
Commercial,HB LAW,Legal and Court Fees,10013466,LONDON BOROUGH OF HARROW,"183,260.00",28/09/2016
Commercial,HB LAW,Legal and Court Fees,60061739,LONDON BOROUGH OF HARROW,"183,260.00",05/09/2016
Commercial,HB LAW,Legal Disbursements,60063508,LONDON BOROUGH OF HARROW,"264,682.27",29/09/2016
Commercial,Housing Needs Resources,Miscellaneous Expenses,60063347,THE BARNETGROUP LIMITED,"36,443.17",23/09/2016
Commercial,Housing Needs Resources,Private Contractors - Third Pa,60063322,THE BARNETGROUP LIMITED,"1,600,000.00",23/09/2016
Commercial,Housing Needs Resources,Rents,60063390,THE BARNETGROUP LIMITED,"38,470.00",22/09/2016
Commercial,HRA,Consultants Fees,60052984,COPPING JOYCE SURVEYORS LIMITED,"1,670.00",19/09/2016
Commercial,HRA,Consultants Fees,60061893,PRIORITY ESTATES PROJECT LTD,"3,143.25",26/09/2016
Commercial,HRA,Consultants Fees,60062223,THE BARNETGROUP LIMITED,"3,214.58",12/09/2016
Commercial,HRA,Other Services,60063338,THE BARNETGROUP LIMITED,"2,087,943.92",23/09/2016
Commercial,HRA,Other Services,60063340,THE BARNETGROUP LIMITED,"346,662.50",23/09/2016
Commercial,HRA,Water Services,60059798,THAMES WATER UTILITIES LIMITED,"31,820.32",08/09/2016
Commercial,Parking & Infrastructure,Equipment and Materials Purcha,60062443,CONWAY AECOM LTD,"24,978.75",28/09/2016
Commercial,Parking & Infrastructure,Equipment and Materials Purcha,60060991,GREENHAM TRADING LIMITED,121.49,07/09/2016
Commercial,Parking & Infrastructure,Equipment and Materials Purcha,60061018,GREENHAM TRADING LIMITED,84.00,08/09/2016
Commercial,Parking & Infrastructure,Equipment and Materials Purcha,60061098,GREENHAM TRADING LIMITED,127.40,08/09/2016
Commercial,Parking & Infrastructure,Equipment and Materials Purcha,60062147,LAFARGE TARMAC TRADING LIMITED,339.84,06/09/2016
Commercial,Parking & Infrastructure,Equipment and Materials Purcha,60062157,LAFARGE TARMAC TRADING LIMITED,113.28,06/09/2016
Commercial,Parking & Infrastructure,Equipment and Materials Purcha,60062173,LAFARGE TARMAC TRADING LIMITED,92.85,06/09/2016
Commercial,Parking & Infrastructure,Equipment and Materials Purcha,60062175,LAFARGE TARMAC TRADING LIMITED,103.99,06/09/2016
Commercial,Parking & Infrastructure,Equipment and Materials Purcha,60062203,LAFARGE TARMAC TRADING LIMITED,116.99,06/09/2016
Commercial,Parking & Infrastructure,Equipment and Materials Purcha,60062421,LAFARGE TARMAC TRADING LIMITED,113.28,20/09/2016
Commercial,Parking & Infrastructure,Equipment and Materials Purcha,60062432,LAFARGE TARMAC TRADING LIMITED,116.99,16/09/2016
Commercial,Parking & Infrastructure,Equipment and Materials Purcha,60062440,LAFARGE TARMAC TRADING LIMITED,115.13,19/09/2016
Commercial,Parking & Infrastructure,Equipment and Materials Purcha,60062476,LAFARGE TARMAC TRADING LIMITED,92.85,20/09/2016
Commercial,Parking & Infrastructure,Equipment and Materials Purcha,60062830,LAFARGE TARMAC TRADING LIMITED,116.99,23/09/2016
Commercial,Parking & Infrastructure,Equipment and Materials Purcha,60062875,LAFARGE TARMAC TRADING LIMITED,109.56,29/09/2016
Commercial,Parking & Infrastructure,Equipment and Materials Purcha,60062920,LAFARGE TARMAC TRADING LIMITED,116.99,23/09/2016
Commercial,Parking & Infrastructure,Equipment and Materials Purcha,60062296,NSL LTD,"10,626.40",13/09/2016
Commercial,Parking & Infrastructure,Equipment and Materials Purcha,60061868,RENNICK UK LTD,756.80,21/09/2016
Commercial,Parking & Infrastructure,Equipment and Materials Purcha,60062148,RENNICK UK LTD,"6,700.00",05/09/2016
Commercial,Parking & Infrastructure,Equipment and Materials Purcha,60059856,SPANDEX LIMITED,83.80,14/09/2016
Commercial,Parking & Infrastructure,Fees and Charges,60062591,REDCORN LTD,95.00,13/09/2016
Commercial,Parking & Infrastructure,Fees and Charges,60062593,REDCORN LTD,190.00,13/09/2016
Commercial,Parking & Infrastructure,Miscellaneous Expenses,60062569,OPENVIEW SECURITY SOLUTIONS LTD,786.86,13/09/2016
Commercial,Parking & Infrastructure,Miscellaneous Expenses,60062606,OPENVIEW SECURITY SOLUTIONS LTD,"1,606.00",13/09/2016
Commercial,Parking & Infrastructure,Miscellaneous Expenses,60062614,OPENVIEW SECURITY SOLUTIONS LTD,523.65,30/09/2016
Commercial,Parking & Infrastructure,Miscellaneous Expenses,60062628,OPENVIEW SECURITY SOLUTIONS LTD,"1,571.94",13/09/2016
Commercial,Parking & Infrastructure,Other Services,60062518,LONDON COUNCILS,"13,008.00",12/09/2016
Commercial,Parking & Infrastructure,Other Services,60063565,NSL LTD,"2,026.95",26/09/2016
Commercial,Parking & Infrastructure,Other Services,60061551,PARKEON LIMITED,810.00,16/09/2016
Commercial,Parking & Infrastructure,Other Services,60061747,PARKEON LIMITED,"2,510.80",20/09/2016
Commercial,Parking & Infrastructure,Software Licences & Support,60063532,NSL LTD,"6,652.82",26/09/2016
Commercial,Public Health,Other Transfer Payments to Soc,60062043,CENTRAL LONDONCOMMUNITY HEALTHCARE,"16,667.00",23/09/2016
Commercial,Public Health,Other Transfer Payments to Soc,60062044,CENTRAL LONDONCOMMUNITY HEALTHCARE,"16,667.00",23/09/2016
Commercial,Public Health,Other Transfer Payments to Soc,60062061,CENTRAL LONDONCOMMUNITY HEALTHCARE,"16,667.00",23/09/2016
Commercial,Public Health,Other Transfer Payments to Soc,60062066,CENTRAL LONDONCOMMUNITY HEALTHCARE,"356,000.00",23/09/2016
Commercial,Public Health,Other Transfer Payments to Soc,60062068,CENTRAL LONDONCOMMUNITY HEALTHCARE,"410,400.00",23/09/2016
Commercial,Public Health,Other Transfer Payments to Soc,60062073,CENTRAL LONDONCOMMUNITY HEALTHCARE,"16,667.00",23/09/2016
Commercial,Public Health,Other Transfer Payments to Soc,60062077,CENTRAL LONDONCOMMUNITY HEALTHCARE,"410,400.00",23/09/2016
Commercial,Public Health,Other Transfer Payments to Soc,60062079,CENTRAL LONDONCOMMUNITY HEALTHCARE,"410,400.00",23/09/2016
Commercial,Public Health,Other Transfer Payments to Soc,60062080,CENTRAL LONDONCOMMUNITY HEALTHCARE,"16,667.00",23/09/2016
Commercial,Public Health,Other Transfer Payments to Soc,60062081,CENTRAL LONDONCOMMUNITY HEALTHCARE,"192,801.00",23/09/2016
Commercial,Public Health,Other Transfer Payments to Soc,60063694,CENTRAL LONDONCOMMUNITY HEALTHCARE,"356,000.00",29/09/2016
Commercial,Public Health,Other Transfer Payments to Soc,60063716,CENTRAL LONDONCOMMUNITY HEALTHCARE,"16,667.00",29/09/2016
Commercial,Public Health,Professional Services,60057760,CENTRAL LONDONCOMMUNITY HEALTHCARE,"85,834.00",23/09/2016
Commercial,Public Health,Professional Services,60059184,CENTRAL LONDONCOMMUNITY HEALTHCARE,"9,583.00",23/09/2016
Commercial,Public Health,Professional Services,60059652,CENTRAL LONDONCOMMUNITY HEALTHCARE,"9,583.00",23/09/2016
Commercial,Public Health,Professional Services,60059672,CENTRAL LONDONCOMMUNITY HEALTHCARE,"85,834.00",23/09/2016
Commercial,Public Health,Professional Services,60061260,CENTRAL LONDONCOMMUNITY HEALTHCARE,"4,917.00",29/09/2016
Commercial,Public Health,Professional Services,60061273,CENTRAL LONDONCOMMUNITY HEALTHCARE,"85,834.00",29/09/2016
Commercial,Public Health,Professional Services,60061276,CENTRAL LONDONCOMMUNITY HEALTHCARE,"9,583.00",29/09/2016
Commercial,Public Health,Professional Services,60063678,CENTRAL LONDONCOMMUNITY HEALTHCARE,"85,834.00",29/09/2016
Commercial,Public Health,Professional Services,60063681,CENTRAL LONDONCOMMUNITY HEALTHCARE,"9,583.00",29/09/2016
Commercial,Public Health,Professional Services,60063684,CENTRAL LONDONCOMMUNITY HEALTHCARE,"4,917.00",30/09/2016
Commercial,Regional Enterprise,Advertising,60060025,TMP (UK) LTD,119.20,15/09/2016
Commercial,Regional Enterprise,Advertising,60060053,TMP (UK) LTD,108.51,15/09/2016
Commercial,Regional Enterprise,Advertising,60060122,TMP (UK) LTD,39.20,15/09/2016
Commercial,Regional Enterprise,Advertising,60060243,TMP (UK) LTD,28.51,15/09/2016
Commercial,Regional Enterprise,Advertising,60061799,TMP (UK) LTD,255.54,14/09/2016
Commercial,Regional Enterprise,Advertising,60062092,TMP (UK) LTD,389.10,12/09/2016
Commercial,Regional Enterprise,Capital Construction and Works,60062065,CONWAY AECOM LTD,"50,000.00",01/09/2016
Commercial,Regional Enterprise,Capital Construction and Works,60061777,RGE SERVICES,"1,205.01",08/09/2016
Commercial,Regional Enterprise,Cleaning and domestic material,60062216,CHURCHILL CONTRACT SERVICES,488.56,29/09/2016
Commercial,Regional Enterprise,Consultants Fees,60063826,ALLIES AND MORRRISON,"15,710.00",30/09/2016
Commercial,Regional Enterprise,Consultants Fees,60062995,EVERSHEDS LLP,"322,685.99",16/09/2016
Commercial,Regional Enterprise,Consultants Fees,60063391,EVERSHEDS LLP,"156,657.11",22/09/2016
Commercial,Regional Enterprise,Consultants Fees,60063396,EVERSHEDS LLP,"56,762.37",22/09/2016
Commercial,Regional Enterprise,Consultants Fees,10013455,GOWLING WLG,"52,247.38",08/09/2016
Commercial,Regional Enterprise,Consultants Fees,60063816,GOWLING WLG,"13,964.00",30/09/2016
Commercial,Regional Enterprise,Consultants Fees,60062022,RAILFREIGHT CONSULTING LTD,"2,227.50",01/09/2016
Commercial,Regional Enterprise,Consultants Fees,60062027,RAILFREIGHT CONSULTING LTD,"1,402.50",16/09/2016
Commercial,Regional Enterprise,Equipment and Materials Purcha,80004746,EMC ADVERTISING GIFTS,407.50,13/09/2016
Commercial,Regional Enterprise,Equipment and Materials Purcha,60062137,TRAFFIC SURVEY PARTNERS (TSP) LTD,"1,150.00",02/09/2016
Commercial,Regional Enterprise,Grant Payments,80005796,AMWELL CONSTRUCTION LTD,"5,170.00",30/09/2016
Commercial,Regional Enterprise,Grant Payments,80005777,ARTHUR J. FERRYMAN ASSOCIATES,"1,868.50",15/09/2016
Commercial,Regional Enterprise,Grant Payments,80005682,BELLAMWOOD LTD,"2,040.00",13/09/2016
Commercial,Regional Enterprise,Grant Payments,80005687,BELLAMWOOD LTD,"2,040.00",13/09/2016
Commercial,Regional Enterprise,Grant Payments,80005689,BELLAMWOOD LTD,"2,040.00",13/09/2016
Commercial,Regional Enterprise,Grant Payments,80005691,BELLAMWOOD LTD,"2,720.00",13/09/2016
Commercial,Regional Enterprise,Grant Payments,80005187,BELLHAMWOOD LTD,"2,600.00",14/09/2016
Commercial,Regional Enterprise,Grant Payments,80005684,BELLHAMWOOD LTD,"2,040.00",13/09/2016
Commercial,Regional Enterprise,Grant Payments,80005668,CAPITAL  LOCKSMITHS,80.00,15/09/2016
Commercial,Regional Enterprise,Grant Payments,80005669,CAPITAL  LOCKSMITHS,80.00,15/09/2016
Commercial,Regional Enterprise,Grant Payments,80005671,CAPITAL  LOCKSMITHS,80.00,15/09/2016
Commercial,Regional Enterprise,Grant Payments,80005803,CAPITAL  LOCKSMITHS,149.50,23/09/2016
Commercial,Regional Enterprise,Grant Payments,80005804,CAPITAL  LOCKSMITHS,300.00,23/09/2016
Commercial,Regional Enterprise,Grant Payments,80005811,CAPITAL  LOCKSMITHS,94.50,23/09/2016
Commercial,Regional Enterprise,Grant Payments,80005808,DOMESTIC LIFT SERVICES,"5,174.00",30/09/2016
Commercial,Regional Enterprise,Grant Payments,80005521,DP BUILDERS DISABLED ADAPTATIONS,"6,554.00",01/09/2016
Commercial,Regional Enterprise,Grant Payments,80005771,DP BUILDERS DISABLED ADAPTATIONS,"5,307.00",22/09/2016
Commercial,Regional Enterprise,Grant Payments,80005799,DP BUILDERS DISABLED ADAPTATIONS,880.00,23/09/2016
Commercial,Regional Enterprise,Grant Payments,80005802,DP BUILDERS DISABLED ADAPTATIONS,640.00,30/09/2016
Commercial,Regional Enterprise,Grant Payments,80005800,ECOLOGIC ENERGY,40.00,19/09/2016
Commercial,Regional Enterprise,Grant Payments,80005769,H D PROPERTY SERVICES LTD,"4,798.00",15/09/2016
Commercial,Regional Enterprise,Grant Payments,80005775,H D PROPERTY SERVICES LTD,"4,649.00",15/09/2016
Commercial,Regional Enterprise,Grant Payments,80005780,H D PROPERTY SERVICES LTD,883.00,30/09/2016
Commercial,Regional Enterprise,Grant Payments,80005795,H D PROPERTY SERVICES LTD,"4,788.00",30/09/2016
Commercial,Regional Enterprise,Grant Payments,80005797,MCP PROPERTY SERVICES LTD,"3,400.00",23/09/2016
Commercial,Regional Enterprise,Grant Payments,80005770,REDACTED - PERSONAL DATA,"4,240.00",15/09/2016
Commercial,Regional Enterprise,Grant Payments,80005776,REDACTED - PERSONAL DATA,"18,685.00",15/09/2016
Commercial,Regional Enterprise,Grant Payments,80005798,REDACTED - PERSONAL DATA,"3,700.00",19/09/2016
Commercial,Regional Enterprise,Grant Payments,80005698,SPIRO CONSTRUCTION,"10,000.00",14/09/2016
Commercial,Regional Enterprise,Legal and Court Fees,80005567,REDACTED - PERSONAL DATA,"2,365.00",07/09/2016
Commercial,Regional Enterprise,Other Establishments - Third P,80005616,TFL,"1,048,650.21",07/09/2016
Commercial,Regional Enterprise,Other Services,60062124,AFFINITY WATER LIMITED,24.62,05/09/2016
Commercial,Regional Enterprise,Other Services,60062624,AFFINITY WATER LIMITED,35.08,14/09/2016
Commercial,Regional Enterprise,Other Services,60063272,BUCHANAN COMPUTING LTD,810.00,20/09/2016
Commercial,Regional Enterprise,Other Services,60040756,CONWAY AECOM LTD,"21,040.15",01/09/2016
Commercial,Regional Enterprise,Other Services,60048417,CONWAY AECOM LTD,"8,438.33",02/09/2016
Commercial,Regional Enterprise,Other Services,60048577,CONWAY AECOM LTD,"7,656.90",02/09/2016
Commercial,Regional Enterprise,Other Services,60049116,CONWAY AECOM LTD,393.54,01/09/2016
Commercial,Regional Enterprise,Other Services,60049791,CONWAY AECOM LTD,"12,725.74",01/09/2016
Commercial,Regional Enterprise,Other Services,60049871,CONWAY AECOM LTD,"13,245.74",02/09/2016
Commercial,Regional Enterprise,Other Services,60049912,CONWAY AECOM LTD,"9,112.97",02/09/2016
Commercial,Regional Enterprise,Other Services,60049941,CONWAY AECOM LTD,"9,962.66",02/09/2016
Commercial,Regional Enterprise,Other Services,60051979,CONWAY AECOM LTD,"12,971.00",01/09/2016
Commercial,Regional Enterprise,Other Services,60051994,CONWAY AECOM LTD,"30,000.00",01/09/2016
Commercial,Regional Enterprise,Other Services,60052729,CONWAY AECOM LTD,"7,012.86",01/09/2016
Commercial,Regional Enterprise,Other Services,60052765,CONWAY AECOM LTD,"4,276.76",01/09/2016
Commercial,Regional Enterprise,Other Services,60053793,CONWAY AECOM LTD,"3,290.96",01/09/2016
Commercial,Regional Enterprise,Other Services,60053796,CONWAY AECOM LTD,"19,259.19",02/09/2016
Commercial,Regional Enterprise,Other Services,60053829,CONWAY AECOM LTD,"1,506.98",01/09/2016
Commercial,Regional Enterprise,Other Services,60054097,CONWAY AECOM LTD,302.72,02/09/2016
Commercial,Regional Enterprise,Other Services,60054207,CONWAY AECOM LTD,"1,704.26",01/09/2016
Commercial,Regional Enterprise,Other Services,60054361,CONWAY AECOM LTD,"1,726.99",13/09/2016
Commercial,Regional Enterprise,Other Services,60054433,CONWAY AECOM LTD,"1,990.36",27/09/2016
Commercial,Regional Enterprise,Other Services,60054487,CONWAY AECOM LTD,"44,079.00",01/09/2016
Commercial,Regional Enterprise,Other Services,60054503,CONWAY AECOM LTD,"-14,174.00",23/09/2016
Commercial,Regional Enterprise,Other Services,60054597,CONWAY AECOM LTD,"-1,168.29",23/09/2016
Commercial,Regional Enterprise,Other Services,60054611,CONWAY AECOM LTD,"-8,074.00",23/09/2016
Commercial,Regional Enterprise,Other Services,60054626,CONWAY AECOM LTD,"-4,840.00",23/09/2016
Commercial,Regional Enterprise,Other Services,60055778,CONWAY AECOM LTD,"1,299.81",01/09/2016
Commercial,Regional Enterprise,Other Services,60055796,CONWAY AECOM LTD,643.13,01/09/2016
Commercial,Regional Enterprise,Other Services,60055797,CONWAY AECOM LTD,44.15,01/09/2016
Commercial,Regional Enterprise,Other Services,60055800,CONWAY AECOM LTD,258.94,01/09/2016
Commercial,Regional Enterprise,Other Services,60055807,CONWAY AECOM LTD,"23,149.00",01/09/2016
Commercial,Regional Enterprise,Other Services,60055813,CONWAY AECOM LTD,"1,526.63",01/09/2016
Commercial,Regional Enterprise,Other Services,60055857,CONWAY AECOM LTD,"2,356.02",01/09/2016
Commercial,Regional Enterprise,Other Services,60055859,CONWAY AECOM LTD,476.97,01/09/2016
Commercial,Regional Enterprise,Other Services,60055860,CONWAY AECOM LTD,131.64,01/09/2016
Commercial,Regional Enterprise,Other Services,60055867,CONWAY AECOM LTD,978.65,01/09/2016
Commercial,Regional Enterprise,Other Services,60055872,CONWAY AECOM LTD,"21,177.54",01/09/2016
Commercial,Regional Enterprise,Other Services,60055934,CONWAY AECOM LTD,"2,068.54",23/09/2016
Commercial,Regional Enterprise,Other Services,60055943,CONWAY AECOM LTD,"1,772.38",08/09/2016
Commercial,Regional Enterprise,Other Services,60057380,CONWAY AECOM LTD,278.52,02/09/2016
Commercial,Regional Enterprise,Other Services,60058123,CONWAY AECOM LTD,"12,834.19",01/09/2016
Commercial,Regional Enterprise,Other Services,60058759,CONWAY AECOM LTD,"136,833.00",12/09/2016
Commercial,Regional Enterprise,Other Services,60058790,CONWAY AECOM LTD,"12,648.00",12/09/2016
Commercial,Regional Enterprise,Other Services,60061804,CONWAY AECOM LTD,"3,123.47",01/09/2016
Commercial,Regional Enterprise,Other Services,60062097,CONWAY AECOM LTD,"5,500.00",02/09/2016
Commercial,Regional Enterprise,Other Services,60062111,CONWAY AECOM LTD,"23,500.00",02/09/2016
Commercial,Regional Enterprise,Other Services,60062132,CONWAY AECOM LTD,"6,500.00",02/09/2016
Commercial,Regional Enterprise,Other Services,60062639,CONWAY AECOM LTD,"2,050.92",13/09/2016
Commercial,Regional Enterprise,Other Services,60062640,CONWAY AECOM LTD,512.73,13/09/2016
Commercial,Regional Enterprise,Other Services,60062644,CONWAY AECOM LTD,"1,345.66",13/09/2016
Commercial,Regional Enterprise,Other Services,60062647,CONWAY AECOM LTD,"1,164.72",13/09/2016
Commercial,Regional Enterprise,Other Services,60062649,CONWAY AECOM LTD,622.45,13/09/2016
Commercial,Regional Enterprise,Other Services,60062657,CONWAY AECOM LTD,"1,196.37",13/09/2016
Commercial,Regional Enterprise,Other Services,60062659,CONWAY AECOM LTD,854.55,13/09/2016
Commercial,Regional Enterprise,Other Services,60062661,CONWAY AECOM LTD,"1,063.44",13/09/2016
Commercial,Regional Enterprise,Other Services,60062662,CONWAY AECOM LTD,949.50,13/09/2016
Commercial,Regional Enterprise,Other Services,60062664,CONWAY AECOM LTD,"3,232.53",23/09/2016
Commercial,Regional Enterprise,Other Services,60062672,CONWAY AECOM LTD,911.52,13/09/2016
Commercial,Regional Enterprise,Other Services,60062678,CONWAY AECOM LTD,615.28,13/09/2016
Commercial,Regional Enterprise,Other Services,60062684,CONWAY AECOM LTD,240.54,13/09/2016
Commercial,Regional Enterprise,Other Services,60062687,CONWAY AECOM LTD,721.62,13/09/2016
Commercial,Regional Enterprise,Other Services,60062689,CONWAY AECOM LTD,"1,215.36",13/09/2016
Commercial,Regional Enterprise,Other Services,60062691,CONWAY AECOM LTD,436.77,13/09/2016
Commercial,Regional Enterprise,Other Services,60062692,CONWAY AECOM LTD,784.40,13/09/2016
Commercial,Regional Enterprise,Other Services,60062693,CONWAY AECOM LTD,"1,395.28",23/09/2016
Commercial,Regional Enterprise,Other Services,60062697,CONWAY AECOM LTD,455.76,13/09/2016
Commercial,Regional Enterprise,Other Services,60062700,CONWAY AECOM LTD,"5,608.07",23/09/2016
Commercial,Regional Enterprise,Other Services,60062708,CONWAY AECOM LTD,"1,012.80",13/09/2016
Commercial,Regional Enterprise,Other Services,60062709,CONWAY AECOM LTD,303.84,13/09/2016
Commercial,Regional Enterprise,Other Services,60062711,CONWAY AECOM LTD,708.96,13/09/2016
Commercial,Regional Enterprise,Other Services,60062717,CONWAY AECOM LTD,743.78,13/09/2016
Commercial,Regional Enterprise,Other Services,60062718,CONWAY AECOM LTD,987.48,13/09/2016
Commercial,Regional Enterprise,Other Services,60062722,CONWAY AECOM LTD,"1,468.56",13/09/2016
Commercial,Regional Enterprise,Other Services,60062724,CONWAY AECOM LTD,"2,430.72",13/09/2016
Commercial,Regional Enterprise,Other Services,60062729,CONWAY AECOM LTD,"24,329.99",23/09/2016
Commercial,Regional Enterprise,Other Services,60062731,CONWAY AECOM LTD,"2,569.98",13/09/2016
Commercial,Regional Enterprise,Other Services,60062732,CONWAY AECOM LTD,582.36,13/09/2016
Commercial,Regional Enterprise,Other Services,60062734,CONWAY AECOM LTD,"2,218.11",23/09/2016
Commercial,Regional Enterprise,Other Services,60062786,CONWAY AECOM LTD,"3,121.97",30/09/2016
Commercial,Regional Enterprise,Other Services,60063494,CONWAY AECOM LTD,"2,468.94",28/09/2016
Commercial,Regional Enterprise,Other Services,60063497,CONWAY AECOM LTD,737.88,27/09/2016
Commercial,Regional Enterprise,Other Services,60063509,CONWAY AECOM LTD,"4,732.42",27/09/2016
Commercial,Regional Enterprise,Other Services,60063515,CONWAY AECOM LTD,"6,545.01",27/09/2016
Commercial,Regional Enterprise,Other Services,60063519,CONWAY AECOM LTD,"1,173.04",27/09/2016
Commercial,Regional Enterprise,Other Services,60063520,CONWAY AECOM LTD,"31,518.00",29/09/2016
Commercial,Regional Enterprise,Other Services,60063522,CONWAY AECOM LTD,"50,805.78",27/09/2016
Commercial,Regional Enterprise,Other Services,60063527,CONWAY AECOM LTD,14.09,28/09/2016
Commercial,Regional Enterprise,Other Services,60063528,CONWAY AECOM LTD,23.75,28/09/2016
Commercial,Regional Enterprise,Other Services,60063534,CONWAY AECOM LTD,"34,849.35",27/09/2016
Commercial,Regional Enterprise,Other Services,60063536,CONWAY AECOM LTD,14.09,28/09/2016
Commercial,Regional Enterprise,Other Services,60063540,CONWAY AECOM LTD,189.20,27/09/2016
Commercial,Regional Enterprise,Other Services,60063548,CONWAY AECOM LTD,"14,886.69",27/09/2016
Commercial,Regional Enterprise,Other Services,60063549,CONWAY AECOM LTD,"6,767.32",27/09/2016
Commercial,Regional Enterprise,Other Services,60063552,CONWAY AECOM LTD,"44,047.89",27/09/2016
Commercial,Regional Enterprise,Other Services,60063554,CONWAY AECOM LTD,14.36,28/09/2016
Commercial,Regional Enterprise,Other Services,60063563,CONWAY AECOM LTD,"16,024.68",27/09/2016
Commercial,Regional Enterprise,Other Services,60063576,CONWAY AECOM LTD,29.23,28/09/2016
Commercial,Regional Enterprise,Other Services,60063579,CONWAY AECOM LTD,"2,156.88",27/09/2016
Commercial,Regional Enterprise,Other Services,60063583,CONWAY AECOM LTD,"10,552.56",27/09/2016
Commercial,Regional Enterprise,Other Services,60063591,CONWAY AECOM LTD,"47,205.60",29/09/2016
Commercial,Regional Enterprise,Other Services,60063592,CONWAY AECOM LTD,907.38,27/09/2016
Commercial,Regional Enterprise,Other Services,60063593,CONWAY AECOM LTD,"64,231.44",29/09/2016
Commercial,Regional Enterprise,Other Services,60063595,CONWAY AECOM LTD,"4,241.30",26/09/2016
Commercial,Regional Enterprise,Other Services,60063597,CONWAY AECOM LTD,"3,328.59",27/09/2016
Commercial,Regional Enterprise,Other Services,60063608,CONWAY AECOM LTD,"44,461.80",29/09/2016
Commercial,Regional Enterprise,Other Services,60063613,CONWAY AECOM LTD,"4,885.43",27/09/2016
Commercial,Regional Enterprise,Other Services,60063615,CONWAY AECOM LTD,302.72,27/09/2016
Commercial,Regional Enterprise,Other Services,60063696,CONWAY AECOM LTD,"17,092.28",30/09/2016
Commercial,Regional Enterprise,Other Services,60062116,GEOPLACE LLP,450.00,06/09/2016
Commercial,Regional Enterprise,Other Services,60062320,HARRY SKINNER SURVEYS,"1,821.00",29/09/2016
Commercial,Regional Enterprise,Other Services,60062721,HASMONEAN HIGH SCHOOL,700.00,14/09/2016
Commercial,Regional Enterprise,Other Services,60060853,KENT COUNTY COUNCIL (KCS),49.90,08/09/2016
Commercial,Regional Enterprise,Other Services,60060873,KENT COUNTY COUNCIL (KCS),21.83,08/09/2016
Commercial,Regional Enterprise,Other Services,60061311,LIBERTY SERVICES,"13,992.00",15/09/2016
Commercial,Regional Enterprise,Other Services,60057470,LONDON BOROUGH OF HAMMERSMITH & FUL,"1,227.00",09/09/2016
Commercial,Regional Enterprise,Other Services,60061662,SELECTAMARK SECURITY SYSTEMS PLC,498.75,16/09/2016
Commercial,Regional Enterprise,Other Services,60062771,THE RIOT ACT LIMITED,"4,760.00",22/09/2016
Commercial,Regional Enterprise,Other Services,60063190,WREN ACADEMY,500.00,23/09/2016
Commercial,Regional Enterprise,Professional Services,60063760,PUBLIC ANALYST SCIENTIFIC SERVS. LT,450.00,30/09/2016
Commercial,Regional Enterprise,RE Services Contract Payment,60062448,RE (REGIONAL ENTERPRISE) LIMITED,"64,844.00",08/09/2016
Commercial,Regional Enterprise,Subscriptions,60060523,FUTURE OF LONDON 2011 LTD,"8,910.00",05/09/2016
Commercial,Regional Enterprise,Subscriptions,60062174,PIPER PROJECTS LTD,"4,000.00",05/09/2016
Commissioning,Commissioning,Advertising,60062434,TMP (UK) LTD,122.77,09/09/2016
Commissioning,Commissioning,Advertising,60062447,TMP (UK) LTD,42.77,09/09/2016
Commissioning,Commissioning,Building Repairs & Maintenance,60062523,REDACTED - PERSONAL DATA,650.00,09/09/2016
Commissioning,Commissioning,Building Repairs & Maintenance,60061126,S W BRUCE & CO LTD,"120,000.00",01/09/2016
Commissioning,Commissioning,Building Repairs & Maintenance,60062966,SMS CONNECTIONS LTD,"26,902.21",26/09/2016
Commissioning,Commissioning,Consultants Fees,60063091,DOD'S PARLIAMENTARY,590.00,29/09/2016
Commissioning,Commissioning,Consultants Fees,60062810,GALLIFORD TRY,"422,211.76",15/09/2016
Commissioning,Commissioning,Consultants Fees,80005744,HJC ACTUARIAL CONSULTING LTD,"1,250.00",14/09/2016
Commissioning,Commissioning,Consultants Fees,60063717,PRIME PRODUCTION LTD,135.00,28/09/2016
Commissioning,Commissioning,Consultants Fees,60062006,PROJECT CENTRE LTD,"2,455.00",01/09/2016
Commissioning,Commissioning,Consultants Fees,60062021,PROJECT CENTRE LTD,"1,925.00",01/09/2016
Commissioning,Commissioning,Consultants Fees,60062812,PROJECT CENTRE LTD,"8,654.00",23/09/2016
Commissioning,Commissioning,Consultants Fees,60062833,PROJECT CENTRE LTD,"15,400.00",23/09/2016
Commissioning,Commissioning,Consultants Fees,60063369,REDACTED - PERSONAL DATA,50.00,30/09/2016
Commissioning,Commissioning,Consultants Fees,60030176,TROWERS & HAMLINS,"1,460.00",29/09/2016
Commissioning,Commissioning,Consultants Fees,60063033,WILLMOTT DIXON CONSTRUCTION LTD,"270,814.00",27/09/2016
Commissioning,Commissioning,Discretionary awards,80006008,ARCHWAY SHEET METAL WORKS LTD,"3,246.30",29/09/2016
Commissioning,Commissioning,Discretionary awards,80005756,COMMUNITY BARNET,"9,999.00",15/09/2016
Commissioning,Commissioning,Discretionary awards,80005742,EAST BARNET ROYAL BRIT. LEGION,"2,030.00",15/09/2016
Commissioning,Commissioning,Discretionary awards,80005741,MESILA UK,"8,500.00",29/09/2016
Commissioning,Commissioning,Electricity,60063349,SOUTHERN ELECTRIC PLC,65.73,21/09/2016
Commissioning,Commissioning,Electricity,60063352,SOUTHERN ELECTRIC PLC,298.33,21/09/2016
Commissioning,Commissioning,Electricity,60063357,SOUTHERN ELECTRIC PLC,94.72,21/09/2016
Commissioning,Commissioning,Employee Expenses,10013468,CABINET OFFICE,"30,441.61",29/09/2016
Commissioning,Commissioning,Employee Expenses,60060583,SUE HILL RECRUITMENT & SERVICES LTD,"4,000.00",01/09/2016
Commissioning,Commissioning,Equipment and Materials Purcha,60062603,NISBETS PLC,80.90,13/09/2016
Commissioning,Commissioning,Equipment and Materials Purcha,60062787,NISBETS PLC,24.66,19/09/2016
Commissioning,Commissioning,Equipment and Materials Purcha,60062636,OCS GROUP UK LIMITED,"46,521.00",29/09/2016
Commissioning,Commissioning,Equipment and Materials Purcha,60061163,RPM FUELS & TANKS,"18,597.50",01/09/2016
Commissioning,Commissioning,Grant Payments,80005667,COMMUNITY FOCUS,"15,766.00",15/09/2016
Commissioning,Commissioning,Grant Payments,80005661,LEARNING THROUGH HORSES,"2,125.00",08/09/2016
Commissioning,Commissioning,Grant Payments,80005752,LEARNING THROUGH HORSES,"4,250.00",14/09/2016
Commissioning,Commissioning,Grant Payments,80005937,WEST HENDON ALLOTMENT SOCIETY,"5,000.00",29/09/2016
Commissioning,Commissioning,Joint Authorities - Third Part,EBX0135344,NORTH LONDON WASTE AUTHORITY,"904,617.00",23/09/2016
Commissioning,Commissioning,Other Agencies - Third Party P,60059903,FAMILY FUND TRADING LTD,"1,554.17",07/09/2016
Commissioning,Commissioning,Other Agencies - Third Party P,60060362,FAMILY FUND TRADING LTD,"2,591.66",06/09/2016
Commissioning,Commissioning,Other Agencies - Third Party P,60060685,FAMILY FUND TRADING LTD,973.33,06/09/2016
Commissioning,Commissioning,Other Agencies - Third Party P,60061332,FAMILY FUND TRADING LTD,"3,409.17",06/09/2016
Commissioning,Commissioning,Other Agencies - Third Party P,60061699,FAMILY FUND TRADING LTD,"3,755.00",22/09/2016
Commissioning,Commissioning,Other Agencies - Third Party P,60062051,FAMILY FUND TRADING LTD,50.00,06/09/2016
Commissioning,Commissioning,Other Agencies - Third Party P,60062302,FAMILY FUND TRADING LTD,134.00,07/09/2016
Commissioning,Commissioning,Other Services,60062449,IMPOWER CONSULTING LIMITED,"5,057.98",29/09/2016
Commissioning,Commissioning,Other Services,60063366,OUR PARKS,"4,635.00",21/09/2016
Commissioning,Commissioning,Other Services,60060481,SHRED-IT,176.80,09/09/2016
Commissioning,Commissioning,Other Services,60060540,SHRED-IT,312.00,08/09/2016
Commissioning,Commissioning,Other Transfer Payments to Soc,60060327,LIQUID PERSONNEL LTD,"31,891.00",14/09/2016
Commissioning,Commissioning,Other Transfer Payments to Soc,60062305,LIQUID PERSONNEL LTD,"22,970.00",29/09/2016
Commissioning,Commissioning,Printing-Contract,60061538,LETTERBOX DISTRIBUTION.COM,577.88,13/09/2016
Commissioning,Commissioning,Printing-Contract,60063421,MPC PRINT SOLUTIONS,120.00,23/09/2016
Commissioning,Commissioning,Printing-Contract,60063425,MPC PRINT SOLUTIONS,180.00,23/09/2016
Commissioning,Commissioning,Printing-Contract,60063436,MPC PRINT SOLUTIONS,180.00,23/09/2016
Commissioning,Commissioning,Printing-Contract,60063438,MPC PRINT SOLUTIONS,180.00,23/09/2016
Commissioning,Commissioning,Printing-Contract,60063455,MPC PRINT SOLUTIONS,155.00,23/09/2016
Commissioning,Commissioning,Printing-Contract,60063466,MPC PRINT SOLUTIONS,585.00,23/09/2016
Commissioning,Commissioning,Printing-Contract,60063485,MPC PRINT SOLUTIONS,495.00,23/09/2016
Commissioning,Commissioning,Professional Services,60063324,22 DESIGN LTD,"2,340.00",22/09/2016
Commissioning,Commissioning,Professional Services,60063364,22 DESIGN LTD,"9,370.00",22/09/2016
Commissioning,Commissioning,Professional Services,60061388,GENERAL DYNAMICS INFORMATION TECHNOLOGY,"5,659.08",07/09/2016
Commissioning,Commissioning,Professional Services,80005724,K.A.D. SECURITY,"17,000.00",14/09/2016
Commissioning,Commissioning,Professional Services,60061530,RE (REGIONAL ENTERPRISE) LIMITED,"8,000.00",14/09/2016
Commissioning,Commissioning,Professional Services,60061593,REDACTED - PERSONAL DATA,"2,577.50",16/09/2016
Commissioning,Commissioning,Professional Services,10013472,SIMETRICA LTD,"3,750.00",30/09/2016
Commissioning,Commissioning,Stationery,80005999,KEYLOGO LTD,"1,157.45",29/09/2016
Commissioning,Commissioning,Subscriptions,60063682,OFCOM,700.00,28/09/2016
Commissioning,Commissioning,Subscriptions,60063221,OPEN DATA INSTITUTE,720.00,20/09/2016
Commissioning,Commissioning,Training,60062637,DOD'S PARLIAMENTARY,295.00,29/09/2016
Commissioning,Commissioning,Training,60063828,LONDON COUNCILS,60.00,30/09/2016
Commissioning,Commissioning,Training,60060264,MIDDLESEX COUNTY FOOTBALL,331.25,09/09/2016
Commissioning,Commissioning,Training,60059956,TRAINING WITH PURPOSE INTERNATIONAL LTD,"1,000.00",05/09/2016
Commissioning,Commissioning,Ttl IT & Comms,60062351,STOR-A FILE LTD,919.80,29/09/2016
Commissioning,Commissioning,Venue Hire,60056556,BARNET & SOUTHGATE COLLEGE,-46.50,29/09/2016
Commissioning,Commissioning,Venue Hire,60062629,ST PAUL'S FINCHLEY PCC,100.63,12/09/2016
Corporate Accounting,Corporate Accounting,Fees and Charges,80005910,TFL,"60,341.64",26/09/2016
Corporate Accounting,Corporate Accounting,Other Establishments - Third P,30134875,CLAREMONT PRIMARY SCHOOL ACADEMY,692.00,16/09/2016
Corporate Accounting,Corporate Accounting,Other Establishments - Third P,30134904,CLAREMONT PRIMARY SCHOOL ACADEMY,843.41,16/09/2016
Corporate Accounting,Corporate Accounting,Other Establishments - Third P,30134877,COPTHALL SCHOOL (ACADEMY),"4,362.85",16/09/2016
Corporate Accounting,Corporate Accounting,Other Establishments - Third P,30134937,COPTHALL SCHOOL (ACADEMY),"18,511.00",16/09/2016
Corporate Accounting,Corporate Accounting,Other Establishments - Third P,30134931,MENORAH HIGH SCHOOL FOR GIRLS,"8,430.03",16/09/2016
Corporate Accounting,Corporate Accounting,Other Establishments - Third P,30134876,PARKFIELD ACADEMY,"2,076.00",23/09/2016
Corporate Accounting,Corporate Accounting,Other Establishments - Third P,30134906,PARKFIELD ACADEMY,"4,152.00",23/09/2016
Corporate Accounting,Corporate Accounting,Other Establishments - Third P,30134936,PARKFIELD ACADEMY,"3,460.00",23/09/2016
Corporate Accounting,Corporate Accounting,Other Establishments - Third P,30134907,QUEEN ELIZABETH'S GIRLS ACADEMY,"2,249.00",16/09/2016
Corporate Accounting,Corporate Accounting,Other Establishments - Third P,30134938,QUEEN ELIZABETH'S GIRLS ACADEMY,"15,626.00",16/09/2016
Corporate Accounting,Corporate Accounting,Other Establishments - Third P,30134905,THE HYDE EF ACADEMY,"1,747.50",16/09/2016
Corporate Accounting,Corporate Accounting,Other Establishments - Third P,30134935,THE HYDE EF ACADEMY,"3,287.00",16/09/2016
Corporate Accounting,Corporate Accounting,Other Local Authorities - Thir,EBX0133046,GREATER LONDON AUTHORITY,"3,891,785.34",07/09/2016
Corporate Accounting,Corporate Accounting,Other Local Authorities - Thir,EBX0133672,GREATER LONDON AUTHORITY,"1,521,304.00",09/09/2016
Corporate Accounting,Corporate Accounting,Other Local Authorities - Thir,EBX0135244,GREATER LONDON AUTHORITY,"230,277.00",22/09/2016
Corporate Accounting,Corporate Accounting,Other Transfer Payments to Soc,60062169,CITIBANK NA LONDON,100.00,06/09/2016
Corporate Accounting,Corporate Accounting,Other Transfer Payments to Soc,60062178,CITIBANK NA LONDON,225.00,06/09/2016
Corporate Accounting,Corporate Accounting,Other Transfer Payments to Soc,60062182,CITIBANK NA LONDON,115.80,06/09/2016
Corporate Accounting,Corporate Accounting,Other Transfer Payments to Soc,60062188,CITIBANK NA LONDON,576.55,06/09/2016
Corporate Accounting,Corporate Accounting,Other Transfer Payments to Soc,60062196,CITIBANK NA LONDON,10.00,06/09/2016
Corporate Accounting,Corporate Accounting,Other Transfer Payments to Soc,60062197,CITIBANK NA LONDON,"1,042.90",06/09/2016
Corporate Accounting,Corporate Accounting,Other Transfer Payments to Soc,60062213,CITIBANK NA LONDON,450.00,06/09/2016
Corporate Accounting,Corporate Accounting,Other Transfer Payments to Soc,60062218,CITIBANK NA LONDON,200.00,06/09/2016
Corporate Accounting,Corporate Accounting,Other Transfer Payments to Soc,60062219,CITIBANK NA LONDON,100.00,06/09/2016
Corporate Accounting,Corporate Accounting,Other Transfer Payments to Soc,60062227,CITIBANK NA LONDON,465.20,06/09/2016
Corporate Accounting,Corporate Accounting,Other Transfer Payments to Soc,60062232,CITIBANK NA LONDON,"2,743.90",06/09/2016
Corporate Accounting,Corporate Accounting,Other Transfer Payments to Soc,60062509,CITIBANK NA LONDON,57.90,12/09/2016
Corporate Accounting,Corporate Accounting,Other Transfer Payments to Soc,60062517,CITIBANK NA LONDON,57.90,12/09/2016
Corporate Accounting,Corporate Accounting,Other Transfer Payments to Soc,60062519,CITIBANK NA LONDON,"1,854.80",12/09/2016
Corporate Accounting,Corporate Accounting,Other Transfer Payments to Soc,60062520,CITIBANK NA LONDON,234.65,12/09/2016
Corporate Accounting,Corporate Accounting,Other Transfer Payments to Soc,60062521,CITIBANK NA LONDON,"2,152.15",12/09/2016
Corporate Accounting,Corporate Accounting,Other Transfer Payments to Soc,60062534,CITIBANK NA LONDON,48.50,12/09/2016
Corporate Accounting,Corporate Accounting,Other Transfer Payments to Soc,60062539,CITIBANK NA LONDON,140.00,12/09/2016
Corporate Accounting,Corporate Accounting,Other Transfer Payments to Soc,60062544,CITIBANK NA LONDON,140.00,12/09/2016
Corporate Accounting,Corporate Accounting,Other Transfer Payments to Soc,60062552,CITIBANK NA LONDON,199.80,12/09/2016
Corporate Accounting,Corporate Accounting,Other Transfer Payments to Soc,60062560,CITIBANK NA LONDON,105.00,12/09/2016
Corporate Accounting,Corporate Accounting,Other Transfer Payments to Soc,60062561,CITIBANK NA LONDON,57.90,12/09/2016
Corporate Accounting,Corporate Accounting,Other Transfer Payments to Soc,60062807,CITIBANK NA LONDON,219.10,15/09/2016
Corporate Accounting,Corporate Accounting,Other Transfer Payments to Soc,60062817,CITIBANK NA LONDON,125.00,15/09/2016
Corporate Accounting,Corporate Accounting,Other Transfer Payments to Soc,60062837,CITIBANK NA LONDON,773.70,15/09/2016
Corporate Accounting,Corporate Accounting,Other Transfer Payments to Soc,60062878,CITIBANK NA LONDON,240.00,15/09/2016
Corporate Accounting,Corporate Accounting,Other Transfer Payments to Soc,60062890,CITIBANK NA LONDON,500.00,15/09/2016
Corporate Accounting,Corporate Accounting,Other Transfer Payments to Soc,60062925,CITIBANK NA LONDON,"1,427.90",15/09/2016
Corporate Accounting,Corporate Accounting,Other Transfer Payments to Soc,60062931,CITIBANK NA LONDON,364.31,15/09/2016
Corporate Accounting,Corporate Accounting,Other Transfer Payments to Soc,60063026,CITIBANK NA LONDON,337.90,20/09/2016
Corporate Accounting,Corporate Accounting,Other Transfer Payments to Soc,60063039,CITIBANK NA LONDON,"2,022.80",20/09/2016
Corporate Accounting,Corporate Accounting,Other Transfer Payments to Soc,60063072,CITIBANK NA LONDON,50.00,20/09/2016
Corporate Accounting,Corporate Accounting,Other Transfer Payments to Soc,60063100,CITIBANK NA LONDON,240.00,20/09/2016
Corporate Accounting,Corporate Accounting,Other Transfer Payments to Soc,60063105,CITIBANK NA LONDON,84.00,20/09/2016
Corporate Accounting,Corporate Accounting,Other Transfer Payments to Soc,60063117,CITIBANK NA LONDON,515.00,20/09/2016
Corporate Accounting,Corporate Accounting,Other Transfer Payments to Soc,60063138,CITIBANK NA LONDON,"2,045.10",20/09/2016
Corporate Accounting,Corporate Accounting,Other Transfer Payments to Soc,60063155,CITIBANK NA LONDON,266.00,20/09/2016
Delivery Units,Adults and Communities,Advertising,60063381,JOHN BIRDSALL SOCIAL ISSUES PHOTO LIBRAR,60.00,22/09/2016
Delivery Units,Adults and Communities,Cleaning and domestic material,60062179,CHURCHILL CONTRACT SERVICES,391.37,29/09/2016
Delivery Units,Adults and Communities,Cleaning and domestic material,60062205,CHURCHILL CONTRACT SERVICES,377.81,29/09/2016
Delivery Units,Adults and Communities,Consultants Fees,60062738,BARNET CITIZENS ADVICE BUREAU,"84,705.00",14/09/2016
Delivery Units,Adults and Communities,Equipment and Materials Purcha,60063620,MEDEQUIP ASSISTIVE TECHNOLOGY LTD,491.40,27/09/2016
Delivery Units,Adults and Communities,Equipment and Materials Purcha,60063631,MEDEQUIP ASSISTIVE TECHNOLOGY LTD,499.72,27/09/2016
Delivery Units,Adults and Communities,Equipment and Materials Purcha,60063667,MEDEQUIP ASSISTIVE TECHNOLOGY LTD,930.80,27/09/2016
Delivery Units,Adults and Communities,Equipment and Materials Purcha,60063670,MEDEQUIP ASSISTIVE TECHNOLOGY LTD,187.50,27/09/2016
Delivery Units,Adults and Communities,Equipment and Materials Purcha,60063537,NYCOMM LTD,170.45,30/09/2016
Delivery Units,Adults and Communities,Food Costs,60061690,MULLER MILK & INGREDIENTS,1.44,02/09/2016
Delivery Units,Adults and Communities,Food Costs,60061774,MULLER MILK & INGREDIENTS,1.44,09/09/2016
Delivery Units,Adults and Communities,Food Costs,60062212,MULLER MILK & INGREDIENTS,1.44,16/09/2016
Delivery Units,Adults and Communities,Food Costs,60062741,MULLER MILK & INGREDIENTS,1.44,23/09/2016
Delivery Units,Adults and Communities,Food Costs,60062832,MULLER MILK & INGREDIENTS,1.44,30/09/2016
Delivery Units,Adults and Communities,Gas,60063460,KENT COUNTY COUNCIL (KCS),96.05,30/09/2016
Delivery Units,Adults and Communities,General Office Expenses,60063200,OFFICE DEPOT UK LTD,-28.26,30/09/2016
Delivery Units,Adults and Communities,Grounds maintenance,60063457,REDACTED - PERSONAL DATA,200.00,23/09/2016
Delivery Units,Adults and Communities,I18 - Additional Grants for Sc,60061707,KAIROS HEALTHCARE TRAINING,400.00,06/09/2016
Delivery Units,Adults and Communities,Other Agencies - Third Party P,30133881,ABBEY RAVENSCROFT PARK NURSING HOME,"3,255.00",01/09/2016
Delivery Units,Adults and Communities,Other Agencies - Third Party P,30134408,ABBEY RAVENSCROFT PARK NURSING HOME,"2,517.60",07/09/2016
Delivery Units,Adults and Communities,Other Agencies - Third Party P,30134409,ABBEY RAVENSCROFT PARK NURSING HOME,"2,788.32",07/09/2016
Delivery Units,Adults and Communities,Other Agencies - Third Party P,30137228,ABBEY RAVENSCROFT PARK NURSING HOME,522.51,27/09/2016
Delivery Units,Adults and Communities,Other Agencies - Third Party P,30137229,ABBEY RAVENSCROFT PARK NURSING HOME,471.79,27/09/2016
Delivery Units,Adults and Communities,Other Agencies - Third Party P,30137230,ABBEY RAVENSCROFT PARK NURSING HOME,215.00,27/09/2016
Delivery Units,Adults and Communities,Other Agencies - Third Party P,30137596,ABBEY RAVENSCROFT PARK NURSING HOME,"2,698.37",30/09/2016
Delivery Units,Adults and Communities,Other Agencies - Third Party P,30137597,ABBEY RAVENSCROFT PARK NURSING HOME,"2,436.39",30/09/2016
Delivery Units,Adults and Communities,Other Agencies - Third Party P,30137598,ABBEY RAVENSCROFT PARK NURSING HOME,"2,698.37",30/09/2016
Delivery Units,Adults and Communities,Other Agencies - Third Party P,30137599,ABBEY RAVENSCROFT PARK NURSING HOME,"2,698.37",30/09/2016
Delivery Units,Adults and Communities,Other Agencies - Third Party P,30137600,ABBEY RAVENSCROFT PARK NURSING HOME,"2,698.37",30/09/2016
Delivery Units,Adults and Communities,Other Agencies - Third Party P,30137602,ABBEY RAVENSCROFT PARK NURSING HOME,"2,698.37",30/09/2016
Delivery Units,Adults and Communities,Other Agencies - Third Party P,30137603,ABBEY RAVENSCROFT PARK NURSING HOME,"3,150.00",30/09/2016
Delivery Units,Adults and Communities,Other Agencies - Third Party P,30137604,ABBEY RAVENSCROFT PARK NURSING HOME,"3,150.00",30/09/2016
Delivery Units,Adults and Communities,Other Agencies - Third Party P,30137605,ABBEY RAVENSCROFT PARK NURSING HOME,"3,150.00",30/09/2016
Delivery Units,Adults and Communities,Other Agencies - Third Party P,30137606,ABBEY RAVENSCROFT PARK NURSING HOME,"2,698.37",30/09/2016
Delivery Units,Adults and Communities,Other Agencies - Third Party P,30137607,ABBEY RAVENSCROFT PARK NURSING HOME,"3,037.50",30/09/2016
Delivery Units,Adults and Communities,Other Agencies - Third Party P,30137608,ABBEY RAVENSCROFT PARK NURSING HOME,"2,698.37",30/09/2016
Delivery Units,Adults and Communities,Other Agencies - Third Party P,30137609,ABBEY RAVENSCROFT PARK NURSING HOME,"3,150.00",30/09/2016
Delivery Units,Adults and Communities,Other Agencies - Third Party P,30137610,ABBEY RAVENSCROFT PARK NURSING HOME,"3,150.00",30/09/2016
Delivery Units,Adults and Communities,Other Agencies - Third Party P,30137611,ABBEY RAVENSCROFT PARK NURSING HOME,"3,150.00",30/09/2016
Delivery Units,Adults and Communities,Other Agencies - Third Party P,30137612,ABBEY RAVENSCROFT PARK NURSING HOME,"3,150.00",30/09/2016
Delivery Units,Adults and Communities,Other Agencies - Third Party P,30137613,ABBEY RAVENSCROFT PARK NURSING HOME,"3,150.00",30/09/2016
Delivery Units,Adults and Communities,Other Agencies - Third Party P,30137614,ABBEY RAVENSCROFT PARK NURSING HOME,"3,150.00",30/09/2016
Delivery Units,Adults and Communities,Other Agencies - Third Party P,30137615,ABBEY RAVENSCROFT PARK NURSING HOME,"3,150.00",30/09/2016
Delivery Units,Adults and Communities,Other Agencies - Third Party P,30137616,ABBEY RAVENSCROFT PARK NURSING HOME,"3,150.00",30/09/2016
Delivery Units,Adults and Communities,Other Agencies - Third Party P,30137617,ABBEY RAVENSCROFT PARK NURSING HOME,"2,698.37",30/09/2016
Delivery Units,Adults and Communities,Other Agencies - Third Party P,30137618,ABBEY RAVENSCROFT PARK NURSING HOME,"2,925.00",30/09/2016
Delivery Units,Adults and Communities,Other Agencies - Third Party P,30137619,ABBEY RAVENSCROFT PARK NURSING HOME,"3,150.00",30/09/2016
Delivery Units,Adults and Communities,Other Agencies - Third Party P,30137105,ABOUT ME CARE & SUPPORT LTD,"1,365.84",27/09/2016
Delivery Units,Adults and Communities,Other Agencies - Third Party P,30134152,ACCEDO CARE LTD,"5,800.00",05/09/2016
Delivery Units,Adults and Communities,Other Agencies - Third Party P,30134153,ACCEDO CARE LTD,"6,200.00",05/09/2016
Delivery Units,Adults and Communities,Other Agencies - Third Party P,30134154,ACCEDO CARE LTD,"6,594.14",05/09/2016
Delivery Units,Adults and Communities,Other Agencies - Third Party P,30134961,AGUDAS ISRAEL HOUSING ASSCTN LTD,"1,092.02",16/09/2016
Delivery Units,Adults and Communities,Other Agencies - Third Party P,30134979,AGUDAS ISRAEL HOUSING ASSCTN LTD,"2,736.86",16/09/2016
Delivery Units,Adults and Communities,Other Agencies - Third Party P,30134986,AGUDAS ISRAEL HOUSING ASSCTN LTD,"3,154.25",16/09/2016
Delivery Units,Adults and Communities,Other Agencies - Third Party P,30135230,ALDWYCK HOUSING GROUP,"2,176.89",21/09/2016
Delivery Units,Adults and Communities,Other Agencies - Third Party P,30135231,ALDWYCK HOUSING GROUP,"2,176.89",21/09/2016
Delivery Units,Adults and Communities,Other Agencies - Third Party P,30135232,ALDWYCK HOUSING GROUP,"2,176.89",21/09/2016
Delivery Units,Adults and Communities,Other Agencies - Third Party P,30135233,ALDWYCK HOUSING GROUP,"2,176.89",21/09/2016
Delivery Units,Adults and Communities,Other Agencies - Third Party P,30135234,ALDWYCK HOUSING GROUP,"2,176.89",21/09/2016
Delivery Units,Adults and Communities,Other Agencies - Third Party P,30134963,ANA HOMECARE LTD,"1,371.39",16/09/2016
Delivery Units,Adults and Communities,Other Agencies - Third Party P,30134964,ANA HOMECARE LTD,-7.50,16/09/2016
Delivery Units,Adults and Communities,Other Agencies - Third Party P,30137113,ANA HOMECARE LTD,157.36,27/09/2016
Delivery Units,Adults and Communities,Other Agencies - Third Party P,30137114,ANA HOMECARE LTD,367.36,27/09/2016
Delivery Units,Adults and Communities,Other Agencies - Third Party P,30137115,ANA HOMECARE LTD,33.72,27/09/2016
Delivery Units,Adults and Communities,Other Agencies - Third Party P,30137116,ANA HOMECARE LTD,352.36,27/09/2016
Delivery Units,Adults and Communities,Other Agencies - Third Party P,30137117,ANA HOMECARE LTD,104.96,27/09/2016
Delivery Units,Adults and Communities,Other Agencies - Third Party P,30137118,ANA HOMECARE LTD,179.88,27/09/2016
Delivery Units,Adults and Communities,Other Agencies - Third Party P,30137119,ANA HOMECARE LTD,22.50,27/09/2016
Delivery Units,Adults and Communities,Other Agencies - Third Party P,30137120,ANA HOMECARE LTD,164.92,27/09/2016
Delivery Units,Adults and Communities,Other Agencies - Third Party P,30137121,ANA HOMECARE LTD,101.16,27/09/2016
Delivery Units,Adults and Communities,Other Agencies - Third Party P,30137122,ANA HOMECARE LTD,322.38,27/09/2016
Delivery Units,Adults and Communities,Other Agencies - Third Party P,30137123,ANA HOMECARE LTD,26.24,27/09/2016
Delivery Units,Adults and Communities,Other Agencies - Third Party P,30137124,ANA HOMECARE LTD,14.99,27/09/2016
Delivery Units,Adults and Communities,Other Agencies - Third Party P,30137125,ANA HOMECARE LTD,352.36,27/09/2016
Delivery Units,Adults and Communities,Other Agencies - Third Party P,30137126,ANA HOMECARE LTD,329.88,27/09/2016
Delivery Units,Adults and Communities,Other Agencies - Third Party P,30137146,ANASTASIA LODGE,"3,000.00",27/09/2016
Delivery Units,Adults and Communities,Other Agencies - Third Party P,30137147,ANASTASIA LODGE,"3,000.00",27/09/2016
Delivery Units,Adults and Communities,Other Agencies - Third Party P,30137556,ANGEL HEALTHCARE LTD - GLENMUIR HOUSE,"5,450.31",30/09/2016
Delivery Units,Adults and Communities,Other Agencies - Third Party P,30137562,ANGEL HEALTHCARE LTD - GLENMUIR HOUSE,"2,211.72",30/09/2016
Delivery Units,Adults and Communities,Other Agencies - Third Party P,30137563,ANGEL HEALTHCARE LTD - GLENMUIR HOUSE,"2,211.72",30/09/2016
Delivery Units,Adults and Communities,Other Agencies - Third Party P,30137227,APPLE TREE COURT CARE HOME,"4,107.63",27/09/2016
Delivery Units,Adults and Communities,Other Agencies - Third Party P,30135079,ASHFIELDS RESIDENTIAL CARE HOME,"2,369.79",16/09/2016
Delivery Units,Adults and Communities,Other Agencies - Third Party P,30135080,ASHFIELDS RESIDENTIAL CARE HOME,"2,369.79",16/09/2016
Delivery Units,Adults and Communities,Other Agencies - Third Party P,30135081,ASHFIELDS RESIDENTIAL CARE HOME,"2,369.79",16/09/2016
Delivery Units,Adults and Communities,Other Agencies - Third Party P,30135082,ASHFIELDS RESIDENTIAL CARE HOME,"2,571.43",16/09/2016
Delivery Units,Adults and Communities,Other Agencies - Third Party P,30135083,ASHFIELDS RESIDENTIAL CARE HOME,"2,369.79",16/09/2016
Delivery Units,Adults and Communities,Other Agencies - Third Party P,30135084,ASHFIELDS RESIDENTIAL CARE HOME,"2,176.71",16/09/2016
Delivery Units,Adults and Communities,Other Agencies - Third Party P,30135085,ASHFIELDS RESIDENTIAL CARE HOME,"2,369.79",16/09/2016
Delivery Units,Adults and Communities,Other Agencies - Third Party P,30135086,ASHFIELDS RESIDENTIAL CARE HOME,"2,369.79",16/09/2016
Delivery Units,Adults and Communities,Other Agencies - Third Party P,80005536,ASHFIELDS RESIDENTIAL CARE HOME,"2,448.78",14/09/2016
Delivery Units,Adults and Communities,Other Agencies - Third Party P,30135326,ASHTON LODGE CARE CENTRE,"4,797.12",21/09/2016
Delivery Units,Adults and Communities,Other Agencies - Third Party P,30135327,ASHTON LODGE CARE CENTRE,"-1,027.95",21/09/2016
Delivery Units,Adults and Communities,Other Agencies - Third Party P,30135341,ASHTON LODGE CARE CENTRE,"9,107.14",21/09/2016
Delivery Units,Adults and Communities,Other Agencies - Third Party P,30135342,ASHTON LODGE CARE CENTRE,"3,642.86",21/09/2016
Delivery Units,Adults and Communities,Other Agencies - Third Party P,30137235,ASHTON LODGE CARE CENTRE,"2,397.72",27/09/2016
Delivery Units,Adults and Communities,Other Agencies - Third Party P,30137251,ASHTON LODGE CARE CENTRE,"2,655.55",27/09/2016
Delivery Units,Adults and Communities,Other Agencies - Third Party P,30137255,ASHTON LODGE CARE CENTRE,"2,655.55",27/09/2016
Delivery Units,Adults and Communities,Other Agencies - Third Party P,30137281,ASHTON LODGE CARE CENTRE,"4,914.29",27/09/2016
Delivery Units,Adults and Communities,Other Agencies - Third Party P,30137294,ASHTON LODGE CARE CENTRE,"2,249.45",27/09/2016
Delivery Units,Adults and Communities,Other Agencies - Third Party P,30137302,ASHTON LODGE CARE CENTRE,"2,655.55",27/09/2016
Delivery Units,Adults and Communities,Other Agencies - Third Party P,30137304,ASHTON LODGE CARE CENTRE,"2,397.72",27/09/2016
Delivery Units,Adults and Communities,Other Agencies - Third Party P,30137307,ASHTON LODGE CARE CENTRE,"2,657.14",27/09/2016
Delivery Units,Adults and Communities,Other Agencies - Third Party P,30137326,ASHTON LODGE CARE CENTRE,"2,657.14",27/09/2016
Delivery Units,Adults and Communities,Other Agencies - Third Party P,30137332,ASHTON LODGE CARE CENTRE,"2,448.78",27/09/2016
Delivery Units,Adults and Communities,Other Agencies - Third Party P,30137333,ASHTON LODGE CARE CENTRE,"3,764.29",27/09/2016
Delivery Units,Adults and Communities,Other Agencies - Third Party P,30137335,ASHTON LODGE CARE CENTRE,"1,199.28",27/09/2016
Delivery Units,Adults and Communities,Other Agencies - Third Party P,30137336,ASHTON LODGE CARE CENTRE,"2,502.14",27/09/2016
Delivery Units,Adults and Communities,Other Agencies - Third Party P,30137341,ASHTON LODGE CARE CENTRE,"2,655.55",27/09/2016
Delivery Units,Adults and Communities,Other Agencies - Third Party P,30137429,ASHTON LODGE CARE CENTRE,"2,448.78",27/09/2016
Delivery Units,Adults and Communities,Other Agencies - Third Party P,30137430,ASHTON LODGE CARE CENTRE,"3,268.29",27/09/2016
Delivery Units,Adults and Communities,Other Agencies - Third Party P,30137434,ASHTON LODGE CARE CENTRE,"2,397.72",27/09/2016
Delivery Units,Adults and Communities,Other Agencies - Third Party P,30137440,ASHTON LODGE CARE CENTRE,"3,932.57",27/09/2016
Delivery Units,Adults and Communities,Other Agencies - Third Party P,30133860,AUTUMN GARDENS,490.00,01/09/2016
Delivery Units,Adults and Communities,Other Agencies - Third Party P,30134162,AUTUMN GARDENS,70.00,05/09/2016
Delivery Units,Adults and Communities,Other Agencies - Third Party P,30135272,AUTUMN GARDENS,"3,160.00",21/09/2016
Delivery Units,Adults and Communities,Other Agencies - Third Party P,30135273,AUTUMN GARDENS,"4,800.00",21/09/2016
Delivery Units,Adults and Communities,Other Agencies - Third Party P,30135274,AUTUMN GARDENS,"2,880.00",21/09/2016
Delivery Units,Adults and Communities,Other Agencies - Third Party P,30135275,AUTUMN GARDENS,"2,800.00",21/09/2016
Delivery Units,Adults and Communities,Other Agencies - Third Party P,30135276,AUTUMN GARDENS,"2,184.04",21/09/2016
Delivery Units,Adults and Communities,Other Agencies - Third Party P,30137213,AUTUMN GARDENS,"3,160.00",27/09/2016
Delivery Units,Adults and Communities,Other Agencies - Third Party P,30137214,AUTUMN GARDENS,"4,800.00",27/09/2016
Delivery Units,Adults and Communities,Other Agencies - Third Party P,30137215,AUTUMN GARDENS,"2,880.00",27/09/2016
Delivery Units,Adults and Communities,Other Agencies - Third Party P,30137216,AUTUMN GARDENS,"2,800.00",27/09/2016
Delivery Units,Adults and Communities,Other Agencies - Third Party P,30137217,AUTUMN GARDENS,"2,184.04",27/09/2016
Delivery Units,Adults and Communities,Other Agencies - Third Party P,30137672,B & M CARE,"2,176.89",30/09/2016
Delivery Units,Adults and Communities,Other Agencies - Third Party P,30137673,B & M CARE,"2,982.86",30/09/2016
Delivery Units,Adults and Communities,Other Agencies - Third Party P,30137674,B & M CARE,"2,369.79",30/09/2016
Delivery Units,Adults and Communities,Other Agencies - Third Party P,30137675,B & M CARE,"2,369.79",30/09/2016
Delivery Units,Adults and Communities,Other Agencies - Third Party P,30137676,B & M CARE,"3,642.86",30/09/2016
Delivery Units,Adults and Communities,Other Agencies - Third Party P,30137677,B & M CARE,"3,642.86",30/09/2016
Delivery Units,Adults and Communities,Other Agencies - Third Party P,30130046,BARNET MENCAP,"18,197.25",26/09/2016
Delivery Units,Adults and Communities,Other Agencies - Third Party P,30130047,BARNET MENCAP,"18,197.25",26/09/2016
Delivery Units,Adults and Communities,Other Agencies - Third Party P,30137366,BARNET MENCAP,"18,197.25",27/09/2016
Delivery Units,Adults and Communities,Other Agencies - Third Party P,30133765,BAYTREE COMMUNITY CARE (LONDON) LTD,734.40,01/09/2016
Delivery Units,Adults and Communities,Other Agencies - Third Party P,30133766,BAYTREE COMMUNITY CARE (LONDON) LTD,"1,280.00",01/09/2016
Delivery Units,Adults and Communities,Other Agencies - Third Party P,30135468,BAYTREE COMMUNITY CARE (LONDON) LTD,734.40,22/09/2016
Delivery Units,Adults and Communities,Other Agencies - Third Party P,30135469,BAYTREE COMMUNITY CARE (LONDON) LTD,"1,280.00",22/09/2016
Delivery Units,Adults and Communities,Other Agencies - Third Party P,30137572,BAYTREE COMMUNITY CARE (LONDON) LTD,"2,797.06",30/09/2016
Delivery Units,Adults and Communities,Other Agencies - Third Party P,30137573,BAYTREE COMMUNITY CARE (LONDON) LTD,"2,600.01",30/09/2016
Delivery Units,Adults and Communities,Other Agencies - Third Party P,30137574,BAYTREE COMMUNITY CARE (LONDON) LTD,"2,014.84",30/09/2016
Delivery Units,Adults and Communities,Other Agencies - Third Party P,30137575,BAYTREE COMMUNITY CARE (LONDON) LTD,"2,294.99",30/09/2016
Delivery Units,Adults and Communities,Other Agencies - Third Party P,30137576,BAYTREE COMMUNITY CARE (LONDON) LTD,"3,424.27",30/09/2016
Delivery Units,Adults and Communities,Other Agencies - Third Party P,30137194,BENSLOW MANAGEMENT COMPANY LIMITED,"2,340.04",27/09/2016
Delivery Units,Adults and Communities,Other Agencies - Third Party P,30137195,BENSLOW MANAGEMENT COMPANY LIMITED,"-1,248.02",27/09/2016
Delivery Units,Adults and Communities,Other Agencies - Third Party P,30137242,BIRCHWOOD GRANGE CARE HOME,746.33,27/09/2016
Delivery Units,Adults and Communities,Other Agencies - Third Party P,30137243,BIRCHWOOD GRANGE CARE HOME,"2,321.92",27/09/2016
Delivery Units,Adults and Communities,Other Agencies - Third Party P,30137244,BIRCHWOOD GRANGE CARE HOME,331.70,27/09/2016
Delivery Units,Adults and Communities,Other Agencies - Third Party P,30137638,BIRCHWOOD GRANGE CARE HOME,"2,571.43",30/09/2016
Delivery Units,Adults and Communities,Other Agencies - Third Party P,30133943,BLUEBIRD CARE (BARNET),324.00,02/09/2016
Delivery Units,Adults and Communities,Other Agencies - Third Party P,30134295,BLUEBIRD CARE (BARNET),468.00,07/09/2016
Delivery Units,Adults and Communities,Other Agencies - Third Party P,30134296,BLUEBIRD CARE (BARNET),"1,252.00",07/09/2016
Delivery Units,Adults and Communities,Other Agencies - Third Party P,30134297,BLUEBIRD CARE (BARNET),686.50,07/09/2016
Delivery Units,Adults and Communities,Other Agencies - Third Party P,30134298,BLUEBIRD CARE (BARNET),688.00,07/09/2016
Delivery Units,Adults and Communities,Other Agencies - Third Party P,30134299,BLUEBIRD CARE (BARNET),360.00,07/09/2016
Delivery Units,Adults and Communities,Other Agencies - Third Party P,30134301,BLUEBIRD CARE (BARNET),676.00,07/09/2016
Delivery Units,Adults and Communities,Other Agencies - Third Party P,30134303,BLUEBIRD CARE (BARNET),-182.30,07/09/2016
Delivery Units,Adults and Communities,Other Agencies - Third Party P,30134352,BLUEBIRD CARE (BARNET),324.00,07/09/2016
Delivery Units,Adults and Communities,Other Agencies - Third Party P,30134353,BLUEBIRD CARE (BARNET),"1,106.00",07/09/2016
Delivery Units,Adults and Communities,Other Agencies - Third Party P,30134355,BLUEBIRD CARE (BARNET),636.00,07/09/2016
Delivery Units,Adults and Communities,Other Agencies - Third Party P,30134356,BLUEBIRD CARE (BARNET),84.00,07/09/2016
Delivery Units,Adults and Communities,Other Agencies - Third Party P,30134357,BLUEBIRD CARE (BARNET),288.00,07/09/2016
Delivery Units,Adults and Communities,Other Agencies - Third Party P,30134358,BLUEBIRD CARE (BARNET),168.00,07/09/2016
Delivery Units,Adults and Communities,Other Agencies - Third Party P,30134359,BLUEBIRD CARE (BARNET),"1,120.00",07/09/2016
Delivery Units,Adults and Communities,Other Agencies - Third Party P,30134360,BLUEBIRD CARE (BARNET),"1,362.00",07/09/2016
Delivery Units,Adults and Communities,Other Agencies - Third Party P,30134361,BLUEBIRD CARE (BARNET),672.00,07/09/2016
Delivery Units,Adults and Communities,Other Agencies - Third Party P,30134362,BLUEBIRD CARE (BARNET),290.50,07/09/2016
Delivery Units,Adults and Communities,Other Agencies - Third Party P,30134363,BLUEBIRD CARE (BARNET),312.00,07/09/2016
Delivery Units,Adults and Communities,Other Agencies - Third Party P,30134364,BLUEBIRD CARE (BARNET),"1,092.00",07/09/2016
Delivery Units,Adults and Communities,Other Agencies - Third Party P,30134366,BLUEBIRD CARE (BARNET),"1,068.00",07/09/2016
Delivery Units,Adults and Communities,Other Agencies - Third Party P,30134724,BLUEBIRD CARE (BARNET),"1,374.00",13/09/2016
Delivery Units,Adults and Communities,Other Agencies - Third Party P,30134725,BLUEBIRD CARE (BARNET),"1,364.00",13/09/2016
Delivery Units,Adults and Communities,Other Agencies - Third Party P,30134726,BLUEBIRD CARE (BARNET),12.00,13/09/2016
Delivery Units,Adults and Communities,Other Agencies - Third Party P,30134735,BLUEBIRD CARE (BARNET),"1,364.00",13/09/2016
Delivery Units,Adults and Communities,Other Agencies - Third Party P,30134736,BLUEBIRD CARE (BARNET),312.00,13/09/2016
Delivery Units,Adults and Communities,Other Agencies - Third Party P,30134737,BLUEBIRD CARE (BARNET),"1,200.00",13/09/2016
Delivery Units,Adults and Communities,Other Agencies - Third Party P,30134738,BLUEBIRD CARE (BARNET),"1,476.00",13/09/2016
Delivery Units,Adults and Communities,Other Agencies - Third Party P,30134739,BLUEBIRD CARE (BARNET),696.00,13/09/2016
Delivery Units,Adults and Communities,Other Agencies - Third Party P,30134740,BLUEBIRD CARE (BARNET),48.00,13/09/2016
Delivery Units,Adults and Communities,Other Agencies - Third Party P,30134741,BLUEBIRD CARE (BARNET),316.00,13/09/2016
Delivery Units,Adults and Communities,Other Agencies - Third Party P,30134971,BLUEBIRD CARE (BARNET),672.00,16/09/2016
Delivery Units,Adults and Communities,Other Agencies - Third Party P,30134972,BLUEBIRD CARE (BARNET),660.00,16/09/2016
Delivery Units,Adults and Communities,Other Agencies - Third Party P,30134973,BLUEBIRD CARE (BARNET),144.00,16/09/2016
Delivery Units,Adults and Communities,Other Agencies - Third Party P,30134974,BLUEBIRD CARE (BARNET),408.00,16/09/2016
Delivery Units,Adults and Communities,Other Agencies - Third Party P,30134975,BLUEBIRD CARE (BARNET),12.00,16/09/2016
Delivery Units,Adults and Communities,Other Agencies - Third Party P,30134976,BLUEBIRD CARE (BARNET),190.00,16/09/2016
Delivery Units,Adults and Communities,Other Agencies - Third Party P,30134977,BLUEBIRD CARE (BARNET),14.00,16/09/2016
Delivery Units,Adults and Communities,Other Agencies - Third Party P,30134978,BLUEBIRD CARE (BARNET),12.00,16/09/2016
Delivery Units,Adults and Communities,Other Agencies - Third Party P,30137128,BLUEBIRD CARE (BARNET),276.00,27/09/2016
Delivery Units,Adults and Communities,Other Agencies - Third Party P,30137129,BLUEBIRD CARE (BARNET),336.00,27/09/2016
Delivery Units,Adults and Communities,Other Agencies - Third Party P,30137130,BLUEBIRD CARE (BARNET),360.00,27/09/2016
Delivery Units,Adults and Communities,Other Agencies - Third Party P,30137131,BLUEBIRD CARE (BARNET),-360.00,27/09/2016
Delivery Units,Adults and Communities,Other Agencies - Third Party P,30137132,BLUEBIRD CARE (BARNET),-96.00,27/09/2016
Delivery Units,Adults and Communities,Other Agencies - Third Party P,30137133,BLUEBIRD CARE (BARNET),156.00,27/09/2016
Delivery Units,Adults and Communities,Other Agencies - Third Party P,30133740,BROOKDALE HEALTHCARE,"3,759.36",01/09/2016
Delivery Units,Adults and Communities,Other Agencies - Third Party P,30135461,BROOKDALE HEALTHCARE,"3,759.36",22/09/2016
Delivery Units,Adults and Communities,Other Agencies - Third Party P,30137066,BROOKDALE HEALTHCARE,-117.48,27/09/2016
Delivery Units,Adults and Communities,Other Agencies - Third Party P,30137067,BROOKDALE HEALTHCARE,763.62,27/09/2016
Delivery Units,Adults and Communities,Other Agencies - Third Party P,30137068,BROOKDALE HEALTHCARE,"1,820.94",27/09/2016
Delivery Units,Adults and Communities,Other Agencies - Third Party P,30137069,BROOKDALE HEALTHCARE,"1,762.20",27/09/2016
Delivery Units,Adults and Communities,Other Agencies - Third Party P,30137070,BROOKDALE HEALTHCARE,"1,820.94",27/09/2016
Delivery Units,Adults and Communities,Other Agencies - Third Party P,30137071,BROOKDALE HEALTHCARE,"1,820.94",27/09/2016
Delivery Units,Adults and Communities,Other Agencies - Third Party P,30137072,BROOKDALE HEALTHCARE,"1,703.46",27/09/2016
Delivery Units,Adults and Communities,Other Agencies - Third Party P,30137073,BROOKDALE HEALTHCARE,"1,820.94",27/09/2016
Delivery Units,Adults and Communities,Other Agencies - Third Party P,30137074,BROOKDALE HEALTHCARE,"1,762.20",27/09/2016
Delivery Units,Adults and Communities,Other Agencies - Third Party P,30137075,BROOKDALE HEALTHCARE,"1,820.94",27/09/2016
Delivery Units,Adults and Communities,Other Agencies - Third Party P,30137076,BROOKDALE HEALTHCARE,"9,300.00",27/09/2016
Delivery Units,Adults and Communities,Other Agencies - Third Party P,30137077,BROOKDALE HEALTHCARE,"9,610.00",27/09/2016
Delivery Units,Adults and Communities,Other Agencies - Third Party P,30137537,BROOKDALE HEALTHCARE,"9,000.00",30/09/2016
Delivery Units,Adults and Communities,Other Agencies - Third Party P,30137538,BROOKDALE HEALTHCARE,"9,300.00",30/09/2016
Delivery Units,Adults and Communities,Other Agencies - Third Party P,30134436,BRUNSWICK SUPPORTED LIVING SERVICES,"1,412.68",07/09/2016
Delivery Units,Adults and Communities,Other Agencies - Third Party P,30134437,BRUNSWICK SUPPORTED LIVING SERVICES,"1,942.84",07/09/2016
Delivery Units,Adults and Communities,Other Agencies - Third Party P,30134444,BRUNSWICK SUPPORTED LIVING SERVICES,"2,153.92",07/09/2016
Delivery Units,Adults and Communities,Other Agencies - Third Party P,30133901,BUPA CARE HOMES,781.73,01/09/2016
Delivery Units,Adults and Communities,Other Agencies - Third Party P,30133902,BUPA CARE HOMES,522.57,01/09/2016
Delivery Units,Adults and Communities,Other Agencies - Third Party P,30134188,BUPA CARE HOMES,"2,330.19",05/09/2016
Delivery Units,Adults and Communities,Other Agencies - Third Party P,30134431,BUPA CARE HOMES,41.94,07/09/2016
Delivery Units,Adults and Communities,Other Agencies - Third Party P,30134432,BUPA CARE HOMES,"2,829.73",07/09/2016
Delivery Units,Adults and Communities,Other Agencies - Third Party P,30134433,BUPA CARE HOMES,239.43,07/09/2016
Delivery Units,Adults and Communities,Other Agencies - Third Party P,30134434,BUPA CARE HOMES,"2,244.13",07/09/2016
Delivery Units,Adults and Communities,Other Agencies - Third Party P,30134477,BUPA CARE HOMES,"2,487.77",07/09/2016
Delivery Units,Adults and Communities,Other Agencies - Third Party P,30135095,BUPA CARE HOMES,"2,242.48",16/09/2016
Delivery Units,Adults and Communities,Other Agencies - Third Party P,30135096,BUPA CARE HOMES,"2,569.22",16/09/2016
Delivery Units,Adults and Communities,Other Agencies - Third Party P,30135097,BUPA CARE HOMES,"2,991.07",16/09/2016
Delivery Units,Adults and Communities,Other Agencies - Third Party P,30135098,BUPA CARE HOMES,"2,448.78",16/09/2016
Delivery Units,Adults and Communities,Other Agencies - Third Party P,30135099,BUPA CARE HOMES,"4,650.00",16/09/2016
Delivery Units,Adults and Communities,Other Agencies - Third Party P,30135100,BUPA CARE HOMES,"1,622.27",16/09/2016
Delivery Units,Adults and Communities,Other Agencies - Third Party P,30135101,BUPA CARE HOMES,-126.95,16/09/2016
Delivery Units,Adults and Communities,Other Agencies - Third Party P,30135102,BUPA CARE HOMES,-131.18,16/09/2016
Delivery Units,Adults and Communities,Other Agencies - Third Party P,30135103,BUPA CARE HOMES,-131.18,16/09/2016
Delivery Units,Adults and Communities,Other Agencies - Third Party P,30135139,BUPA CARE HOMES,"2,443.64",16/09/2016
Delivery Units,Adults and Communities,Other Agencies - Third Party P,30135338,BUPA CARE HOMES,"3,035.20",21/09/2016
Delivery Units,Adults and Communities,Other Agencies - Third Party P,30135339,BUPA CARE HOMES,"3,683.35",21/09/2016
Delivery Units,Adults and Communities,Other Agencies - Third Party P,30135352,BUPA CARE HOMES,"4,842.64",20/09/2016
Delivery Units,Adults and Communities,Other Agencies - Third Party P,30137295,BUPA CARE HOMES,"2,492.75",27/09/2016
Delivery Units,Adults and Communities,Other Agencies - Third Party P,30137298,BUPA CARE HOMES,"8,767.41",27/09/2016
Delivery Units,Adults and Communities,Other Agencies - Third Party P,30137300,BUPA CARE HOMES,"2,902.31",27/09/2016
Delivery Units,Adults and Communities,Other Agencies - Third Party P,30137431,BUPA CARE HOMES,"2,491.35",27/09/2016
Delivery Units,Adults and Communities,Other Agencies - Third Party P,30137681,BUPA CARE HOMES,"2,144.91",30/09/2016
Delivery Units,Adults and Communities,Other Agencies - Third Party P,30137682,BUPA CARE HOMES,522.57,30/09/2016
Delivery Units,Adults and Communities,Other Agencies - Third Party P,30137755,BUPA CARE HOMES,"2,239.50",30/09/2016
Delivery Units,Adults and Communities,Other Agencies - Third Party P,30137639,BUPA CARE HOMES - BRUNSWICK COURT,"3,385.71",30/09/2016
Delivery Units,Adults and Communities,Other Agencies - Third Party P,30133884,BUPA NURSING HOMES LTD - ARKLEY,"1,082.84",01/09/2016
Delivery Units,Adults and Communities,Other Agencies - Third Party P,30133885,BUPA NURSING HOMES LTD - ARKLEY,"2,470.46",01/09/2016
Delivery Units,Adults and Communities,Other Agencies - Third Party P,30133886,BUPA NURSING HOMES LTD - ARKLEY,"2,748.64",01/09/2016
Delivery Units,Adults and Communities,Other Agencies - Third Party P,30133887,BUPA NURSING HOMES LTD - ARKLEY,"2,748.64",01/09/2016
Delivery Units,Adults and Communities,Other Agencies - Third Party P,30133888,BUPA NURSING HOMES LTD - ARKLEY,"2,748.64",01/09/2016
Delivery Units,Adults and Communities,Other Agencies - Third Party P,30133889,BUPA NURSING HOMES LTD - ARKLEY,"1,814.74",01/09/2016
Delivery Units,Adults and Communities,Other Agencies - Third Party P,30133890,BUPA NURSING HOMES LTD - ARKLEY,"2,094.52",01/09/2016
Delivery Units,Adults and Communities,Other Agencies - Third Party P,30133891,BUPA NURSING HOMES LTD - ARKLEY,"2,578.05",01/09/2016
Delivery Units,Adults and Communities,Other Agencies - Third Party P,30133892,BUPA NURSING HOMES LTD - ARKLEY,"2,337.46",01/09/2016
Delivery Units,Adults and Communities,Other Agencies - Third Party P,30133893,BUPA NURSING HOMES LTD - ARKLEY,"3,736.64",01/09/2016
Delivery Units,Adults and Communities,Other Agencies - Third Party P,30137237,BUPA NURSING HOMES LTD - ARKLEY,"2,837.54",27/09/2016
Delivery Units,Adults and Communities,Other Agencies - Third Party P,30137238,BUPA NURSING HOMES LTD - ARKLEY,"2,934.28",27/09/2016
Delivery Units,Adults and Communities,Other Agencies - Third Party P,30137624,BUPA NURSING HOMES LTD - ARKLEY,"2,227.52",30/09/2016
Delivery Units,Adults and Communities,Other Agencies - Third Party P,30137625,BUPA NURSING HOMES LTD - ARKLEY,"2,227.24",30/09/2016
Delivery Units,Adults and Communities,Other Agencies - Third Party P,30137626,BUPA NURSING HOMES LTD - ARKLEY,"2,227.24",30/09/2016
Delivery Units,Adults and Communities,Other Agencies - Third Party P,30137627,BUPA NURSING HOMES LTD - ARKLEY,"2,227.24",30/09/2016
Delivery Units,Adults and Communities,Other Agencies - Third Party P,30137628,BUPA NURSING HOMES LTD - ARKLEY,"1,606.84",30/09/2016
Delivery Units,Adults and Communities,Other Agencies - Third Party P,30137629,BUPA NURSING HOMES LTD - ARKLEY,"2,094.52",30/09/2016
Delivery Units,Adults and Communities,Other Agencies - Third Party P,30137630,BUPA NURSING HOMES LTD - ARKLEY,"2,375.44",30/09/2016
Delivery Units,Adults and Communities,Other Agencies - Third Party P,30137631,BUPA NURSING HOMES LTD - ARKLEY,"2,214.76",30/09/2016
Delivery Units,Adults and Communities,Other Agencies - Third Party P,30137632,BUPA NURSING HOMES LTD - ARKLEY,"3,484.16",30/09/2016
Delivery Units,Adults and Communities,Other Agencies - Third Party P,30134386,CAMPHILL DEVON COMMUNITY LIMITED,"4,508.00",07/09/2016
Delivery Units,Adults and Communities,Other Agencies - Third Party P,30134387,CAMPHILL DEVON COMMUNITY LIMITED,"4,508.00",07/09/2016
Delivery Units,Adults and Communities,Other Agencies - Third Party P,30137679,CARE ASSIST LIMITED,"4,071.43",30/09/2016
Delivery Units,Adults and Communities,Other Agencies - Third Party P,30137680,CARE ASSIST LIMITED,"4,071.43",30/09/2016
Delivery Units,Adults and Communities,Other Agencies - Third Party P,80005533,CARE ASSIST LIMITED,"4,207.14",08/09/2016
Delivery Units,Adults and Communities,Other Agencies - Third Party P,80005534,CARE ASSIST LIMITED,"4,207.14",08/09/2016
Delivery Units,Adults and Communities,Other Agencies - Third Party P,30133980,CARE WORLDWIDE (LONDON) LTD,"2,680.88",02/09/2016
Delivery Units,Adults and Communities,Other Agencies - Third Party P,30133981,CARE WORLDWIDE (LONDON) LTD,"3,936.46",02/09/2016
Delivery Units,Adults and Communities,Other Agencies - Third Party P,30133982,CARE WORLDWIDE (LONDON) LTD,"4,246.53",02/09/2016
Delivery Units,Adults and Communities,Other Agencies - Third Party P,30133983,CARE WORLDWIDE (LONDON) LTD,"2,685.98",02/09/2016
Delivery Units,Adults and Communities,Other Agencies - Third Party P,30133984,CARE WORLDWIDE (LONDON) LTD,"4,400.13",02/09/2016
Delivery Units,Adults and Communities,Other Agencies - Third Party P,30137253,CARETECH COMMUNITY SERVICES LTD,"-4,478.74",30/09/2016
Delivery Units,Adults and Communities,Other Agencies - Third Party P,30137379,CARETECH COMMUNITY SERVICES LTD,816.14,30/09/2016
Delivery Units,Adults and Communities,Other Agencies - Third Party P,30137380,CARETECH COMMUNITY SERVICES LTD,"1,088.14",30/09/2016
Delivery Units,Adults and Communities,Other Agencies - Third Party P,30137712,CARETECH COMMUNITY SERVICES LTD,459.94,30/09/2016
Delivery Units,Adults and Communities,Other Agencies - Third Party P,30137713,CARETECH COMMUNITY SERVICES LTD,"4,496.66",30/09/2016
Delivery Units,Adults and Communities,Other Agencies - Third Party P,30137714,CARETECH COMMUNITY SERVICES LTD,"7,375.71",30/09/2016
Delivery Units,Adults and Communities,Other Agencies - Third Party P,30137716,CARETECH COMMUNITY SERVICES LTD,789.81,30/09/2016
Delivery Units,Adults and Communities,Other Agencies - Third Party P,30137719,CARETECH COMMUNITY SERVICES LTD,"4,478.57",30/09/2016
Delivery Units,Adults and Communities,Other Agencies - Third Party P,30137720,CARETECH COMMUNITY SERVICES LTD,889.50,30/09/2016
Delivery Units,Adults and Communities,Other Agencies - Third Party P,30137723,CARETECH COMMUNITY SERVICES LTD,"1,053.04",30/09/2016
Delivery Units,Adults and Communities,Other Agencies - Third Party P,30137729,CARETECH COMMUNITY SERVICES LTD,"1,053.04",30/09/2016
Delivery Units,Adults and Communities,Other Agencies - Third Party P,30137730,CARETECH COMMUNITY SERVICES LTD,"4,478.57",30/09/2016
Delivery Units,Adults and Communities,Other Agencies - Third Party P,30137731,CARETECH COMMUNITY SERVICES LTD,"4,628.57",30/09/2016
Delivery Units,Adults and Communities,Other Agencies - Third Party P,30137734,CARETECH COMMUNITY SERVICES LTD,889.50,30/09/2016
Delivery Units,Adults and Communities,Other Agencies - Third Party P,30133866,CARING HOMES HEALTHCARE GROUP,"3,200.00",01/09/2016
Delivery Units,Adults and Communities,Other Agencies - Third Party P,30137218,CARING HOMES HEALTHCARE GROUP,"3,200.00",27/09/2016
Delivery Units,Adults and Communities,Other Agencies - Third Party P,30134157,CARLTON COURT (TLC GROUP),"2,671.43",05/09/2016
Delivery Units,Adults and Communities,Other Agencies - Third Party P,30134342,CARLTON COURT (TLC GROUP),"2,655.55",07/09/2016
Delivery Units,Adults and Communities,Other Agencies - Third Party P,30134343,CARLTON COURT (TLC GROUP),"-2,055.91",07/09/2016
Delivery Units,Adults and Communities,Other Agencies - Third Party P,30134348,CARLTON COURT (TLC GROUP),"1,199.28",07/09/2016
Delivery Units,Adults and Communities,Other Agencies - Third Party P,30137111,CARLTON COURT (TLC GROUP),"5,200.00",27/09/2016
Delivery Units,Adults and Communities,Other Agencies - Third Party P,30133880,CARTREF CARE HOME,"2,031.76",01/09/2016
Delivery Units,Adults and Communities,Other Agencies - Third Party P,30134161,CATHERINE LODGE,"1,772.86",05/09/2016
Delivery Units,Adults and Communities,Other Agencies - Third Party P,30134659,CATHERINE LODGE,"2,211.80",09/09/2016
Delivery Units,Adults and Communities,Other Agencies - Third Party P,30134660,CATHERINE LODGE,"2,211.80",09/09/2016
Delivery Units,Adults and Communities,Other Agencies - Third Party P,30134661,CATHERINE LODGE,"3,000.00",09/09/2016
Delivery Units,Adults and Communities,Other Agencies - Third Party P,30134663,CATHERINE LODGE,"2,211.80",09/09/2016
Delivery Units,Adults and Communities,Other Agencies - Third Party P,30134664,CATHERINE LODGE,"2,920.00",09/09/2016
Delivery Units,Adults and Communities,Other Agencies - Third Party P,30137139,CAVENDISH RADIO CARS,901.40,27/09/2016
Delivery Units,Adults and Communities,Other Agencies - Third Party P,30137140,CAVENDISH RADIO CARS,856.33,27/09/2016
Delivery Units,Adults and Communities,Other Agencies - Third Party P,30133744,CDR CARE LTD,800.00,01/09/2016
Delivery Units,Adults and Communities,Other Agencies - Third Party P,30133745,CDR CARE LTD,"1,680.00",01/09/2016
Delivery Units,Adults and Communities,Other Agencies - Third Party P,30133746,CDR CARE LTD,800.00,01/09/2016
Delivery Units,Adults and Communities,Other Agencies - Third Party P,30133747,CDR CARE LTD,800.00,01/09/2016
Delivery Units,Adults and Communities,Other Agencies - Third Party P,30133748,CDR CARE LTD,800.00,01/09/2016
Delivery Units,Adults and Communities,Other Agencies - Third Party P,30134279,CDR CARE LTD,"2,000.00",07/09/2016
Delivery Units,Adults and Communities,Other Agencies - Third Party P,30134338,CDR CARE LTD,"2,000.00",07/09/2016
Delivery Units,Adults and Communities,Other Agencies - Third Party P,30134996,CENTRAL MIDDLESEX SKILLS,"1,266.44",16/09/2016
Delivery Units,Adults and Communities,Other Agencies - Third Party P,30134997,CENTRAL MIDDLESEX SKILLS,723.68,16/09/2016
Delivery Units,Adults and Communities,Other Agencies - Third Party P,30133820,CLARE HOUSE NURSING HOME,"3,656.29",01/09/2016
Delivery Units,Adults and Communities,Other Agencies - Third Party P,30134413,CLOVELLY HOUSE RESID. HOME LTD,"2,211.80",08/09/2016
Delivery Units,Adults and Communities,Other Agencies - Third Party P,30137643,CLOVELLY HOUSE RESID. HOME LTD,"2,600.00",30/09/2016
Delivery Units,Adults and Communities,Other Agencies - Third Party P,30137644,CLOVELLY HOUSE RESID. HOME LTD,"2,211.80",30/09/2016
Delivery Units,Adults and Communities,Other Agencies - Third Party P,30137645,CLOVELLY HOUSE RESID. HOME LTD,"2,600.00",30/09/2016
Delivery Units,Adults and Communities,Other Agencies - Third Party P,30137646,CLOVELLY HOUSE RESID. HOME LTD,"2,211.80",30/09/2016
Delivery Units,Adults and Communities,Other Agencies - Third Party P,30137647,CLOVELLY HOUSE RESID. HOME LTD,"1,900.40",30/09/2016
Delivery Units,Adults and Communities,Other Agencies - Third Party P,30137648,CLOVELLY HOUSE RESID. HOME LTD,"2,600.00",30/09/2016
Delivery Units,Adults and Communities,Other Agencies - Third Party P,30137649,CLOVELLY HOUSE RESID. HOME LTD,"2,211.80",30/09/2016
Delivery Units,Adults and Communities,Other Agencies - Third Party P,30137650,CLOVELLY HOUSE RESID. HOME LTD,"2,211.80",30/09/2016
Delivery Units,Adults and Communities,Other Agencies - Third Party P,30134159,CMG HOMES LTD,"4,752.00",05/09/2016
Delivery Units,Adults and Communities,Other Agencies - Third Party P,30134376,CMG HOMES LTD,"3,240.96",07/09/2016
Delivery Units,Adults and Communities,Other Agencies - Third Party P,30137144,CMG HOMES LTD,633.00,27/09/2016
Delivery Units,Adults and Communities,Other Agencies - Third Party P,30135343,CONNIFERS CARE LTD,"7,137.90",29/09/2016
Delivery Units,Adults and Communities,Other Agencies - Third Party P,30135258,CRESWICK HOUSE,"7,123.12",21/09/2016
Delivery Units,Adults and Communities,Other Agencies - Third Party P,30135010,DABB PAA,273.24,16/09/2016
Delivery Units,Adults and Communities,Other Agencies - Third Party P,30137706,DELAMER HOUSE,"2,357.14",30/09/2016
Delivery Units,Adults and Communities,Other Agencies - Third Party P,30134004,DILLON CARE LTD,"3,900.00",02/09/2016
Delivery Units,Adults and Communities,Other Agencies - Third Party P,30133920,DIMENSIONS UK,309.96,01/09/2016
Delivery Units,Adults and Communities,Other Agencies - Third Party P,30133921,DIMENSIONS UK,309.96,01/09/2016
Delivery Units,Adults and Communities,Other Agencies - Third Party P,30133922,DIMENSIONS UK,258.30,01/09/2016
Delivery Units,Adults and Communities,Other Agencies - Third Party P,30133923,DIMENSIONS UK,309.96,01/09/2016
Delivery Units,Adults and Communities,Other Agencies - Third Party P,30133924,DIMENSIONS UK,309.96,01/09/2016
Delivery Units,Adults and Communities,Other Agencies - Third Party P,30133925,DIMENSIONS UK,309.96,01/09/2016
Delivery Units,Adults and Communities,Other Agencies - Third Party P,30134181,DIMENSIONS UK,"4,495.76",05/09/2016
Delivery Units,Adults and Communities,Other Agencies - Third Party P,30134182,DIMENSIONS UK,"4,495.76",05/09/2016
Delivery Units,Adults and Communities,Other Agencies - Third Party P,30134207,DIMENSIONS UK,149.60,06/09/2016
Delivery Units,Adults and Communities,Other Agencies - Third Party P,30134211,DIMENSIONS UK,"1,541.00",06/09/2016
Delivery Units,Adults and Communities,Other Agencies - Third Party P,30134215,DIMENSIONS UK,149.60,06/09/2016
Delivery Units,Adults and Communities,Other Agencies - Third Party P,30134216,DIMENSIONS UK,224.40,06/09/2016
Delivery Units,Adults and Communities,Other Agencies - Third Party P,30134217,DIMENSIONS UK,149.60,06/09/2016
Delivery Units,Adults and Communities,Other Agencies - Third Party P,30134218,DIMENSIONS UK,74.80,06/09/2016
Delivery Units,Adults and Communities,Other Agencies - Third Party P,30134219,DIMENSIONS UK,74.80,06/09/2016
Delivery Units,Adults and Communities,Other Agencies - Third Party P,30134220,DIMENSIONS UK,74.80,06/09/2016
Delivery Units,Adults and Communities,Other Agencies - Third Party P,30134221,DIMENSIONS UK,149.60,06/09/2016
Delivery Units,Adults and Communities,Other Agencies - Third Party P,30134222,DIMENSIONS UK,149.60,06/09/2016
Delivery Units,Adults and Communities,Other Agencies - Third Party P,30134223,DIMENSIONS UK,74.80,06/09/2016
Delivery Units,Adults and Communities,Other Agencies - Third Party P,30134224,DIMENSIONS UK,149.60,06/09/2016
Delivery Units,Adults and Communities,Other Agencies - Third Party P,30134225,DIMENSIONS UK,74.80,06/09/2016
Delivery Units,Adults and Communities,Other Agencies - Third Party P,30134226,DIMENSIONS UK,74.80,06/09/2016
Delivery Units,Adults and Communities,Other Agencies - Third Party P,30134227,DIMENSIONS UK,523.60,06/09/2016
Delivery Units,Adults and Communities,Other Agencies - Third Party P,30134228,DIMENSIONS UK,299.20,06/09/2016
Delivery Units,Adults and Communities,Other Agencies - Third Party P,30134229,DIMENSIONS UK,224.40,06/09/2016
Delivery Units,Adults and Communities,Other Agencies - Third Party P,30134230,DIMENSIONS UK,299.20,06/09/2016
Delivery Units,Adults and Communities,Other Agencies - Third Party P,30134260,DIMENSIONS UK,"2,128.00",06/09/2016
Delivery Units,Adults and Communities,Other Agencies - Third Party P,30134310,DIMENSIONS UK,912.00,07/09/2016
Delivery Units,Adults and Communities,Other Agencies - Third Party P,30134311,DIMENSIONS UK,897.60,07/09/2016
Delivery Units,Adults and Communities,Other Agencies - Third Party P,30134312,DIMENSIONS UK,448.80,07/09/2016
Delivery Units,Adults and Communities,Other Agencies - Third Party P,30134313,DIMENSIONS UK,149.60,07/09/2016
Delivery Units,Adults and Communities,Other Agencies - Third Party P,30134314,DIMENSIONS UK,112.20,07/09/2016
Delivery Units,Adults and Communities,Other Agencies - Third Party P,30134315,DIMENSIONS UK,149.60,07/09/2016
Delivery Units,Adults and Communities,Other Agencies - Third Party P,30134316,DIMENSIONS UK,149.60,07/09/2016
Delivery Units,Adults and Communities,Other Agencies - Third Party P,30134317,DIMENSIONS UK,149.60,07/09/2016
Delivery Units,Adults and Communities,Other Agencies - Third Party P,30134318,DIMENSIONS UK,448.80,07/09/2016
Delivery Units,Adults and Communities,Other Agencies - Third Party P,30134319,DIMENSIONS UK,149.60,07/09/2016
Delivery Units,Adults and Communities,Other Agencies - Third Party P,30134320,DIMENSIONS UK,149.60,07/09/2016
Delivery Units,Adults and Communities,Other Agencies - Third Party P,30134321,DIMENSIONS UK,374.00,07/09/2016
Delivery Units,Adults and Communities,Other Agencies - Third Party P,30134322,DIMENSIONS UK,149.60,07/09/2016
Delivery Units,Adults and Communities,Other Agencies - Third Party P,30134323,DIMENSIONS UK,"1,122.00",07/09/2016
Delivery Units,Adults and Communities,Other Agencies - Third Party P,30134324,DIMENSIONS UK,"1,570.80",07/09/2016
Delivery Units,Adults and Communities,Other Agencies - Third Party P,30134325,DIMENSIONS UK,224.40,07/09/2016
Delivery Units,Adults and Communities,Other Agencies - Third Party P,30134680,DIMENSIONS UK,748.00,09/09/2016
Delivery Units,Adults and Communities,Other Agencies - Third Party P,30134682,DIMENSIONS UK,149.60,09/09/2016
Delivery Units,Adults and Communities,Other Agencies - Third Party P,30135346,DIMENSIONS UK,-74.80,22/09/2016
Delivery Units,Adults and Communities,Other Agencies - Third Party P,30135347,DIMENSIONS UK,74.80,22/09/2016
Delivery Units,Adults and Communities,Other Agencies - Third Party P,30135499,DIMENSIONS UK,149.60,22/09/2016
Delivery Units,Adults and Communities,Other Agencies - Third Party P,30135500,DIMENSIONS UK,224.40,22/09/2016
Delivery Units,Adults and Communities,Other Agencies - Third Party P,30135501,DIMENSIONS UK,149.60,22/09/2016
Delivery Units,Adults and Communities,Other Agencies - Third Party P,30135502,DIMENSIONS UK,149.60,22/09/2016
Delivery Units,Adults and Communities,Other Agencies - Third Party P,30135503,DIMENSIONS UK,74.80,22/09/2016
Delivery Units,Adults and Communities,Other Agencies - Third Party P,30135504,DIMENSIONS UK,74.80,22/09/2016
Delivery Units,Adults and Communities,Other Agencies - Third Party P,30135505,DIMENSIONS UK,74.80,22/09/2016
Delivery Units,Adults and Communities,Other Agencies - Third Party P,30135506,DIMENSIONS UK,149.60,22/09/2016
Delivery Units,Adults and Communities,Other Agencies - Third Party P,30135507,DIMENSIONS UK,149.60,22/09/2016
Delivery Units,Adults and Communities,Other Agencies - Third Party P,30135508,DIMENSIONS UK,74.80,22/09/2016
Delivery Units,Adults and Communities,Other Agencies - Third Party P,30135509,DIMENSIONS UK,149.60,22/09/2016
Delivery Units,Adults and Communities,Other Agencies - Third Party P,30135510,DIMENSIONS UK,74.80,22/09/2016
Delivery Units,Adults and Communities,Other Agencies - Third Party P,30135511,DIMENSIONS UK,74.80,22/09/2016
Delivery Units,Adults and Communities,Other Agencies - Third Party P,30135512,DIMENSIONS UK,523.60,22/09/2016
Delivery Units,Adults and Communities,Other Agencies - Third Party P,30135513,DIMENSIONS UK,299.20,22/09/2016
Delivery Units,Adults and Communities,Other Agencies - Third Party P,30135514,DIMENSIONS UK,224.40,22/09/2016
Delivery Units,Adults and Communities,Other Agencies - Third Party P,30135515,DIMENSIONS UK,299.20,22/09/2016
Delivery Units,Adults and Communities,Other Agencies - Third Party P,30135516,DIMENSIONS UK,897.60,22/09/2016
Delivery Units,Adults and Communities,Other Agencies - Third Party P,30135517,DIMENSIONS UK,448.80,22/09/2016
Delivery Units,Adults and Communities,Other Agencies - Third Party P,30135518,DIMENSIONS UK,149.60,22/09/2016
Delivery Units,Adults and Communities,Other Agencies - Third Party P,30135519,DIMENSIONS UK,112.20,22/09/2016
Delivery Units,Adults and Communities,Other Agencies - Third Party P,30135520,DIMENSIONS UK,149.60,22/09/2016
Delivery Units,Adults and Communities,Other Agencies - Third Party P,30135521,DIMENSIONS UK,149.60,22/09/2016
Delivery Units,Adults and Communities,Other Agencies - Third Party P,30135522,DIMENSIONS UK,149.60,22/09/2016
Delivery Units,Adults and Communities,Other Agencies - Third Party P,30135523,DIMENSIONS UK,448.80,22/09/2016
Delivery Units,Adults and Communities,Other Agencies - Third Party P,30135524,DIMENSIONS UK,149.60,22/09/2016
Delivery Units,Adults and Communities,Other Agencies - Third Party P,30137370,DIMENSIONS UK,149.60,27/09/2016
Delivery Units,Adults and Communities,Other Agencies - Third Party P,30137371,DIMENSIONS UK,374.00,27/09/2016
Delivery Units,Adults and Communities,Other Agencies - Third Party P,30137372,DIMENSIONS UK,149.60,27/09/2016
Delivery Units,Adults and Communities,Other Agencies - Third Party P,30137373,DIMENSIONS UK,"1,122.00",27/09/2016
Delivery Units,Adults and Communities,Other Agencies - Third Party P,30137374,DIMENSIONS UK,"1,570.80",27/09/2016
Delivery Units,Adults and Communities,Other Agencies - Third Party P,30137375,DIMENSIONS UK,224.40,27/09/2016
Delivery Units,Adults and Communities,Other Agencies - Third Party P,30137569,DOWNLANDS CARE LTD,"2,012.10",30/09/2016
Delivery Units,Adults and Communities,Other Agencies - Third Party P,30135088,DR FRENCH MEMORIAL HOME LTD,"1,658.85",16/09/2016
Delivery Units,Adults and Communities,Other Agencies - Third Party P,30134339,EASTSIDE HOUSE RESIDENTIAL CARE HOM,"2,031.76",06/09/2016
Delivery Units,Adults and Communities,Other Agencies - Third Party P,80005421,EASTSIDE HOUSE RESIDENTIAL CARE HOM,"2,031.76",09/09/2016
Delivery Units,Adults and Communities,Other Agencies - Third Party P,30133856,ELEANOR PALMER TRUST NO 2 A/C.,"4,830.00",01/09/2016
Delivery Units,Adults and Communities,Other Agencies - Third Party P,30134390,ELEANOR PALMER TRUST NO 2 A/C.,680.28,07/09/2016
Delivery Units,Adults and Communities,Other Agencies - Third Party P,30135268,ELEANOR PALMER TRUST NO 2 A/C.,"2,031.76",21/09/2016
Delivery Units,Adults and Communities,Other Agencies - Third Party P,30137176,ELEANOR PALMER TRUST NO 2 A/C.,"4,136.08",27/09/2016
Delivery Units,Adults and Communities,Other Agencies - Third Party P,30137166,ELIZA HOUSE,"2,448.78",27/09/2016
Delivery Units,Adults and Communities,Other Agencies - Third Party P,30137167,ELIZA HOUSE,"2,369.79",27/09/2016
Delivery Units,Adults and Communities,Other Agencies - Third Party P,30133903,ELIZABETH HOUSE,"2,448.78",01/09/2016
Delivery Units,Adults and Communities,Other Agencies - Third Party P,30137301,ELIZABETH HOUSE,"2,369.79",27/09/2016
Delivery Units,Adults and Communities,Other Agencies - Third Party P,30137361,ELM PARK LODGE,"3,432.14",27/09/2016
Delivery Units,Adults and Communities,Other Agencies - Third Party P,30133843,ELMHURST RESIDENTIAL HOME,"3,396.69",01/09/2016
Delivery Units,Adults and Communities,Other Agencies - Third Party P,30135090,EMMAUS HOUSE,"2,211.80",16/09/2016
Delivery Units,Adults and Communities,Other Agencies - Third Party P,30134402,FERNBANK NURSING HOME.,"2,397.54",07/09/2016
Delivery Units,Adults and Communities,Other Agencies - Third Party P,30134403,FERNBANK NURSING HOME.,"2,397.54",07/09/2016
Delivery Units,Adults and Communities,Other Agencies - Third Party P,30134404,FERNBANK NURSING HOME.,"2,397.54",07/09/2016
Delivery Units,Adults and Communities,Other Agencies - Third Party P,30134405,FERNBANK NURSING HOME.,"2,397.54",07/09/2016
Delivery Units,Adults and Communities,Other Agencies - Third Party P,30134406,FERNBANK NURSING HOME.,"2,397.54",07/09/2016
Delivery Units,Adults and Communities,Other Agencies - Third Party P,30134396,FINBOND LIMITED,"3,321.43",07/09/2016
Delivery Units,Adults and Communities,Other Agencies - Third Party P,30134397,FINBOND LIMITED,"3,214.29",07/09/2016
Delivery Units,Adults and Communities,Other Agencies - Third Party P,30134398,FINBOND LIMITED,"2,571.43",14/09/2016
Delivery Units,Adults and Communities,Other Agencies - Third Party P,30134399,FINBOND LIMITED,"3,321.43",08/09/2016
Delivery Units,Adults and Communities,Other Agencies - Third Party P,30137581,FINBOND LIMITED,"2,144.91",30/09/2016
Delivery Units,Adults and Communities,Other Agencies - Third Party P,30137582,FINBOND LIMITED,"2,340.04",30/09/2016
Delivery Units,Adults and Communities,Other Agencies - Third Party P,30137583,FINBOND LIMITED,"2,352.86",30/09/2016
Delivery Units,Adults and Communities,Other Agencies - Third Party P,30137584,FINBOND LIMITED,"3,214.29",30/09/2016
Delivery Units,Adults and Communities,Other Agencies - Third Party P,30135106,FLAGSWAN TWO LTD,"3,072.33",16/09/2016
Delivery Units,Adults and Communities,Other Agencies - Third Party P,30135107,FLAGSWAN TWO LTD,"2,546.43",16/09/2016
Delivery Units,Adults and Communities,Other Agencies - Third Party P,30134727,FLEXSERVE RESOURCE LTD,"2,937.20",13/09/2016
Delivery Units,Adults and Communities,Other Agencies - Third Party P,30134728,FLEXSERVE RESOURCE LTD,"1,410.45",13/09/2016
Delivery Units,Adults and Communities,Other Agencies - Third Party P,30134729,FLEXSERVE RESOURCE LTD,"1,356.15",13/09/2016
Delivery Units,Adults and Communities,Other Agencies - Third Party P,30134730,FLEXSERVE RESOURCE LTD,"2,044.75",13/09/2016
Delivery Units,Adults and Communities,Other Agencies - Third Party P,30134731,FLEXSERVE RESOURCE LTD,143.40,13/09/2016
Delivery Units,Adults and Communities,Other Agencies - Third Party P,30134732,FLEXSERVE RESOURCE LTD,"1,506.40",13/09/2016
Delivery Units,Adults and Communities,Other Agencies - Third Party P,30134733,FLEXSERVE RESOURCE LTD,"1,422.40",13/09/2016
Delivery Units,Adults and Communities,Other Agencies - Third Party P,30134734,FLEXSERVE RESOURCE LTD,684.60,13/09/2016
Delivery Units,Adults and Communities,Other Agencies - Third Party P,30133905,FOUR SEASONS HEALTH CARE,"1,011.11",01/09/2016
Delivery Units,Adults and Communities,Other Agencies - Third Party P,30133906,FOUR SEASONS HEALTH CARE,773.46,01/09/2016
Delivery Units,Adults and Communities,Other Agencies - Third Party P,30133907,FOUR SEASONS HEALTH CARE,497.10,01/09/2016
Delivery Units,Adults and Communities,Other Agencies - Third Party P,30134658,FOUR SEASONS HEALTH CARE (NO.4) LTD,"2,004.00",09/09/2016
Delivery Units,Adults and Communities,Other Agencies - Third Party P,30133926,FREEWAYS TRUST LIMITED,829.80,01/09/2016
Delivery Units,Adults and Communities,Other Agencies - Third Party P,30134469,FREEWAYS TRUST LIMITED,829.80,23/09/2016
Delivery Units,Adults and Communities,Other Agencies - Third Party P,30133894,FREMANTLE TRUST,"-2,415.00",01/09/2016
Delivery Units,Adults and Communities,Other Agencies - Third Party P,30133895,FREMANTLE TRUST,"2,096.32",01/09/2016
Delivery Units,Adults and Communities,Other Agencies - Third Party P,30133896,FREMANTLE TRUST,"3,540.00",01/09/2016
Delivery Units,Adults and Communities,Other Agencies - Third Party P,30133897,FREMANTLE TRUST,383.04,01/09/2016
Delivery Units,Adults and Communities,Other Agencies - Third Party P,30133898,FREMANTLE TRUST,"5,635.00",01/09/2016
Delivery Units,Adults and Communities,Other Agencies - Third Party P,30133899,FREMANTLE TRUST,920.00,01/09/2016
Delivery Units,Adults and Communities,Other Agencies - Third Party P,30133908,FREMANTLE TRUST,"3,581.96",01/09/2016
Delivery Units,Adults and Communities,Other Agencies - Third Party P,30137256,FREMANTLE TRUST,"2,096.32",27/09/2016
Delivery Units,Adults and Communities,Other Agencies - Third Party P,30137257,FREMANTLE TRUST,"3,540.00",27/09/2016
Delivery Units,Adults and Communities,Other Agencies - Third Party P,30137258,FREMANTLE TRUST,383.04,27/09/2016
Delivery Units,Adults and Communities,Other Agencies - Third Party P,30137259,FREMANTLE TRUST,"3,220.00",27/09/2016
Delivery Units,Adults and Communities,Other Agencies - Third Party P,30133759,FRIARY LODGE,"2,448.78",01/09/2016
Delivery Units,Adults and Communities,Other Agencies - Third Party P,30133760,FRIARY LODGE,"2,249.44",01/09/2016
Delivery Units,Adults and Communities,Other Agencies - Third Party P,30133764,FRIARY LODGE,"2,448.78",01/09/2016
Delivery Units,Adults and Communities,Other Agencies - Third Party P,30134395,FRIARY LODGE,"2,448.78",07/09/2016
Delivery Units,Adults and Communities,Other Agencies - Third Party P,30137168,FRIARY LODGE,"2,369.78",29/09/2016
Delivery Units,Adults and Communities,Other Agencies - Third Party P,30137170,FRIARY LODGE,"2,176.88",29/09/2016
Delivery Units,Adults and Communities,Other Agencies - Third Party P,30137200,FRIARY LODGE,"2,369.78",29/09/2016
Delivery Units,Adults and Communities,Other Agencies - Third Party P,30137220,FRIARY LODGE,"2,369.78",29/09/2016
Delivery Units,Adults and Communities,Other Agencies - Third Party P,30134668,FRIEND IN NEED COMMUNITY CENTRE,240.00,09/09/2016
Delivery Units,Adults and Communities,Other Agencies - Third Party P,30134669,FRIEND IN NEED COMMUNITY CENTRE,165.00,09/09/2016
Delivery Units,Adults and Communities,Other Agencies - Third Party P,30134670,FRIEND IN NEED COMMUNITY CENTRE,150.00,09/09/2016
Delivery Units,Adults and Communities,Other Agencies - Third Party P,30134671,FRIEND IN NEED COMMUNITY CENTRE,135.00,09/09/2016
Delivery Units,Adults and Communities,Other Agencies - Third Party P,30134672,FRIEND IN NEED COMMUNITY CENTRE,190.00,09/09/2016
Delivery Units,Adults and Communities,Other Agencies - Third Party P,30134673,FRIEND IN NEED COMMUNITY CENTRE,180.00,09/09/2016
Delivery Units,Adults and Communities,Other Agencies - Third Party P,30134674,FRIEND IN NEED COMMUNITY CENTRE,160.00,09/09/2016
Delivery Units,Adults and Communities,Other Agencies - Third Party P,30134170,FRIERN RESIDENTIAL CARE HOME,"3,000.00",05/09/2016
Delivery Units,Adults and Communities,Other Agencies - Third Party P,30137633,FRIERN RESIDENTIAL CARE HOME,"2,035.46",30/09/2016
Delivery Units,Adults and Communities,Other Agencies - Third Party P,30137637,FRIERN RESIDENTIAL CARE HOME,"3,857.14",30/09/2016
Delivery Units,Adults and Communities,Other Agencies - Third Party P,30117950,GENTLE CARE,"-1,185.36",16/09/2016
Delivery Units,Adults and Communities,Other Agencies - Third Party P,30124466,GENTLE CARE,238.20,16/09/2016
Delivery Units,Adults and Communities,Other Agencies - Third Party P,30124467,GENTLE CARE,230.26,16/09/2016
Delivery Units,Adults and Communities,Other Agencies - Third Party P,30126499,GENTLE CARE,230.26,16/09/2016
Delivery Units,Adults and Communities,Other Agencies - Third Party P,30129552,GENTLE CARE,222.32,16/09/2016
Delivery Units,Adults and Communities,Other Agencies - Third Party P,30131666,GENTLE CARE,222.32,16/09/2016
Delivery Units,Adults and Communities,Other Agencies - Third Party P,30135016,GENTLE CARE,222.32,16/09/2016
Delivery Units,Adults and Communities,Other Agencies - Third Party P,30135330,GENTLE HANDS CARE AGENCY,"1,400.00",21/09/2016
Delivery Units,Adults and Communities,Other Agencies - Third Party P,30135331,GENTLE HANDS CARE AGENCY,189.00,21/09/2016
Delivery Units,Adults and Communities,Other Agencies - Third Party P,30135332,GENTLE HANDS CARE AGENCY,468.00,21/09/2016
Delivery Units,Adults and Communities,Other Agencies - Third Party P,30135094,GENTLE HANDS CARE HOMES LIMITED,"4,394.00",16/09/2016
Delivery Units,Adults and Communities,Other Agencies - Third Party P,30135137,GENTLE HANDS CARE HOMES LIMITED,"1,080.00",16/09/2016
Delivery Units,Adults and Communities,Other Agencies - Third Party P,30135333,GENTLE HANDS CARE HOMES LIMITED,"3,419.00",21/09/2016
Delivery Units,Adults and Communities,Other Agencies - Third Party P,30137652,GLENHOLME PSYCHIATRIC AFTER CARE HO,"3,964.89",30/09/2016
Delivery Units,Adults and Communities,Other Agencies - Third Party P,30137666,GLENHOLME PSYCHIATRIC AFTER CARE HO,"4,125.43",30/09/2016
Delivery Units,Adults and Communities,Other Agencies - Third Party P,30137697,GLENHOLME PSYCHIATRIC AFTER CARE HO,"3,857.57",30/09/2016
Delivery Units,Adults and Communities,Other Agencies - Third Party P,30137757,GLENHOLME PSYCHIATRIC AFTER CARE HO,"4,071.43",30/09/2016
Delivery Units,Adults and Communities,Other Agencies - Third Party P,30137694,GREEN TREES,"2,678.57",30/09/2016
Delivery Units,Adults and Communities,Other Agencies - Third Party P,30137671,HALLMARK CARE (KINGS LYNN) LTD,"2,797.07",30/09/2016
Delivery Units,Adults and Communities,Other Agencies - Third Party P,30135843,HARDEN,"4,343.12",23/09/2016
Delivery Units,Adults and Communities,Other Agencies - Third Party P,30135005,HARTLEY CENTRE,"3,427.20",16/09/2016
Delivery Units,Adults and Communities,Other Agencies - Third Party P,30135006,HARTLEY CENTRE,856.80,16/09/2016
Delivery Units,Adults and Communities,Other Agencies - Third Party P,30133965,HFH HEALTHCARE LTD,"8,310.92",02/09/2016
Delivery Units,Adults and Communities,Other Agencies - Third Party P,30135271,HILLGREEN CARE LTD,"7,093.24",21/09/2016
Delivery Units,Adults and Communities,Other Agencies - Third Party P,30134435,HILTON LODGE LTD.,"2,700.00",07/09/2016
Delivery Units,Adults and Communities,Other Agencies - Third Party P,30134440,HILTON LODGE LTD.,"1,184.90",07/09/2016
Delivery Units,Adults and Communities,Other Agencies - Third Party P,30134441,HILTON LODGE LTD.,"2,922.86",07/09/2016
Delivery Units,Adults and Communities,Other Agencies - Third Party P,30134442,HILTON LODGE LTD.,"4,423.60",07/09/2016
Delivery Units,Adults and Communities,Other Agencies - Third Party P,30134443,HILTON LODGE LTD.,"2,256.04",07/09/2016
Delivery Units,Adults and Communities,Other Agencies - Third Party P,30134448,HILTON LODGE LTD.,"2,184.04",07/09/2016
Delivery Units,Adults and Communities,Other Agencies - Third Party P,30134449,HILTON LODGE LTD.,"2,184.04",07/09/2016
Delivery Units,Adults and Communities,Other Agencies - Third Party P,30134470,HILTON LODGE LTD.,"2,184.04",07/09/2016
Delivery Units,Adults and Communities,Other Agencies - Third Party P,30134472,HILTON LODGE LTD.,"2,184.04",07/09/2016
Delivery Units,Adults and Communities,Other Agencies - Third Party P,30137636,HONISTER RESIDENTIAL CARE LTD,"2,340.04",30/09/2016
Delivery Units,Adults and Communities,Other Agencies - Third Party P,60061330,HOUSING 21,634.56,05/09/2016
Delivery Units,Adults and Communities,Other Agencies - Third Party P,60061991,HOUSING 21,634.56,05/09/2016
Delivery Units,Adults and Communities,Other Agencies - Third Party P,60062300,HOUSING 21,634.56,07/09/2016
Delivery Units,Adults and Communities,Other Agencies - Third Party P,60062470,HOUSING 21,634.56,09/09/2016
Delivery Units,Adults and Communities,Other Agencies - Third Party P,30132159,HOUSING 21 (BARNET),-246.00,13/09/2016
Delivery Units,Adults and Communities,Other Agencies - Third Party P,30132160,HOUSING 21 (BARNET),-246.00,13/09/2016
Delivery Units,Adults and Communities,Other Agencies - Third Party P,30132161,HOUSING 21 (BARNET),-246.00,13/09/2016
Delivery Units,Adults and Communities,Other Agencies - Third Party P,30132198,HOUSING 21 (BARNET),-246.00,13/09/2016
Delivery Units,Adults and Communities,Other Agencies - Third Party P,30134764,HOUSING 21 (BARNET),-246.00,13/09/2016
Delivery Units,Adults and Communities,Other Agencies - Third Party P,30134765,HOUSING 21 (BARNET),-246.00,13/09/2016
Delivery Units,Adults and Communities,Other Agencies - Third Party P,30135217,HOUSING 21 (BARNET),-246.00,19/09/2016
Delivery Units,Adults and Communities,Other Agencies - Third Party P,30135218,HOUSING 21 (BARNET),-246.00,19/09/2016
Delivery Units,Adults and Communities,Other Agencies - Third Party P,30135350,HUSKARDS NEW CARE LTD,"2,532.96",21/09/2016
Delivery Units,Adults and Communities,Other Agencies - Third Party P,30133957,INDEPENDENCE HOMES LIMITED,"2,900.00",02/09/2016
Delivery Units,Adults and Communities,Other Agencies - Third Party P,30135628,INDEPENDENCE HOMES LIMITED,"2,900.00",23/09/2016
Delivery Units,Adults and Communities,Other Agencies - Third Party P,30137088,INDIVIDUALISED CARE LIMITED,280.00,27/09/2016
Delivery Units,Adults and Communities,Other Agencies - Third Party P,30137089,INDIVIDUALISED CARE LIMITED,"2,000.00",27/09/2016
Delivery Units,Adults and Communities,Other Agencies - Third Party P,30137090,INDIVIDUALISED CARE LIMITED,"2,000.00",27/09/2016
Delivery Units,Adults and Communities,Other Agencies - Third Party P,30137091,INDIVIDUALISED CARE LIMITED,800.00,27/09/2016
Delivery Units,Adults and Communities,Other Agencies - Third Party P,30137092,INDIVIDUALISED CARE LIMITED,"1,000.00",27/09/2016
Delivery Units,Adults and Communities,Other Agencies - Third Party P,30137093,INDIVIDUALISED CARE LIMITED,256.00,27/09/2016
Delivery Units,Adults and Communities,Other Agencies - Third Party P,30137094,INDIVIDUALISED CARE LIMITED,600.00,27/09/2016
Delivery Units,Adults and Communities,Other Agencies - Third Party P,30137095,INDIVIDUALISED CARE LIMITED,255.00,27/09/2016
Delivery Units,Adults and Communities,Other Agencies - Third Party P,30137096,INDIVIDUALISED CARE LIMITED,224.00,27/09/2016
Delivery Units,Adults and Communities,Other Agencies - Third Party P,30137097,INDIVIDUALISED CARE LIMITED,700.00,27/09/2016
Delivery Units,Adults and Communities,Other Agencies - Third Party P,30137098,INDIVIDUALISED CARE LIMITED,500.00,27/09/2016
Delivery Units,Adults and Communities,Other Agencies - Third Party P,30137099,INDIVIDUALISED CARE LIMITED,400.00,27/09/2016
Delivery Units,Adults and Communities,Other Agencies - Third Party P,30137100,INDIVIDUALISED CARE LIMITED,300.00,27/09/2016
Delivery Units,Adults and Communities,Other Agencies - Third Party P,30137101,INDIVIDUALISED CARE LIMITED,"1,800.00",27/09/2016
Delivery Units,Adults and Communities,Other Agencies - Third Party P,30137102,INDIVIDUALISED CARE LIMITED,288.00,27/09/2016
Delivery Units,Adults and Communities,Other Agencies - Third Party P,30137103,INDIVIDUALISED CARE LIMITED,500.00,27/09/2016
Delivery Units,Adults and Communities,Other Agencies - Third Party P,30137104,INDIVIDUALISED CARE LIMITED,510.00,27/09/2016
Delivery Units,Adults and Communities,Other Agencies - Third Party P,30137546,INDIVIDUALISED CARE LIMITED,224.00,30/09/2016
Delivery Units,Adults and Communities,Other Agencies - Third Party P,30137369,JEMINI RESPONSE,"9,100.00",28/09/2016
Delivery Units,Adults and Communities,Other Agencies - Third Party P,30133777,JEWISH CARE,"3,200.00",01/09/2016
Delivery Units,Adults and Communities,Other Agencies - Third Party P,30133781,JEWISH CARE,-30.19,01/09/2016
Delivery Units,Adults and Communities,Other Agencies - Third Party P,30133879,JEWISH CARE,"-4,810.69",01/09/2016
Delivery Units,Adults and Communities,Other Agencies - Third Party P,30134163,JEWISH CARE,"-1,505.72",16/09/2016
Delivery Units,Adults and Communities,Other Agencies - Third Party P,30134164,JEWISH CARE,-16.24,16/09/2016
Delivery Units,Adults and Communities,Other Agencies - Third Party P,30135013,JEWISH CARE,"1,066.68",16/09/2016
Delivery Units,Adults and Communities,Other Agencies - Third Party P,30135279,JEWISH CARE,"14,680.89",21/09/2016
Delivery Units,Adults and Communities,Other Agencies - Third Party P,30135280,JEWISH CARE,"3,200.00",21/09/2016
Delivery Units,Adults and Communities,Other Agencies - Third Party P,30135282,JEWISH CARE,"3,642.86",21/09/2016
Delivery Units,Adults and Communities,Other Agencies - Third Party P,30135284,JEWISH CARE,"2,060.70",21/09/2016
Delivery Units,Adults and Communities,Other Agencies - Third Party P,30135288,JEWISH CARE,-137.70,21/09/2016
Delivery Units,Adults and Communities,Other Agencies - Third Party P,30135290,JEWISH CARE,"6,054.83",21/09/2016
Delivery Units,Adults and Communities,Other Agencies - Third Party P,30134291,JIGSAW CREATIVE CARE LIMITED,"6,043.52",07/09/2016
Delivery Units,Adults and Communities,Other Agencies - Third Party P,30134292,JIGSAW CREATIVE CARE LIMITED,"2,824.00",07/09/2016
Delivery Units,Adults and Communities,Other Agencies - Third Party P,30134350,JIGSAW CREATIVE CARE LIMITED,"5,566.00",07/09/2016
Delivery Units,Adults and Communities,Other Agencies - Third Party P,30134967,JIGSAW CREATIVE CARE LIMITED,"3,021.76",16/09/2016
Delivery Units,Adults and Communities,Other Agencies - Third Party P,30134968,JIGSAW CREATIVE CARE LIMITED,"1,412.00",16/09/2016
Delivery Units,Adults and Communities,Other Agencies - Third Party P,30134969,JIGSAW CREATIVE CARE LIMITED,"2,783.00",16/09/2016
Delivery Units,Adults and Communities,Other Agencies - Third Party P,30135654,KARE PLUS BARNET,174.87,23/09/2016
Delivery Units,Adults and Communities,Other Agencies - Third Party P,30135656,KARE PLUS BARNET,201.36,23/09/2016
Delivery Units,Adults and Communities,Other Agencies - Third Party P,30135657,KARE PLUS BARNET,177.67,23/09/2016
Delivery Units,Adults and Communities,Other Agencies - Third Party P,30135658,KARE PLUS BARNET,165.43,23/09/2016
Delivery Units,Adults and Communities,Other Agencies - Third Party P,30135836,KARE PLUS BARNET,-13.08,23/09/2016
Delivery Units,Adults and Communities,Other Agencies - Third Party P,30135837,KARE PLUS BARNET,-11.85,23/09/2016
Delivery Units,Adults and Communities,Other Agencies - Third Party P,30137196,KARE PLUS BARNET,100.14,27/09/2016
Delivery Units,Adults and Communities,Other Agencies - Third Party P,30137197,KARE PLUS BARNET,73.63,27/09/2016
Delivery Units,Adults and Communities,Other Agencies - Third Party P,30137198,KARE PLUS BARNET,88.36,27/09/2016
Delivery Units,Adults and Communities,Other Agencies - Third Party P,30137199,KARE PLUS BARNET,78.21,27/09/2016
Delivery Units,Adults and Communities,Other Agencies - Third Party P,30137201,KARE PLUS BARNET,266.47,27/09/2016
Delivery Units,Adults and Communities,Other Agencies - Third Party P,30137202,KARE PLUS BARNET,235.22,27/09/2016
Delivery Units,Adults and Communities,Other Agencies - Third Party P,30137203,KARE PLUS BARNET,205.75,27/09/2016
Delivery Units,Adults and Communities,Other Agencies - Third Party P,30137205,KARE PLUS BARNET,147.01,27/09/2016
Delivery Units,Adults and Communities,Other Agencies - Third Party P,30137206,KARE PLUS BARNET,109.78,27/09/2016
Delivery Units,Adults and Communities,Other Agencies - Third Party P,30137207,KARE PLUS BARNET,235.22,27/09/2016
Delivery Units,Adults and Communities,Other Agencies - Third Party P,30137208,KARE PLUS BARNET,84.29,27/09/2016
Delivery Units,Adults and Communities,Other Agencies - Third Party P,30137209,KARE PLUS BARNET,235.22,27/09/2016
Delivery Units,Adults and Communities,Other Agencies - Third Party P,30137210,KARE PLUS BARNET,235.22,27/09/2016
Delivery Units,Adults and Communities,Other Agencies - Third Party P,30137212,KARE PLUS BARNET,235.22,27/09/2016
Delivery Units,Adults and Communities,Other Agencies - Third Party P,30137254,KARE PLUS BARNET,-11.78,27/09/2016
Delivery Units,Adults and Communities,Other Agencies - Third Party P,30137222,KARUNA MANOR,"2,307.14",27/09/2016
Delivery Units,Adults and Communities,Other Agencies - Third Party P,30137078,KEMBLE HOUSE,"9,680.37",27/09/2016
Delivery Units,Adults and Communities,Other Agencies - Third Party P,30137080,KEMBLE HOUSE,"3,339.01",27/09/2016
Delivery Units,Adults and Communities,Other Agencies - Third Party P,30137081,KEMBLE HOUSE,"9,368.10",27/09/2016
Delivery Units,Adults and Communities,Other Agencies - Third Party P,30137536,KEMBLE HOUSE,"7,928.70",30/09/2016
Delivery Units,Adults and Communities,Other Agencies - Third Party P,30137540,KEMBLE HOUSE,"3,231.30",30/09/2016
Delivery Units,Adults and Communities,Other Agencies - Third Party P,30134769,KILCULLEN HOMES (UK) LLP,"1,569.48",13/09/2016
Delivery Units,Adults and Communities,Other Agencies - Third Party P,30135018,KISHARON DAY SCHOOL,"1,464.03",16/09/2016
Delivery Units,Adults and Communities,Other Agencies - Third Party P,30135019,KISHARON DAY SCHOOL,"4,260.72",16/09/2016
Delivery Units,Adults and Communities,Other Agencies - Third Party P,30135020,KISHARON DAY SCHOOL,"2,144.10",16/09/2016
Delivery Units,Adults and Communities,Other Agencies - Third Party P,30135021,KISHARON DAY SCHOOL,"2,284.24",16/09/2016
Delivery Units,Adults and Communities,Other Agencies - Third Party P,30135022,KISHARON DAY SCHOOL,686.88,16/09/2016
Delivery Units,Adults and Communities,Other Agencies - Third Party P,30135023,KISHARON DAY SCHOOL,"1,373.49",16/09/2016
Delivery Units,Adults and Communities,Other Agencies - Third Party P,30135024,KISHARON DAY SCHOOL,381.54,16/09/2016
Delivery Units,Adults and Communities,Other Agencies - Third Party P,30135025,KISHARON DAY SCHOOL,"1,373.49",16/09/2016
Delivery Units,Adults and Communities,Other Agencies - Third Party P,30135026,KISHARON DAY SCHOOL,397.11,16/09/2016
Delivery Units,Adults and Communities,Other Agencies - Third Party P,30135027,KISHARON DAY SCHOOL,"1,679.87",16/09/2016
Delivery Units,Adults and Communities,Other Agencies - Third Party P,30135028,KISHARON DAY SCHOOL,"1,340.18",16/09/2016
Delivery Units,Adults and Communities,Other Agencies - Third Party P,30135029,KISHARON DAY SCHOOL,"1,241.16",16/09/2016
Delivery Units,Adults and Communities,Other Agencies - Third Party P,30135030,KISHARON DAY SCHOOL,"1,369.23",16/09/2016
Delivery Units,Adults and Communities,Other Agencies - Third Party P,30135031,KISHARON DAY SCHOOL,"1,373.68",16/09/2016
Delivery Units,Adults and Communities,Other Agencies - Third Party P,30135032,KISHARON DAY SCHOOL,"1,595.00",16/09/2016
Delivery Units,Adults and Communities,Other Agencies - Third Party P,30135033,KISHARON DAY SCHOOL,733.72,16/09/2016
Delivery Units,Adults and Communities,Other Agencies - Third Party P,30135035,KISHARON DAY SCHOOL,"1,275.96",16/09/2016
Delivery Units,Adults and Communities,Other Agencies - Third Party P,30135040,KISHARON DAY SCHOOL,"1,914.00",16/09/2016
Delivery Units,Adults and Communities,Other Agencies - Third Party P,30135471,KISHARON DAY SCHOOL,"1,464.03",22/09/2016
Delivery Units,Adults and Communities,Other Agencies - Third Party P,30135472,KISHARON DAY SCHOOL,"4,260.72",22/09/2016
Delivery Units,Adults and Communities,Other Agencies - Third Party P,30135473,KISHARON DAY SCHOOL,"2,144.10",22/09/2016
Delivery Units,Adults and Communities,Other Agencies - Third Party P,30135474,KISHARON DAY SCHOOL,"2,284.24",22/09/2016
Delivery Units,Adults and Communities,Other Agencies - Third Party P,30135475,KISHARON DAY SCHOOL,686.88,22/09/2016
Delivery Units,Adults and Communities,Other Agencies - Third Party P,30135476,KISHARON DAY SCHOOL,"1,373.49",22/09/2016
Delivery Units,Adults and Communities,Other Agencies - Third Party P,30135477,KISHARON DAY SCHOOL,381.54,22/09/2016
Delivery Units,Adults and Communities,Other Agencies - Third Party P,30135478,KISHARON DAY SCHOOL,"1,373.49",22/09/2016
Delivery Units,Adults and Communities,Other Agencies - Third Party P,30135479,KISHARON DAY SCHOOL,397.11,22/09/2016
Delivery Units,Adults and Communities,Other Agencies - Third Party P,30135480,KISHARON DAY SCHOOL,"1,679.87",22/09/2016
Delivery Units,Adults and Communities,Other Agencies - Third Party P,30135481,KISHARON DAY SCHOOL,"1,340.18",22/09/2016
Delivery Units,Adults and Communities,Other Agencies - Third Party P,30135482,KISHARON DAY SCHOOL,"1,241.16",22/09/2016
Delivery Units,Adults and Communities,Other Agencies - Third Party P,30135483,KISHARON DAY SCHOOL,"1,369.23",22/09/2016
Delivery Units,Adults and Communities,Other Agencies - Third Party P,30135484,KISHARON DAY SCHOOL,"1,373.68",22/09/2016
Delivery Units,Adults and Communities,Other Agencies - Third Party P,30135485,KISHARON DAY SCHOOL,"1,595.00",22/09/2016
Delivery Units,Adults and Communities,Other Agencies - Third Party P,30135486,KISHARON DAY SCHOOL,733.72,22/09/2016
Delivery Units,Adults and Communities,Other Agencies - Third Party P,30135488,KISHARON DAY SCHOOL,"1,275.96",22/09/2016
Delivery Units,Adults and Communities,Other Agencies - Third Party P,30135493,KISHARON DAY SCHOOL,"1,914.00",22/09/2016
Delivery Units,Adults and Communities,Other Agencies - Third Party P,30134280,LANGDON COMMUNITY LTD,851.20,07/09/2016
Delivery Units,Adults and Communities,Other Agencies - Third Party P,30134281,LANGDON COMMUNITY LTD,"1,276.80",07/09/2016
Delivery Units,Adults and Communities,Other Agencies - Third Party P,30134283,LANGDON COMMUNITY LTD,608.00,07/09/2016
Delivery Units,Adults and Communities,Other Agencies - Third Party P,30134284,LANGDON COMMUNITY LTD,"1,315.12",07/09/2016
Delivery Units,Adults and Communities,Other Agencies - Third Party P,30134285,LANGDON COMMUNITY LTD,"2,403.92",07/09/2016
Delivery Units,Adults and Communities,Other Agencies - Third Party P,30134287,LANGDON COMMUNITY LTD,"1,772.32",07/09/2016
Delivery Units,Adults and Communities,Other Agencies - Third Party P,30134288,LANGDON COMMUNITY LTD,"2,097.60",07/09/2016
Delivery Units,Adults and Communities,Other Agencies - Third Party P,30134289,LANGDON COMMUNITY LTD,"4,594.04",07/09/2016
Delivery Units,Adults and Communities,Other Agencies - Third Party P,30134344,LANGDON COMMUNITY LTD,956.36,07/09/2016
Delivery Units,Adults and Communities,Other Agencies - Third Party P,30134345,LANGDON COMMUNITY LTD,425.60,07/09/2016
Delivery Units,Adults and Communities,Other Agencies - Third Party P,30134346,LANGDON COMMUNITY LTD,"1,641.60",07/09/2016
Delivery Units,Adults and Communities,Other Agencies - Third Party P,30134347,LANGDON COMMUNITY LTD,"3,411.48",07/09/2016
Delivery Units,Adults and Communities,Other Agencies - Third Party P,30134654,LANGDON COMMUNITY LTD,"1,094.40",09/09/2016
Delivery Units,Adults and Communities,Other Agencies - Third Party P,30134962,LANGDON COMMUNITY LTD,"2,128.00",16/09/2016
Delivery Units,Adults and Communities,Other Agencies - Third Party P,30133996,LCS PARTNERSHIPS LTD,896.00,02/09/2016
Delivery Units,Adults and Communities,Other Agencies - Third Party P,30133997,LCS PARTNERSHIPS LTD,896.00,02/09/2016
Delivery Units,Adults and Communities,Other Agencies - Third Party P,30133998,LCS PARTNERSHIPS LTD,896.00,02/09/2016
Delivery Units,Adults and Communities,Other Agencies - Third Party P,30134308,LCS PARTNERSHIPS LTD,896.00,07/09/2016
Delivery Units,Adults and Communities,Other Agencies - Third Party P,30134768,LCS PARTNERSHIPS LTD,896.00,19/09/2016
Delivery Units,Adults and Communities,Other Agencies - Third Party P,30134183,LEWIS.W.HAMMERSON MEMORIAL HOME,"2,320.00",05/09/2016
Delivery Units,Adults and Communities,Other Agencies - Third Party P,30134394,LIFESTYLE CARE 2011 PLC,"2,138.00",07/09/2016
Delivery Units,Adults and Communities,Other Agencies - Third Party P,30134393,LIFESTYLE CARE PLC,"2,094.52",07/09/2016
Delivery Units,Adults and Communities,Other Agencies - Third Party P,30134478,LIFESTYLE CARE PLC,"2,244.13",07/09/2016
Delivery Units,Adults and Communities,Other Agencies - Third Party P,30135340,LIFESTYLE CARE PLC,"5,825.07",21/09/2016
Delivery Units,Adults and Communities,Other Agencies - Third Party P,30135838,LIFESTYLE CARE PLC,"2,318.93",23/09/2016
Delivery Units,Adults and Communities,Other Agencies - Third Party P,30135839,LIFESTYLE CARE PLC,"2,318.93",23/09/2016
Delivery Units,Adults and Communities,Other Agencies - Third Party P,30135841,LIFESTYLE CARE PLC,"3,261.69",23/09/2016
Delivery Units,Adults and Communities,Other Agencies - Third Party P,30135842,LIFESTYLE CARE PLC,"2,094.52",23/09/2016
Delivery Units,Adults and Communities,Other Agencies - Third Party P,30134191,LIFEWAYS,"3,145.24",06/09/2016
Delivery Units,Adults and Communities,Other Agencies - Third Party P,30134193,LIFEWAYS,"5,037.40",06/09/2016
Delivery Units,Adults and Communities,Other Agencies - Third Party P,30134194,LIFEWAYS,"5,943.00",06/09/2016
Delivery Units,Adults and Communities,Other Agencies - Third Party P,30134200,LIFEWAYS,"3,656.00",06/09/2016
Delivery Units,Adults and Communities,Other Agencies - Third Party P,30134201,LIFEWAYS,"5,766.44",06/09/2016
Delivery Units,Adults and Communities,Other Agencies - Third Party P,30134202,LIFEWAYS,"4,828.24",06/09/2016
Delivery Units,Adults and Communities,Other Agencies - Third Party P,30134205,LIFEWAYS,"5,275.20",06/09/2016
Delivery Units,Adults and Communities,Other Agencies - Third Party P,30134306,LIFEWAYS,"6,930.00",07/09/2016
Delivery Units,Adults and Communities,Other Agencies - Third Party P,30137245,LIVABILITY,"2,400.00",27/09/2016
Delivery Units,Adults and Communities,Other Agencies - Third Party P,30137247,LIVABILITY,"3,424.00",27/09/2016
Delivery Units,Adults and Communities,Other Agencies - Third Party P,30137339,LIVABILITY,"4,891.20",27/09/2016
Delivery Units,Adults and Communities,Other Agencies - Third Party P,30137340,LIVABILITY,"5,279.24",27/09/2016
Delivery Units,Adults and Communities,Other Agencies - Third Party P,30134952,LYNDON (THE SALVATION ARMY),"2,340.00",16/09/2016
Delivery Units,Adults and Communities,Other Agencies - Third Party P,30137386,MACINTYRE CARE,153.97,27/09/2016
Delivery Units,Adults and Communities,Other Agencies - Third Party P,30137394,MACINTYRE CARE,750.40,27/09/2016
Delivery Units,Adults and Communities,Other Agencies - Third Party P,30134959,MAISON MOTI LTD,"2,500.00",16/09/2016
Delivery Units,Adults and Communities,Other Agencies - Third Party P,30134960,MAISON MOTI LTD,"2,380.00",16/09/2016
Delivery Units,Adults and Communities,Other Agencies - Third Party P,30134965,MAISON MOTI LTD,"2,200.00",16/09/2016
Delivery Units,Adults and Communities,Other Agencies - Third Party P,30134966,MAISON MOTI LTD,"2,200.00",16/09/2016
Delivery Units,Adults and Communities,Other Agencies - Third Party P,30134989,MAISON MOTI LTD,"3,609.29",16/09/2016
Delivery Units,Adults and Communities,Other Agencies - Third Party P,30134999,MAISON MOTI LTD,"2,500.00",16/09/2016
Delivery Units,Adults and Communities,Other Agencies - Third Party P,30135000,MAISON MOTI LTD,"2,500.00",16/09/2016
Delivery Units,Adults and Communities,Other Agencies - Third Party P,30135001,MAISON MOTI LTD,"2,500.00",16/09/2016
Delivery Units,Adults and Communities,Other Agencies - Third Party P,30135002,MAISON MOTI LTD,"2,500.00",16/09/2016
Delivery Units,Adults and Communities,Other Agencies - Third Party P,30135003,MAISON MOTI LTD,"2,500.00",16/09/2016
Delivery Units,Adults and Communities,Other Agencies - Third Party P,30135004,MAISON MOTI LTD,"2,500.00",16/09/2016
Delivery Units,Adults and Communities,Other Agencies - Third Party P,30135007,MAISON MOTI LTD,"1,140.00",16/09/2016
Delivery Units,Adults and Communities,Other Agencies - Third Party P,30135008,MAISON MOTI LTD,"1,140.00",16/09/2016
Delivery Units,Adults and Communities,Other Agencies - Third Party P,30135009,MAISON MOTI LTD,"1,026.00",16/09/2016
Delivery Units,Adults and Communities,Other Agencies - Third Party P,30135012,MAISON MOTI LTD,"2,440.00",16/09/2016
Delivery Units,Adults and Communities,Other Agencies - Third Party P,30135123,MAISON MOTI LTD,343.40,16/09/2016
Delivery Units,Adults and Communities,Other Agencies - Third Party P,30135259,MANDELA HOUSE,"3,541.84",21/09/2016
Delivery Units,Adults and Communities,Other Agencies - Third Party P,30137444,MARLBOROUGH HOUSE,"3,823.97",27/09/2016
Delivery Units,Adults and Communities,Other Agencies - Third Party P,30134175,MARRILYNE LODGE,"2,554.16",05/09/2016
Delivery Units,Adults and Communities,Other Agencies - Third Party P,30137700,MAYFIELD ADULT SERVICES,"9,557.14",30/09/2016
Delivery Units,Adults and Communities,Other Agencies - Third Party P,30134676,MEERA NURSING HOME LIMITED,"2,397.72",09/09/2016
Delivery Units,Adults and Communities,Other Agencies - Third Party P,30134677,MEERA NURSING HOME LIMITED,"2,397.72",09/09/2016
Delivery Units,Adults and Communities,Other Agencies - Third Party P,30134678,MEERA NURSING HOME LIMITED,"2,320.37",09/09/2016
Delivery Units,Adults and Communities,Other Agencies - Third Party P,30134679,MEERA NURSING HOME LIMITED,"2,397.72",09/09/2016
Delivery Units,Adults and Communities,Other Agencies - Third Party P,30137635,MEERA NURSING HOME LIMITED,"2,320.37",30/09/2016
Delivery Units,Adults and Communities,Other Agencies - Third Party P,30137653,MEERA NURSING HOME LIMITED,"2,320.37",30/09/2016
Delivery Units,Adults and Communities,Other Agencies - Third Party P,30137678,MEERA NURSING HOME LIMITED,"2,320.37",30/09/2016
Delivery Units,Adults and Communities,Other Agencies - Third Party P,30137688,MEERA NURSING HOME LIMITED,"2,320.37",30/09/2016
Delivery Units,Adults and Communities,Other Agencies - Third Party P,30137699,MEERA NURSING HOME LIMITED,"2,320.37",30/09/2016
Delivery Units,Adults and Communities,Other Agencies - Third Party P,30137705,MEERA NURSING HOME LIMITED,"2,320.37",30/09/2016
Delivery Units,Adults and Communities,Other Agencies - Third Party P,30137707,MEERA NURSING HOME LIMITED,"2,320.37",30/09/2016
Delivery Units,Adults and Communities,Other Agencies - Third Party P,30137708,MEERA NURSING HOME LIMITED,"2,320.37",30/09/2016
Delivery Units,Adults and Communities,Other Agencies - Third Party P,30137737,MEERA NURSING HOME LIMITED,"2,320.37",30/09/2016
Delivery Units,Adults and Communities,Other Agencies - Third Party P,30137106,MENTAL HEALTH CARE (UK) LTD,513.39,27/09/2016
Delivery Units,Adults and Communities,Other Agencies - Third Party P,30137107,MENTAL HEALTH CARE (UK) LTD,530.50,27/09/2016
Delivery Units,Adults and Communities,Other Agencies - Third Party P,30137108,MENTAL HEALTH CARE (UK) LTD,513.39,27/09/2016
Delivery Units,Adults and Communities,Other Agencies - Third Party P,30137109,MENTAL HEALTH CARE (UK) LTD,530.50,27/09/2016
Delivery Units,Adults and Communities,Other Agencies - Third Party P,30137110,MENTAL HEALTH CARE (UK) LTD,530.50,27/09/2016
Delivery Units,Adults and Communities,Other Agencies - Third Party P,30137683,MENTAL HEALTH CARE (UK) LTD,"10,781.31",30/09/2016
Delivery Units,Adults and Communities,Other Agencies - Third Party P,30137337,METHODIST HOMES FOR THE AGED,"2,001.92",27/09/2016
Delivery Units,Adults and Communities,Other Agencies - Third Party P,30137338,METHODIST HOMES FOR THE AGED,"2,001.92",27/09/2016
Delivery Units,Adults and Communities,Other Agencies - Third Party P,30137357,METHODIST HOMES FOR THE AGED,"2,500.00",27/09/2016
Delivery Units,Adults and Communities,Other Agencies - Third Party P,30137358,METHODIST HOMES FOR THE AGED,"2,500.00",27/09/2016
Delivery Units,Adults and Communities,Other Agencies - Third Party P,30134476,MILBURY,"1,781.49",07/09/2016
Delivery Units,Adults and Communities,Other Agencies - Third Party P,30137231,ML HOMES LTD,"1,780.80",27/09/2016
Delivery Units,Adults and Communities,Other Agencies - Third Party P,30137233,ML HOMES LTD,"1,740.00",27/09/2016
Delivery Units,Adults and Communities,Other Agencies - Third Party P,30137234,ML HOMES LTD,"1,740.00",27/09/2016
Delivery Units,Adults and Communities,Other Agencies - Third Party P,30137239,ML HOMES LTD,"2,118.36",27/09/2016
Delivery Units,Adults and Communities,Other Agencies - Third Party P,30137241,ML HOMES LTD,"1,433.56",27/09/2016
Delivery Units,Adults and Communities,Other Agencies - Third Party P,30137252,ML HOMES LTD,"1,751.16",27/09/2016
Delivery Units,Adults and Communities,Other Agencies - Third Party P,30137310,ML HOMES LTD,"1,417.24",27/09/2016
Delivery Units,Adults and Communities,Other Agencies - Third Party P,30137312,ML HOMES LTD,"1,428.68",27/09/2016
Delivery Units,Adults and Communities,Other Agencies - Third Party P,30137315,ML HOMES LTD,"1,765.80",27/09/2016
Delivery Units,Adults and Communities,Other Agencies - Third Party P,30137324,ML HOMES LTD,"1,751.16",27/09/2016
Delivery Units,Adults and Communities,Other Agencies - Third Party P,30137360,ML HOMES LTD,"1,767.40",27/09/2016
Delivery Units,Adults and Communities,Other Agencies - Third Party P,30137433,ML HOMES LTD,"1,780.00",27/09/2016
Delivery Units,Adults and Communities,Other Agencies - Third Party P,30137443,ML HOMES LTD,"1,780.80",27/09/2016
Delivery Units,Adults and Communities,Other Agencies - Third Party P,30133989,MOREWAYS HEALTHCARE,"2,907.00",02/09/2016
Delivery Units,Adults and Communities,Other Agencies - Third Party P,30134000,MOREWAYS HEALTHCARE,"1,800.00",02/09/2016
Delivery Units,Adults and Communities,Other Agencies - Third Party P,30134307,MOREWAYS HEALTHCARE,"2,600.00",07/09/2016
Delivery Units,Adults and Communities,Other Agencies - Third Party P,30134445,MOREWAYS HEALTHCARE,"2,824.00",07/09/2016
Delivery Units,Adults and Communities,Other Agencies - Third Party P,30134471,MOREWAYS HEALTHCARE,"2,200.00",07/09/2016
Delivery Units,Adults and Communities,Other Agencies - Third Party P,30135334,MOREWAYS HEALTHCARE,"3,026.12",21/09/2016
Delivery Units,Adults and Communities,Other Agencies - Third Party P,30137279,MOREWAYS HEALTHCARE,"2,907.00",27/09/2016
Delivery Units,Adults and Communities,Other Agencies - Third Party P,30137330,MOREWAYS HEALTHCARE,"1,800.00",27/09/2016
Delivery Units,Adults and Communities,Other Agencies - Third Party P,30134705,NAS SERVICES LTD,"3,347.56",12/09/2016
Delivery Units,Adults and Communities,Other Agencies - Third Party P,30134706,NAS SERVICES LTD,261.93,12/09/2016
Delivery Units,Adults and Communities,Other Agencies - Third Party P,30134707,NAS SERVICES LTD,"2,035.64",12/09/2016
Delivery Units,Adults and Communities,Other Agencies - Third Party P,30134708,NAS SERVICES LTD,"2,035.64",12/09/2016
Delivery Units,Adults and Communities,Other Agencies - Third Party P,30134709,NAS SERVICES LTD,"2,035.64",12/09/2016
Delivery Units,Adults and Communities,Other Agencies - Third Party P,30134710,NAS SERVICES LTD,"2,035.64",12/09/2016
Delivery Units,Adults and Communities,Other Agencies - Third Party P,30134711,NAS SERVICES LTD,"2,035.64",12/09/2016
Delivery Units,Adults and Communities,Other Agencies - Third Party P,30134712,NAS SERVICES LTD,"2,035.64",12/09/2016
Delivery Units,Adults and Communities,Other Agencies - Third Party P,30134713,NAS SERVICES LTD,"2,035.64",12/09/2016
Delivery Units,Adults and Communities,Other Agencies - Third Party P,30134714,NAS SERVICES LTD,"2,035.64",13/09/2016
Delivery Units,Adults and Communities,Other Agencies - Third Party P,30135323,NAS SERVICES LTD,"2,035.64",21/09/2016
Delivery Units,Adults and Communities,Other Agencies - Third Party P,30135324,NAS SERVICES LTD,"4,905.04",21/09/2016
Delivery Units,Adults and Communities,Other Agencies - Third Party P,30134416,NAZARETH HOUSE,33.34,07/09/2016
Delivery Units,Adults and Communities,Other Agencies - Third Party P,30134417,NAZARETH HOUSE,136.11,07/09/2016
Delivery Units,Adults and Communities,Other Agencies - Third Party P,30134418,NAZARETH HOUSE,133.47,07/09/2016
Delivery Units,Adults and Communities,Other Agencies - Third Party P,30134419,NAZARETH HOUSE,"3,036.00",07/09/2016
Delivery Units,Adults and Communities,Other Agencies - Third Party P,30134420,NAZARETH HOUSE,"2,031.76",07/09/2016
Delivery Units,Adults and Communities,Other Agencies - Third Party P,30134421,NAZARETH HOUSE,"2,031.76",07/09/2016
Delivery Units,Adults and Communities,Other Agencies - Third Party P,30134422,NAZARETH HOUSE,"2,031.76",07/09/2016
Delivery Units,Adults and Communities,Other Agencies - Third Party P,30134423,NAZARETH HOUSE,"2,031.76",07/09/2016
Delivery Units,Adults and Communities,Other Agencies - Third Party P,30134424,NAZARETH HOUSE,"2,650.40",07/09/2016
Delivery Units,Adults and Communities,Other Agencies - Third Party P,30134425,NAZARETH HOUSE,"2,031.76",07/09/2016
Delivery Units,Adults and Communities,Other Agencies - Third Party P,30134426,NAZARETH HOUSE,"2,211.80",07/09/2016
Delivery Units,Adults and Communities,Other Agencies - Third Party P,30134427,NAZARETH HOUSE,"2,031.76",07/09/2016
Delivery Units,Adults and Communities,Other Agencies - Third Party P,30134428,NAZARETH HOUSE,"2,031.76",07/09/2016
Delivery Units,Adults and Communities,Other Agencies - Third Party P,30134429,NAZARETH HOUSE,"2,031.76",07/09/2016
Delivery Units,Adults and Communities,Other Agencies - Third Party P,30134430,NAZARETH HOUSE,"2,031.76",07/09/2016
Delivery Units,Adults and Communities,Other Agencies - Third Party P,30135328,NAZARETH HOUSE,546.01,21/09/2016
Delivery Units,Adults and Communities,Other Agencies - Third Party P,30137282,NAZARETH HOUSE,"2,207.12",27/09/2016
Delivery Units,Adults and Communities,Other Agencies - Third Party P,30137283,NAZARETH HOUSE,"2,031.76",27/09/2016
Delivery Units,Adults and Communities,Other Agencies - Third Party P,30137284,NAZARETH HOUSE,"2,211.80",27/09/2016
Delivery Units,Adults and Communities,Other Agencies - Third Party P,30137285,NAZARETH HOUSE,"2,031.76",27/09/2016
Delivery Units,Adults and Communities,Other Agencies - Third Party P,30137286,NAZARETH HOUSE,"2,211.80",27/09/2016
Delivery Units,Adults and Communities,Other Agencies - Third Party P,30137287,NAZARETH HOUSE,"2,031.76",27/09/2016
Delivery Units,Adults and Communities,Other Agencies - Third Party P,30137288,NAZARETH HOUSE,"2,211.80",27/09/2016
Delivery Units,Adults and Communities,Other Agencies - Third Party P,30137289,NAZARETH HOUSE,"2,031.76",27/09/2016
Delivery Units,Adults and Communities,Other Agencies - Third Party P,30137290,NAZARETH HOUSE,"2,211.80",27/09/2016
Delivery Units,Adults and Communities,Other Agencies - Third Party P,30137291,NAZARETH HOUSE,"2,031.76",27/09/2016
Delivery Units,Adults and Communities,Other Agencies - Third Party P,30137292,NAZARETH HOUSE,"2,211.80",27/09/2016
Delivery Units,Adults and Communities,Other Agencies - Third Party P,30137293,NAZARETH HOUSE,"2,031.76",27/09/2016
Delivery Units,Adults and Communities,Other Agencies - Third Party P,30135235,NEEM TREE CARE CENTRE,507.92,21/09/2016
Delivery Units,Adults and Communities,Other Agencies - Third Party P,30137085,NEEM TREE CARE CENTRE,"2,612.14",27/09/2016
Delivery Units,Adults and Communities,Other Agencies - Third Party P,30137086,NEEM TREE CARE CENTRE,85.66,27/09/2016
Delivery Units,Adults and Communities,Other Agencies - Third Party P,30137087,NEEM TREE CARE CENTRE,"2,610.00",27/09/2016
Delivery Units,Adults and Communities,Other Agencies - Third Party P,30134337,NEWCENTURY CARE LTD,"2,398.56",07/09/2016
Delivery Units,Adults and Communities,Other Agencies - Third Party P,30134007,NEXT STEP SUPPORT LIMITED,"2,000.00",02/09/2016
Delivery Units,Adults and Communities,Other Agencies - Third Party P,30135053,NEXT STEP SUPPORT LIMITED,"2,240.00",16/09/2016
Delivery Units,Adults and Communities,Other Agencies - Third Party P,30135091,NEXT STEP SUPPORT LIMITED,"3,218.40",16/09/2016
Delivery Units,Adults and Communities,Other Agencies - Third Party P,30135092,NEXT STEP SUPPORT LIMITED,"2,758.63",16/09/2016
Delivery Units,Adults and Communities,Other Agencies - Third Party P,30135093,NEXT STEP SUPPORT LIMITED,"3,218.40",16/09/2016
Delivery Units,Adults and Communities,Other Agencies - Third Party P,30135498,NEXT STEP SUPPORT LIMITED,"3,218.40",22/09/2016
Delivery Units,Adults and Communities,Other Agencies - Third Party P,30135525,NEXT STEP SUPPORT LIMITED,"2,000.00",22/09/2016
Delivery Units,Adults and Communities,Other Agencies - Third Party P,30135254,NIGHTINGALES RESIDENTIAL CARE HOME,"3,326.08",21/09/2016
Delivery Units,Adults and Communities,Other Agencies - Third Party P,30135255,NIGHTINGALES RESIDENTIAL CARE HOME,"3,326.08",21/09/2016
Delivery Units,Adults and Communities,Other Agencies - Third Party P,30137164,NIGHTINGALES RESIDENTIAL CARE HOME,"3,218.79",27/09/2016
Delivery Units,Adults and Communities,Other Agencies - Third Party P,30137165,NIGHTINGALES RESIDENTIAL CARE HOME,"3,218.79",27/09/2016
Delivery Units,Adults and Communities,Other Agencies - Third Party P,30134232,NORWOOD RAVENSWOOD SCHOOLS LTD,"1,520.00",06/09/2016
Delivery Units,Adults and Communities,Other Agencies - Third Party P,30134233,NORWOOD RAVENSWOOD SCHOOLS LTD,729.60,06/09/2016
Delivery Units,Adults and Communities,Other Agencies - Third Party P,30134234,NORWOOD RAVENSWOOD SCHOOLS LTD,304.00,06/09/2016
Delivery Units,Adults and Communities,Other Agencies - Third Party P,30134235,NORWOOD RAVENSWOOD SCHOOLS LTD,182.40,06/09/2016
Delivery Units,Adults and Communities,Other Agencies - Third Party P,30134236,NORWOOD RAVENSWOOD SCHOOLS LTD,486.40,06/09/2016
Delivery Units,Adults and Communities,Other Agencies - Third Party P,30134245,NORWOOD RAVENSWOOD SCHOOLS LTD,"1,021.44",06/09/2016
Delivery Units,Adults and Communities,Other Agencies - Third Party P,30134250,NORWOOD RAVENSWOOD SCHOOLS LTD,121.60,06/09/2016
Delivery Units,Adults and Communities,Other Agencies - Third Party P,30134251,NORWOOD RAVENSWOOD SCHOOLS LTD,820.80,06/09/2016
Delivery Units,Adults and Communities,Other Agencies - Third Party P,30134259,NORWOOD RAVENSWOOD SCHOOLS LTD,364.80,06/09/2016
Delivery Units,Adults and Communities,Other Agencies - Third Party P,30134336,NORWOOD RAVENSWOOD SCHOOLS LTD,"1,021.44",07/09/2016
Delivery Units,Adults and Communities,Other Agencies - Third Party P,30134683,NORWOOD RAVENSWOOD SCHOOLS LTD,790.40,09/09/2016
Delivery Units,Adults and Communities,Other Agencies - Third Party P,30137398,NORWOOD RAVENSWOOD SCHOOLS LTD,"1,592.28",27/09/2016
Delivery Units,Adults and Communities,Other Agencies - Third Party P,30137414,NORWOOD RAVENSWOOD SCHOOLS LTD,"5,540.00",27/09/2016
Delivery Units,Adults and Communities,Other Agencies - Third Party P,30137415,NORWOOD RAVENSWOOD SCHOOLS LTD,"1,520.00",27/09/2016
Delivery Units,Adults and Communities,Other Agencies - Third Party P,30137416,NORWOOD RAVENSWOOD SCHOOLS LTD,729.60,27/09/2016
Delivery Units,Adults and Communities,Other Agencies - Third Party P,30137417,NORWOOD RAVENSWOOD SCHOOLS LTD,182.40,27/09/2016
Delivery Units,Adults and Communities,Other Agencies - Third Party P,30137418,NORWOOD RAVENSWOOD SCHOOLS LTD,790.40,27/09/2016
Delivery Units,Adults and Communities,Other Agencies - Third Party P,30137419,NORWOOD RAVENSWOOD SCHOOLS LTD,486.40,27/09/2016
Delivery Units,Adults and Communities,Other Agencies - Third Party P,30137422,NORWOOD RAVENSWOOD SCHOOLS LTD,"1,021.44",27/09/2016
Delivery Units,Adults and Communities,Other Agencies - Third Party P,30137428,NORWOOD RAVENSWOOD SCHOOLS LTD,"1,021.44",27/09/2016
Delivery Units,Adults and Communities,Other Agencies - Third Party P,30137739,NORWOOD RAVENSWOOD SCHOOLS LTD,304.00,30/09/2016
Delivery Units,Adults and Communities,Other Agencies - Third Party P,30137744,NORWOOD RAVENSWOOD SCHOOLS LTD,121.60,30/09/2016
Delivery Units,Adults and Communities,Other Agencies - Third Party P,30137747,NORWOOD RAVENSWOOD SCHOOLS LTD,364.80,30/09/2016
Delivery Units,Adults and Communities,Other Agencies - Third Party P,30137549,NOUVITA LTD,"5,035.33",30/09/2016
Delivery Units,Adults and Communities,Other Agencies - Third Party P,30131790,ONE STEP (SUPPORT) LTD,-927.13,07/09/2016
Delivery Units,Adults and Communities,Other Agencies - Third Party P,30134328,ONE STEP (SUPPORT) LTD,"1,339.80",07/09/2016
Delivery Units,Adults and Communities,Other Agencies - Third Party P,30134331,ONE STEP (SUPPORT) LTD,"3,395.80",07/09/2016
Delivery Units,Adults and Communities,Other Agencies - Third Party P,30134332,ONE STEP (SUPPORT) LTD,"2,618.20",07/09/2016
Delivery Units,Adults and Communities,Other Agencies - Third Party P,30134333,ONE STEP (SUPPORT) LTD,638.00,07/09/2016
Delivery Units,Adults and Communities,Other Agencies - Third Party P,30134334,ONE STEP (SUPPORT) LTD,"7,692.72",07/09/2016
Delivery Units,Adults and Communities,Other Agencies - Third Party P,30134335,ONE STEP (SUPPORT) LTD,638.00,07/09/2016
Delivery Units,Adults and Communities,Other Agencies - Third Party P,30135130,ONE STEP (SUPPORT) LTD,"1,728.48",16/09/2016
Delivery Units,Adults and Communities,Other Agencies - Third Party P,30135131,ONE STEP (SUPPORT) LTD,"2,304.64",16/09/2016
Delivery Units,Adults and Communities,Other Agencies - Third Party P,30135132,ONE STEP (SUPPORT) LTD,"2,304.64",16/09/2016
Delivery Units,Adults and Communities,Other Agencies - Third Party P,30135133,ONE STEP (SUPPORT) LTD,"2,304.64",16/09/2016
Delivery Units,Adults and Communities,Other Agencies - Third Party P,30135134,ONE STEP (SUPPORT) LTD,"2,304.64",16/09/2016
Delivery Units,Adults and Communities,Other Agencies - Third Party P,30135135,ONE STEP (SUPPORT) LTD,"2,304.64",16/09/2016
Delivery Units,Adults and Communities,Other Agencies - Third Party P,30135844,ONE STEP (SUPPORT) LTD,"1,339.80",23/09/2016
Delivery Units,Adults and Communities,Other Agencies - Third Party P,30135845,ONE STEP (SUPPORT) LTD,638.00,23/09/2016
Delivery Units,Adults and Communities,Other Agencies - Third Party P,30135846,ONE STEP (SUPPORT) LTD,638.00,23/09/2016
Delivery Units,Adults and Communities,Other Agencies - Third Party P,30135847,ONE STEP (SUPPORT) LTD,"7,692.72",23/09/2016
Delivery Units,Adults and Communities,Other Agencies - Third Party P,30133837,ORIGIN HOUSING LIMITED,"1,065.60",01/09/2016
Delivery Units,Adults and Communities,Other Agencies - Third Party P,30133838,ORIGIN HOUSING LIMITED,"1,728.00",01/09/2016
Delivery Units,Adults and Communities,Other Agencies - Third Party P,30133839,ORIGIN HOUSING LIMITED,576.00,01/09/2016
Delivery Units,Adults and Communities,Other Agencies - Third Party P,30133842,ORIGIN HOUSING LIMITED,288.00,01/09/2016
Delivery Units,Adults and Communities,Other Agencies - Third Party P,80005434,PATERNOSTER HOUSE (BARCHESTER CARE),"1,292.57",08/09/2016
Delivery Units,Adults and Communities,Other Agencies - Third Party P,80005435,PATERNOSTER HOUSE (BARCHESTER CARE),"4,847.14",08/09/2016
Delivery Units,Adults and Communities,Other Agencies - Third Party P,80005436,PATERNOSTER HOUSE (BARCHESTER CARE),"5,008.71",08/09/2016
Delivery Units,Adults and Communities,Other Agencies - Third Party P,30133986,PILLARCARE,"6,328.00",02/09/2016
Delivery Units,Adults and Communities,Other Agencies - Third Party P,30137249,PILLARCARE,"6,554.00",27/09/2016
Delivery Units,Adults and Communities,Other Agencies - Third Party P,30133101,PRACTICAL CARE,798.00,06/09/2016
Delivery Units,Adults and Communities,Other Agencies - Third Party P,30133102,PRACTICAL CARE,"1,568.00",06/09/2016
Delivery Units,Adults and Communities,Other Agencies - Third Party P,30133103,PRACTICAL CARE,"2,156.00",06/09/2016
Delivery Units,Adults and Communities,Other Agencies - Third Party P,30133104,PRACTICAL CARE,"2,352.00",06/09/2016
Delivery Units,Adults and Communities,Other Agencies - Third Party P,30133105,PRACTICAL CARE,"2,450.00",06/09/2016
Delivery Units,Adults and Communities,Other Agencies - Third Party P,30133106,PRACTICAL CARE,"1,022.00",06/09/2016
Delivery Units,Adults and Communities,Other Agencies - Third Party P,30133107,PRACTICAL CARE,"1,036.00",13/09/2016
Delivery Units,Adults and Communities,Other Agencies - Third Party P,30133463,PRACTICAL CARE,686.00,06/09/2016
Delivery Units,Adults and Communities,Other Agencies - Third Party P,30133464,PRACTICAL CARE,98.00,13/09/2016
Delivery Units,Adults and Communities,Other Agencies - Third Party P,30133959,PRACTICAL CARE,406.00,20/09/2016
Delivery Units,Adults and Communities,Other Agencies - Third Party P,30133960,PRACTICAL CARE,77.00,20/09/2016
Delivery Units,Adults and Communities,Other Agencies - Third Party P,30133961,PRACTICAL CARE,980.00,20/09/2016
Delivery Units,Adults and Communities,Other Agencies - Third Party P,30133962,PRACTICAL CARE,437.50,20/09/2016
Delivery Units,Adults and Communities,Other Agencies - Third Party P,30134377,PRACTICAL CARE,784.00,27/09/2016
Delivery Units,Adults and Communities,Other Agencies - Third Party P,30134378,PRACTICAL CARE,588.00,27/09/2016
Delivery Units,Adults and Communities,Other Agencies - Third Party P,30134379,PRACTICAL CARE,280.00,27/09/2016
Delivery Units,Adults and Communities,Other Agencies - Third Party P,30134380,PRACTICAL CARE,490.00,27/09/2016
Delivery Units,Adults and Communities,Other Agencies - Third Party P,30134381,PRACTICAL CARE,"1,764.00",27/09/2016
Delivery Units,Adults and Communities,Other Agencies - Third Party P,30134383,PRACTICAL CARE,882.00,27/09/2016
Delivery Units,Adults and Communities,Other Agencies - Third Party P,30134384,PRACTICAL CARE,"1,862.00",27/09/2016
Delivery Units,Adults and Communities,Other Agencies - Third Party P,30134385,PRACTICAL CARE,"1,620.50",28/09/2016
Delivery Units,Adults and Communities,Other Agencies - Third Party P,30134656,PRACTICAL CARE,150.50,27/09/2016
Delivery Units,Adults and Communities,Other Agencies - Third Party P,30134984,PRACTICAL CARE,322.00,16/09/2016
Delivery Units,Adults and Communities,Other Agencies - Third Party P,30134990,PRACTICAL CARE,"1,820.00",16/09/2016
Delivery Units,Adults and Communities,Other Agencies - Third Party P,30134991,PRACTICAL CARE,"1,960.00",16/09/2016
Delivery Units,Adults and Communities,Other Agencies - Third Party P,30135250,PRACTICAL CARE,"1,358.00",21/09/2016
Delivery Units,Adults and Communities,Other Agencies - Third Party P,30135253,PRACTICAL CARE,420.00,21/09/2016
Delivery Units,Adults and Communities,Other Agencies - Third Party P,30137141,PRACTICAL CARE,112.00,27/09/2016
Delivery Units,Adults and Communities,Other Agencies - Third Party P,30137142,PRACTICAL CARE,609.00,27/09/2016
Delivery Units,Adults and Communities,Other Agencies - Third Party P,30137143,PRACTICAL CARE,539.00,27/09/2016
Delivery Units,Adults and Communities,Other Agencies - Third Party P,30137151,PRACTICAL CARE,490.00,27/09/2016
Delivery Units,Adults and Communities,Other Agencies - Third Party P,30137152,PRACTICAL CARE,630.00,28/09/2016
Delivery Units,Adults and Communities,Other Agencies - Third Party P,30137553,PRACTICAL CARE,140.00,30/09/2016
Delivery Units,Adults and Communities,Other Agencies - Third Party P,30137555,PRACTICAL CARE,84.00,30/09/2016
Delivery Units,Adults and Communities,Other Agencies - Third Party P,30135229,PRT BARNET CARERS CENTRE,"1,478.74",21/09/2016
Delivery Units,Adults and Communities,Other Agencies - Third Party P,30135124,QUEEN ANN CARE,"3,857.14",16/09/2016
Delivery Units,Adults and Communities,Other Agencies - Third Party P,30137577,R.M.B.I,"2,176.89",30/09/2016
Delivery Units,Adults and Communities,Other Agencies - Third Party P,80005305,R.S LOCKSMITHS,72.00,14/09/2016
Delivery Units,Adults and Communities,Other Agencies - Third Party P,30137564,RAPKYNS CARE CENTRE,"6,188.57",30/09/2016
Delivery Units,Adults and Communities,Other Agencies - Third Party P,30137565,RAPKYNS CARE CENTRE,"6,428.57",30/09/2016
Delivery Units,Adults and Communities,Other Agencies - Third Party P,30133774,RESIDENTIAL CARE SERVICES LTD T/A FRANKL,"4,759.61",01/09/2016
Delivery Units,Adults and Communities,Other Agencies - Third Party P,30133776,RESIDENTIAL CARE SERVICES LTD T/A FRANKL,"4,759.61",01/09/2016
Delivery Units,Adults and Communities,Other Agencies - Third Party P,30137193,RIDGEWAY NURSING HOME,"2,435.67",27/09/2016
Delivery Units,Adults and Communities,Other Agencies - Third Party P,30137568,RIDGEWAY NURSING HOME,"2,357.10",30/09/2016
Delivery Units,Adults and Communities,Other Agencies - Third Party P,30137702,RIDGEWAY RESIDENTIAL HOME,"2,095.56",30/09/2016
Delivery Units,Adults and Communities,Other Agencies - Third Party P,30133988,ROLAND COMMUNITY CARE LTD,"2,150.64",02/09/2016
Delivery Units,Adults and Communities,Other Agencies - Third Party P,30133999,ROLAND COMMUNITY CARE LTD,"2,820.36",02/09/2016
Delivery Units,Adults and Communities,Other Agencies - Third Party P,30137701,ROLAND RESIDENTIAL CARE HOMES,"3,729.32",30/09/2016
Delivery Units,Adults and Communities,Other Agencies - Third Party P,30137622,ROLAND RESIDENTIAL CARE HOMES LTD,"3,214.84",30/09/2016
Delivery Units,Adults and Communities,Other Agencies - Third Party P,30137685,ROLAND RESIDENTIAL CARE HOMES LTD,"4,182.98",30/09/2016
Delivery Units,Adults and Communities,Other Agencies - Third Party P,30137687,ROLAND RESIDENTIAL CARE HOMES LTD,"4,435.47",30/09/2016
Delivery Units,Adults and Communities,Other Agencies - Third Party P,30137696,ROLAND RESIDENTIAL CARE HOMES LTD,"3,415.91",30/09/2016
Delivery Units,Adults and Communities,Other Agencies - Third Party P,30133834,ROSEACRES CARE HOME LIMITED,"2,448.78",01/09/2016
Delivery Units,Adults and Communities,Other Agencies - Third Party P,30133910,ROSEACRES CARE HOME LIMITED,"2,290.79",01/09/2016
Delivery Units,Adults and Communities,Other Agencies - Third Party P,30133911,ROSEACRES CARE HOME LIMITED,"2,448.78",01/09/2016
Delivery Units,Adults and Communities,Other Agencies - Third Party P,30133912,ROSEACRES CARE HOME LIMITED,"2,369.79",01/09/2016
Delivery Units,Adults and Communities,Other Agencies - Third Party P,30133913,ROSEACRES CARE HOME LIMITED,"2,448.78",01/09/2016
Delivery Units,Adults and Communities,Other Agencies - Third Party P,30133914,ROSEACRES CARE HOME LIMITED,"2,369.79",01/09/2016
Delivery Units,Adults and Communities,Other Agencies - Third Party P,30133916,ROSEACRES CARE HOME LIMITED,"-1,974.82",01/09/2016
Delivery Units,Adults and Communities,Other Agencies - Third Party P,30133917,ROSEACRES CARE HOME LIMITED,291.00,01/09/2016
Delivery Units,Adults and Communities,Other Agencies - Third Party P,30133918,ROSEACRES CARE HOME LIMITED,274.56,01/09/2016
Delivery Units,Adults and Communities,Other Agencies - Third Party P,30135108,ROSEACRES CARE HOME LIMITED,"2,542.31",16/09/2016
Delivery Units,Adults and Communities,Other Agencies - Third Party P,30135109,ROSEACRES CARE HOME LIMITED,"2,542.31",16/09/2016
Delivery Units,Adults and Communities,Other Agencies - Third Party P,30135110,ROSEACRES CARE HOME LIMITED,"2,910.39",16/09/2016
Delivery Units,Adults and Communities,Other Agencies - Third Party P,30135111,ROSEACRES CARE HOME LIMITED,"2,910.39",16/09/2016
Delivery Units,Adults and Communities,Other Agencies - Third Party P,30135112,ROSEACRES CARE HOME LIMITED,"2,542.31",16/09/2016
Delivery Units,Adults and Communities,Other Agencies - Third Party P,30135113,ROSEACRES CARE HOME LIMITED,368.08,16/09/2016
Delivery Units,Adults and Communities,Other Agencies - Third Party P,30135114,ROSEACRES CARE HOME LIMITED,"2,673.42",16/09/2016
Delivery Units,Adults and Communities,Other Agencies - Third Party P,30135115,ROSEACRES CARE HOME LIMITED,"2,910.39",16/09/2016
Delivery Units,Adults and Communities,Other Agencies - Third Party P,30135116,ROSEACRES CARE HOME LIMITED,"2,910.39",16/09/2016
Delivery Units,Adults and Communities,Other Agencies - Third Party P,30135117,ROSEACRES CARE HOME LIMITED,"2,910.39",16/09/2016
Delivery Units,Adults and Communities,Other Agencies - Third Party P,30135118,ROSEACRES CARE HOME LIMITED,"2,910.39",16/09/2016
Delivery Units,Adults and Communities,Other Agencies - Third Party P,30135119,ROSEACRES CARE HOME LIMITED,"2,910.39",16/09/2016
Delivery Units,Adults and Communities,Other Agencies - Third Party P,30135120,ROSEACRES CARE HOME LIMITED,"2,910.39",16/09/2016
Delivery Units,Adults and Communities,Other Agencies - Third Party P,30135121,ROSEACRES CARE HOME LIMITED,"2,910.39",16/09/2016
Delivery Units,Adults and Communities,Other Agencies - Third Party P,30135122,ROSEACRES CARE HOME LIMITED,"3,286.48",16/09/2016
Delivery Units,Adults and Communities,Other Agencies - Third Party P,30135344,ROSEACRES CARE HOME LIMITED,"1,148.14",21/09/2016
Delivery Units,Adults and Communities,Other Agencies - Third Party P,30135345,ROSEACRES CARE HOME LIMITED,"1,148.14",21/09/2016
Delivery Units,Adults and Communities,Other Agencies - Third Party P,30137343,ROSEACRES CARE HOME LIMITED,"2,460.30",27/09/2016
Delivery Units,Adults and Communities,Other Agencies - Third Party P,30137344,ROSEACRES CARE HOME LIMITED,"2,460.30",27/09/2016
Delivery Units,Adults and Communities,Other Agencies - Third Party P,30137345,ROSEACRES CARE HOME LIMITED,"2,460.30",27/09/2016
Delivery Units,Adults and Communities,Other Agencies - Third Party P,30137346,ROSEACRES CARE HOME LIMITED,"2,460.30",27/09/2016
Delivery Units,Adults and Communities,Other Agencies - Third Party P,30137347,ROSEACRES CARE HOME LIMITED,"2,460.30",27/09/2016
Delivery Units,Adults and Communities,Other Agencies - Third Party P,30137348,ROSEACRES CARE HOME LIMITED,"2,260.03",27/09/2016
Delivery Units,Adults and Communities,Other Agencies - Third Party P,30137349,ROSEACRES CARE HOME LIMITED,"2,460.30",27/09/2016
Delivery Units,Adults and Communities,Other Agencies - Third Party P,30137350,ROSEACRES CARE HOME LIMITED,"2,460.30",27/09/2016
Delivery Units,Adults and Communities,Other Agencies - Third Party P,30137351,ROSEACRES CARE HOME LIMITED,"2,460.30",27/09/2016
Delivery Units,Adults and Communities,Other Agencies - Third Party P,30137352,ROSEACRES CARE HOME LIMITED,"2,460.30",27/09/2016
Delivery Units,Adults and Communities,Other Agencies - Third Party P,30137353,ROSEACRES CARE HOME LIMITED,"2,460.30",27/09/2016
Delivery Units,Adults and Communities,Other Agencies - Third Party P,30137354,ROSEACRES CARE HOME LIMITED,"2,460.30",27/09/2016
Delivery Units,Adults and Communities,Other Agencies - Third Party P,30137355,ROSEACRES CARE HOME LIMITED,"2,460.30",27/09/2016
Delivery Units,Adults and Communities,Other Agencies - Third Party P,30133741,ROYAL MENCAP SOCIETY,"1,722.60",01/09/2016
Delivery Units,Adults and Communities,Other Agencies - Third Party P,30133742,ROYAL MENCAP SOCIETY,"1,595.00",01/09/2016
Delivery Units,Adults and Communities,Other Agencies - Third Party P,30135463,ROYAL MENCAP SOCIETY,"1,722.60",22/09/2016
Delivery Units,Adults and Communities,Other Agencies - Third Party P,30135464,ROYAL MENCAP SOCIETY,"1,595.00",22/09/2016
Delivery Units,Adults and Communities,Other Agencies - Third Party P,30134388,SAGE NURSING HOME,"1,082.84",07/09/2016
Delivery Units,Adults and Communities,Other Agencies - Third Party P,30137232,SEAFORTH LODGE,"2,369.79",27/09/2016
Delivery Units,Adults and Communities,Other Agencies - Third Party P,30137240,SEAFORTH LODGE,"2,369.79",27/09/2016
Delivery Units,Adults and Communities,Other Agencies - Third Party P,30137305,SEAFORTH LODGE,"2,369.79",27/09/2016
Delivery Units,Adults and Communities,Other Agencies - Third Party P,30137309,SEAFORTH LODGE,"2,176.89",27/09/2016
Delivery Units,Adults and Communities,Other Agencies - Third Party P,30137311,SEAFORTH LODGE,"2,176.89",27/09/2016
Delivery Units,Adults and Communities,Other Agencies - Third Party P,30137356,SEAFORTH LODGE,"2,369.79",27/09/2016
Delivery Units,Adults and Communities,Other Agencies - Third Party P,30137432,SEAFORTH LODGE,"2,369.79",27/09/2016
Delivery Units,Adults and Communities,Other Agencies - Third Party P,30133787,SELF UNLIMITED-LONDON REGION,"11,354.64",01/09/2016
Delivery Units,Adults and Communities,Other Agencies - Third Party P,30133788,SELF UNLIMITED-LONDON REGION,"4,522.28",01/09/2016
Delivery Units,Adults and Communities,Other Agencies - Third Party P,30133789,SELF UNLIMITED-LONDON REGION,"1,921.28",01/09/2016
Delivery Units,Adults and Communities,Other Agencies - Third Party P,30133790,SELF UNLIMITED-LONDON REGION,"2,120.72",01/09/2016
Delivery Units,Adults and Communities,Other Agencies - Third Party P,30133791,SELF UNLIMITED-LONDON REGION,"4,221.36",01/09/2016
Delivery Units,Adults and Communities,Other Agencies - Third Party P,30133792,SELF UNLIMITED-LONDON REGION,"1,048.80",01/09/2016
Delivery Units,Adults and Communities,Other Agencies - Third Party P,30133793,SELF UNLIMITED-LONDON REGION,"3,040.00",01/09/2016
Delivery Units,Adults and Communities,Other Agencies - Third Party P,30133794,SELF UNLIMITED-LONDON REGION,"3,947.12",01/09/2016
Delivery Units,Adults and Communities,Other Agencies - Third Party P,30133795,SELF UNLIMITED-LONDON REGION,"1,276.80",01/09/2016
Delivery Units,Adults and Communities,Other Agencies - Third Party P,30133796,SELF UNLIMITED-LONDON REGION,"1,690.24",01/09/2016
Delivery Units,Adults and Communities,Other Agencies - Third Party P,30133797,SELF UNLIMITED-LONDON REGION,"1,088.32",01/09/2016
Delivery Units,Adults and Communities,Other Agencies - Third Party P,30133799,SELF UNLIMITED-LONDON REGION,"3,279.56",01/09/2016
Delivery Units,Adults and Communities,Other Agencies - Third Party P,30133800,SELF UNLIMITED-LONDON REGION,"1,033.60",01/09/2016
Delivery Units,Adults and Communities,Other Agencies - Third Party P,30133802,SELF UNLIMITED-LONDON REGION,"3,008.00",01/09/2016
Delivery Units,Adults and Communities,Other Agencies - Third Party P,30133803,SELF UNLIMITED-LONDON REGION,"3,240.64",01/09/2016
Delivery Units,Adults and Communities,Other Agencies - Third Party P,30133804,SELF UNLIMITED-LONDON REGION,"2,783.44",01/09/2016
Delivery Units,Adults and Communities,Other Agencies - Third Party P,30133805,SELF UNLIMITED-LONDON REGION,"3,040.00",01/09/2016
Delivery Units,Adults and Communities,Other Agencies - Third Party P,30133806,SELF UNLIMITED-LONDON REGION,"3,756.24",01/09/2016
Delivery Units,Adults and Communities,Other Agencies - Third Party P,30133807,SELF UNLIMITED-LONDON REGION,"2,145.04",01/09/2016
Delivery Units,Adults and Communities,Other Agencies - Third Party P,30133808,SELF UNLIMITED-LONDON REGION,"3,432.76",01/09/2016
Delivery Units,Adults and Communities,Other Agencies - Third Party P,30133809,SELF UNLIMITED-LONDON REGION,"3,947.12",01/09/2016
Delivery Units,Adults and Communities,Other Agencies - Third Party P,30133811,SELF UNLIMITED-LONDON REGION,"1,094.40",01/09/2016
Delivery Units,Adults and Communities,Other Agencies - Third Party P,30133812,SELF UNLIMITED-LONDON REGION,"1,033.60",01/09/2016
Delivery Units,Adults and Communities,Other Agencies - Third Party P,30133813,SELF UNLIMITED-LONDON REGION,"1,921.28",01/09/2016
Delivery Units,Adults and Communities,Other Agencies - Third Party P,30133814,SELF UNLIMITED-LONDON REGION,"1,914.00",01/09/2016
Delivery Units,Adults and Communities,Other Agencies - Third Party P,30133815,SELF UNLIMITED-LONDON REGION,"2,926.32",01/09/2016
Delivery Units,Adults and Communities,Other Agencies - Third Party P,30133816,SELF UNLIMITED-LONDON REGION,"2,110.96",01/09/2016
